Workbook

Sheet Accueil

Sheet Infos_Recuperation
B2: CAJournalier_35_210322114128597.xls | F2: Niv 1 : 120 - COURRIER ET EXPEDITION | I2: 126.95 | K2: 54.18
B3: CAJournalier_35_210322114255636.xls | F3: Niv 1 : 125 - CAHIERS ET DERIVES DE PAPIER | I3: 159.15 | K3: 68.455
B4: CAJournalier_35_210322114306080.xls | F4: Niv 1 : 130 - ECRIRE ET CORRIGER | I4: 35.3 | K4: 15.97166667
B5: CAJournalier_35_210322114313728.xls | F5: Niv 1 : 140 - CLASSEMENT | I5: 324.66 | K5: 164.5508333

Sheet AOP22 - 035
A2: 2022
B3: Janvier | C3: % | D3: Février | E3: % | F3: Mars | G3: % | H3: Avril | I3: % | J3: Mai | K3: % | L3: Juin | M3: % | N3: Juillet | O3: % | P3: Août | Q3: % | R3: Septembre | S3: % | T3: Octobre | U3: % | V3: Novembre | W3: % | X3: Décembre | Y3: % | Z3: Total YTD | AA3: %
A4: CA - Mo
A6: CA - B
A8: CA - F
A10: CA - Mi
A12: CA - C
A14: Total CA
B18: Janvier | C18: Taux % | D18: Février | E18: Taux % | F18: Mars | G18: Taux % | H18: Avril | I18: Taux % | J18: Mai | K18: Taux % | L18: Juin | M18: Taux % | N18: Juillet | O18: Taux % | P18: Août | Q18: Taux % | R18: Septembre | S18: Taux % | T18: Octobre | U18: Taux % | V18: Novembre | W18: Taux % | X18: Décembre | Y18: Taux % | Z18: Total YTD | AA18: Taux %
A19: Marge - Mo
A21: Marge - B
A23: Marge - F
A25: Marge - Mi
A27: Marge - C
A29: Total MARGE
B33: Janvier | C33: %/CA | D33: Février | E33: %/CA | F33: Mars | G33: %/CA | H33: Avril | I33: %/CA | J33: Mai | K33: %/CA | L33: Juin | M33: %/CA | N33: Juillet | O33: %/CA | P33: Août | Q33: %/CA | R33: Septembre | S33: %/CA | T33: Octobre | U33: %/CA | V33: Novembre | W33: %/CA | X33: Décembre | Y33: %/CA | Z33: Total YTD | AA33: %/CA
A34: COGS - Mo
A35: COGS - B
A36: COGS - F
A37: COGS - Mi
A38: COGS - C
A39: Total

Sheet Journalier
A1: Familles & sous familles | B1: CA | C1: Marge
A2: Niv 1 : 1 - MOBILIER
A3: Niv 1 : 160 - EQUIPEMENT CLASSE ET BUREAU
A4: Niv 1 : 170 - MOBILIER
A5: Niv 1 : 200 - SERVICES GENERAUX
A6: Niv 1 : 205 - PRODUITS ALIMENTAIRES
A7: Niv 1 : 260 - UNIVERS MAGASIN
A8: MOBILIER | B8: =SUM(B2:B7) -> 0 | C8: =SUM(C2:C7) -> 0
D9: 87
A10: Niv 1 : 2 - BUREAUTIQUE
A11: Niv 1 : 180 - BUREAUTIQUE
A12: Niv 1 : 195 - CONSOMMABLES INFORMATIQUES
A13: Niv 1 : 999 - NEW ITEMS RMS RECLASSIFY!
A14: BUREAUTIQUE | B14: =SUM(B9:B13) -> 0 | C14: =SUM(C9:C13) -> 0
A16: Niv 1 : 3 - FOURNITURES DE BUREAU
A17: Niv 1 : 110 - PAPIERS
A18: Niv 1 : 120 - COURRIER ET EXPEDITION | B18: 126.95 | C18: 54.18
A19: Niv 1 : 125 - CAHIERS ET DERIVES DE PAPIER | B19: 159.15 | C19: 68.455
A20: Niv 1 : 130 - ECRIRE ET CORRIGER | B20: 35.3 | C20: 15.97166667
A21: Niv 1 : 140 - CLASSEMENT | B21: 324.66 | C21: 164.5508333
A22: Niv 1 : 150 - PETIT MATERIEL BUREAU ET ECOLE
A23: Niv 1 : 210 - TRAVAUX MANUELS | D23: 0
A24: Niv 1 : 220 - DESSIN SCOLAIRE ET PROFESSIONNEL
A25: FOURNITURE | B25: =SUM(B16:B24) -> 646.06 | C25: =SUM(C16:C24) -> 303.1575
A27: Niv 1 : 4 - MiCrO INFORMATIQUE
A28: Niv 1 : 190 - INFORMATIQUE
A29: MICRO | B29: =SUM(B27:B28) -> 0 | C29: =SUM(C27:C28) -> 0
A31: Niv 1 : 9 - SERVICES/PERSONNALISATION
A32: Niv 1 : 900 - Marketing | D32: 0
A33: IMAGE | B33: =SUM(B31:B32) -> 0 | C33: =SUM(C31:C32) -> 0
A35: 1 - MOBILIER | B35: =Journalier!B8 -> 0 | C35: =Journalier!C8 -> 0
A36: 2 - BUREAUTIQUE | B36: =Journalier!B14 -> 0 | C36: =Journalier!C14 -> 0
A37: 3 - FOURNITURES DE BUREAU | B37: =Journalier!B25 -> 646.06 | C37: =Journalier!C25 -> 303.1575
A38: 4 - MiCrO INFORMATIQUE | B38: =Journalier!B29 -> 0 | C38: =Journalier!C29 -> 0
A39: 9 - COPIE IMPRIMERIE | B39: =B33 -> 0 | C39: =C33 -> 0
A40: Total Magasin | B40: =SUM(B35:B39) -> 646.06 | C40: =SUM(C35:C39) -> 303.1575
A43: DATE | B43: MOBILIER | D43: BUREAUTIQUE | F43: FOURNITURES | H43: MICRO | J43: COPIE IMPRIMERIE | L43: TRANSAC JOUR
B44: CA | C44: IMU | D44: CA | E44: IMU | F44: CA | G44: IMU | H44: CA | I44: IMU | J44: CA | K44: IMU
A45: =IF(WEEKDAY(TODAY()-1,2)=7,TODAY()-2,TODAY()-1) -> 2022-03-19 | B45: =B35 -> 0 | C45: =C35 -> 0 | D45: =B36 -> 0 | E45: =C36 -> 0 | F45: =B37 -> 646.06 | G45: =C37 -> 303.1575 | H45: =B38 -> 0 | I45: =C38 -> 0 | J45: =B39 -> 0 | K45: =C39 -> 0 | L45: =D9 -> 87
B47: En rouge les cellules à copier/coller dans les onglets de suivi mensuel

Sheet JANVIER
L2: Janvier | O2: 2022 | Q2: 4
D4: MO | F4: B | H4: F | J4: MI | L4: C | N4: TRANSAC JOUR | O4: CA JOUR | P4: IMU JOUR | Q4: % IMU | R4: PM JOUR
D5: CA | E5: IMU | F5: CA | G5: IMU | H5: CA | I5: IMU | J5: CA | K5: IMU | L5: CA | M5: IMU
C6: 2022-02-28 | D6: 0 | E6: 0 | F6: 0 | G6: 0 | H6: 0 | I6: 0 | J6: 0 | K6: 0 | L6: 0 | M6: 0 | N6: 0 | O6: =D6+F6+H6+J6+L6 -> 0 | P6: =SUM(E6+G6+I6+K6+M6) -> 0 | Q6: =IF(ISERROR(P6/O6),"%",P6/O6) -> % | R6: =IF(N6=0,"",O6/N6) -> 
A7: =IF(O7=0,0,1) -> 0 | B7: =IF(C6,1,0) -> 1 | C7: 2022-01-03 | O7: 0 | P7: 0 | Q7: % | R7: =IF(N7=0,"",O7/N7) -> 
A8: =IF(O8=0,0,1) -> 1 | B8: =IF(C7,1,0) -> 1 | C8: =C7+1 -> 2022-01-04 | D8: 110 | E8: 190 | F8: 60 | O8: 170 | P8: 190 | Q8: 1.117647059
A9: 0 | B9: 1 | C9: 2022-01-05 | O9: 0 | P9: 0 | Q9: %
A10: 0 | B10: 1 | C10: 2022-01-06 | O10: 0 | P10: 0 | Q10: %
A11: 0 | B11: 1 | C11: 2022-01-07 | O11: 0 | P11: 0 | Q11: %
A12: 0 | B12: 1 | C12: 2022-01-08 | O12: 0 | P12: 0 | Q12: %
C13: =C12+1 -> 2022-01-09 | D13: =IF(SUM(D11:D12)>(D44*(1/$Q$2)),"ä","æ") -> æ | E13: =IF(SUM(E11:E12)>(E44*(1/$Q$2)),"ä","æ") -> æ | F13: æ | G13: æ | H13: æ | I13: æ | J13: æ | K13: æ | L13: æ | M13: æ | N13: æ | O13: æ | P13: æ | Q13: æ | R13: =IF(SUM(R11:R12)>(R44*(1/$Q$2)),"ä","æ") -> æ
A14: 0 | B14: 1 | C14: 2022-01-10 | O14: =D14+F14+H14+J14+L14 -> 0 | P14: =SUM(E14+G14+I14+K14+M14) -> 0 | Q14: %
A15: 0 | B15: 1 | C15: 2022-01-11 | O15: =D15+F15+H15+J15+L15 -> 0 | P15: 0 | Q15: %
A16: 0 | B16: 1 | C16: 2022-01-12 | O16: =D16+F16+H16+J16+L16 -> 0 | P16: 0 | Q16: %
A17: 0 | B17: 1 | C17: 2022-01-13 | O17: 0 | P17: 0 | Q17: %
A18: 0 | B18: 1 | C18: 2022-01-14 | O18: 0 | P18: 0 | Q18: %
A19: 0 | B19: 1 | C19: 2022-01-15 | O19: 0 | P19: 0 | Q19: %
C20: 2022-01-16 | D20: =IF(SUM(D14:D19)+SUM(D11:D12)>(D44*(1/$Q$2)),"ä","æ") -> æ | E20: =IF(SUM(E14:E19)+SUM(E11:E12)>(E44*(1/$Q$2)),"ä","æ") -> æ | F20: æ | G20: æ | H20: æ | I20: æ | J20: æ | K20: æ | L20: æ | M20: æ | N20: æ | O20: æ | P20: æ | Q20: æ | R20: æ
A21: 0 | B21: 1 | C21: 2022-01-17 | O21: 0 | P21: 0 | Q21: %
A22: 0 | B22: 1 | C22: 2022-01-18 | O22: 0 | P22: 0 | Q22: %
A23: 0 | B23: 1 | C23: 2022-01-19 | O23: 0 | P23: 0 | Q23: %
A24: 0 | B24: 1 | C24: 2022-01-20 | O24: 0 | P24: 0 | Q24: %
A25: 0 | B25: 1 | C25: 2022-01-21 | O25: 0 | P25: 0 | Q25: %
A26: 0 | B26: 1 | C26: 2022-01-22 | O26: 0 | P26: 0 | Q26: %
C27: 2022-01-23 | D27: =IF(SUM(D14:D19)+SUM(D11:D12)+SUM(D21:D26)>(D44*(2/$Q$2)),"ä","æ") -> æ | E27: =IF(SUM(E14:E19)+SUM(E11:E12)+SUM(E21:E26)>(E44*(2/$Q$2)),"ä","æ") -> æ | F27: æ | G27: æ | H27: æ | I27: æ | J27: æ | K27: æ | L27: æ | M27: æ | N27: æ | O27: æ | P27: æ | Q27: æ | R27: æ
A28: 0 | B28: 1 | C28: 2022-01-24 | O28: 0 | P28: 0 | Q28: %
A29: 0 | B29: 1 | C29: 2022-01-25 | O29: 0 | P29: 0 | Q29: %
A30: 0 | B30: 1 | C30: 2022-01-26 | O30: 0 | P30: 0 | Q30: %
A31: 0 | B31: 1 | C31: 2022-01-27 | O31: 0 | P31: 0 | Q31: %
A32: 0 | B32: 1 | C32: 2022-01-28 | O32: 0 | P32: 0 | Q32: %
A33: 0 | B33: 1 | C33: 2022-01-29 | O33: 0 | P33: 0 | Q33: %
C34: 2022-01-30 | D34: =IF(SUM(D21:D26)+SUM(D14:D19)+SUM(D28:D33)+SUM(D8:D12)>(D44*(3/$Q$2)),"ä","æ") -> ä | E34: =IF(SUM(E21:E26)+SUM(E14:E19)+SUM(E28:E33)+SUM(E8:E12)>(E44*(3/$Q$2)),"ä","æ") -> ä | F34: ä | G34: æ | H34: æ | I34: æ | J34: æ | K34: æ | L34: æ | M34: æ | N34: æ | O34: ä | P34: ä | Q34: ä | R34: æ
A35: 0 | B35: 1 | C35: 2022-01-31 | O35: 0 | P35: 0 | Q35: %
C36: 2022-02-01
C37: 2022-02-02
D38: =IF(SUM(D25:D30)+SUM(D18:D23)+SUM(D32:D37)+SUM(D11:D16)+SUM(D4:D9)>(D42),"ä","æ") -> ä | E38: ä | F38: ä | G38: æ | H38: æ | I38: æ | J38: æ | K38: æ | L38: æ | M38: æ | N38: æ | O38: ä | P38: ä | Q38: ä | R38: æ
A41: =SUM(A7:A37) -> 1 | B41: =SUM(B7:B37) -> 25 | C41: TOTAL MTD | D41: =SUM(D7:D37) -> 110 | E41: 190 | F41: 60 | G41: 0 | H41: 0 | I41: 0 | J41: 0 | K41: 0 | L41: 0 | M41: 0 | N41: 0 | O41: =SUM(O8:O37) -> 170 | P41: =SUM(P7:P37) -> 190 | Q41: 1.117647059
D43: MO | F43: B | H43: F | J43: MI | L43: I | N43: TX | O43: CA | P43: IMU | Q43: % IMU | R43: PM
C44: OBJECTIF MTD | D44: ='AOP22 - 035'!B4 -> 0 | E44: ='AOP22 - 035'!B19 -> 0 | F44: ='AOP22 - 035'!B6 -> 0 | G44: ='AOP22 - 035'!B21 -> 0 | H44: ='AOP22 - 035'!B8 -> 0 | I44: ='AOP22 - 035'!B23 -> 0 | J44: ='AOP22 - 035'!B10 -> 0 | K44: ='AOP22 - 035'!B25 -> 0 | L44: ='AOP22 - 035'!B12 -> 0 | M44: ='AOP22 - 035'!B27 -> 0 | N44: 4500 | O44: =D44+F44+H44+J44+L44 -> 0 | P44: =E44+G44+I44+K44+M44 -> 0 | Q44: 0.41 | R44: 55
C45: INDEX (vs AOP) | D45: =IF(D52>(D44/$B$41),"ä","æ") -> ä | E45: =IF(E52>(E44/$B$41),"ä","æ") -> ä | F45: ä | G45: æ | H45: æ | I45: æ | J45: æ | K45: æ | L45: æ | M45: æ | N45: æ | O45: ä | P45: ä | Q45: =IF(Q41>Q44,"ä","æ") -> ä | R45: =IF(R41>R44,"ä","æ") -> ä
C46: % RÉALISÉ | D46: =SUM(D41/D44) ->  | F46: =SUM(F41/F44) ->  | H46: =SUM(H41/H44) ->  | N46: =SUM(N41/N44) -> 0 | O46: =(D41+F41+H41+J41+L41)/O44 ->  | P46: =(E41+G41+I41+K41+M41)/P44 ->  | Q46: =IF(ISERROR(Q41-Q44),"",Q41-Q44) -> 0.7076470588 | R46: =IF(ISERROR(R41-R44),"",R41-R44) -> 
C47: INDEX (vs % Réal Attendu) | D47: =IF(D46>$Q$53,"ä","æ") ->  | E47: =IF(E46>$Q$53,"ä","æ") ->  | N47: æ
D50: MO | F50: B | H50: F | J50: MI | L50: I | N50: TX | O50: CA | P50: MARGE | Q50: Nb de Jours restants mois | R50: =+$R$51-$A$41 -> 24
C51: CA/MGE/TR Restants à faire/ jour | D51: =IF($R$50=0,D44-D41,(D44-D41)/$R$50) -> -4.583333333 | E51: -7.916666667 | F51: -2.5 | G51: 0 | H51: 0 | I51: 0 | J51: 0 | K51: 0 | L51: 0 | M51: 0 | N51: 187.5 | O51: =D51+F51+H51+J51+L51 -> -7.083333333 | P51: =E51+G51+I51+K51+M51 -> -7.916666667 | Q51: Nb de jours dans le mois | R51: =B41 -> 25
D52: =D41/$A$41 -> 110 | E52: =E41/$A$41 -> 190 | F52: 60 | G52: 0 | H52: 0 | I52: 0 | J52: 0 | K52: 0 | L52: 0 | M52: 0 | N52: 0 | O52: 170 | P52: 190 | Q52: % Réalisation Attendu
D53: PÔLE | Q53: =((100/$R$51)*($R$51-$R$50))/100 -> 0.04
E55: CA | G55: IMU
D56: OBJECTIF MTD | E56: =+F44+J44 -> 0 | G56: =+G44+K44 -> 0 | I56: ² | K56: CA | L56: IMU
D57: Réalisé MTD | E57: =+F41+J41 -> 60 | G57: =+G41+K41 -> 0 | J57: CA/MGE Restants à faire/jour | K57: =+F51+J51 -> -2.5 | L57: =+G51+K51 -> 0
D58: INDEX | E58: =IF(E57>E60,"ä","æ") -> ä | F58: =IF(F54>F61,"ä","æ") -> æ | G58: =IF(G57>G60,"ä","æ") -> æ
D59: % RÉALISÉ | E59: =+$E$57/$E$56 ->  | G59: =+$G$57/$G$56 -> 
E60: =(E56/$R$51)*($R$51-$R$50) -> 0 | G60: =(G56/$R$51)*($R$51-$R$50) -> 0
E63: S1 | G63: S2 | I63: S3 | K63: S4 | M63: S5 | O63: CONTRÔLE | Q63: TOTAL DIVISIONS | Y63: AOP DIVISIONS | AD63: Delta VS Prime T2 | AF63: Delta VS Prime T300
E64: CA | F64: MARGE | G64: CA | H64: MARGE | I64: CA | J64: MARGE | K64: CA | L64: MARGE | M64: CA | N64: MARGE | O64: CA | P64: MARGE | Q64: CA | R64: MARGE | Y64: CA | Z64: MARGE | AA64: CA/Sem | AB64: Marge/Sem | AD64: CA(85%) | AE64: MARGE (90%) | AF64: CA (95%) | AG64: MARGE (95%)
A65: =D65 -> MOBILIER | C65: 1 | D65: MOBILIER | E65: =SUM(D6:D11) -> 110 | F65: =SUM(E6:E11) -> 190 | G65: =SUM(D13:D18) -> 0 | H65: =SUM(E13:E18) -> 0 | I65: =SUM(D20:D25) -> 0 | J65: =SUM(E20:E25) -> 0 | K65: =SUM(D27:D32) -> 0 | L65: =SUM(E27:E32) -> 0 | M65: =SUM(D34:D39) -> 0 | N65: =SUM(E34:E39) -> 0 | O65: =IF(SUM(E65,G65,I65,K65,M65)=D41,"OK","NOK") -> OK | P65: =IF(SUM(F65,H65,J65,L65,N65)=E41,"OK","NOK") -> OK | Q65: =SUM(E65,G65,I65,K65,M65) -> 110 | R65: 190 | X65: MOBILIER | Y65: =+D44 -> 0 | Z65: =+E44 -> 0 | AA65: =Y65/$Q$2 -> 0 | AB65: =Z65/$Q$2 -> 0 | AC65: MOB | AD65: =Y65*85% -> 0 | AE65: =Z65*90% -> 0
A66: =D66 -> BUREAUTIQUE | C66: 2 | D66: BUREAUTIQUE | E66: =SUM(F6:F11) -> 60 | F66: =SUM(G6:G11) -> 0 | G66: =SUM(F13:F18) -> 0 | H66: =SUM(G13:G18) -> 0 | I66: =SUM(F20:F25) -> 0 | J66: =SUM(G20:G25) -> 0 | K66: =SUM(F27:F32) -> 0 | L66: =SUM(G27:G32) -> 0 | M66: =SUM(F34:F39) -> 0 | N66: =SUM(G34:G39) -> 0 | O66: =IF(SUM(E66,G66,I66,K66,M66)=F41,"OK","NOK") -> OK | P66: =IF(SUM(F66,H66,J66,L66,N66)=G41,"OK","NOK") -> OK | Q66: 60 | R66: 0 | X66: BUREAUTIQUE | Y66: =+F44 -> 0 | Z66: =+G44 -> 0 | AA66: =Y66/$Q$2 -> 0 | AB66: 0 | AC66: BUR | AD66: 0 | AE66: 0
A67: FOURNITURES | C67: 3 | D67: FOURNITURES | E67: =SUM(H6:H11) -> 0 | F67: =SUM(I6:I11) -> 0 | G67: =SUM(H13:H18) -> 0 | H67: =SUM(I13:I18) -> 0 | I67: =SUM(H20:H25) -> 0 | J67: =SUM(I20:I25) -> 0 | K67: =SUM(H27:H32) -> 0 | L67: =SUM(I27:I32) -> 0 | M67: =SUM(H34:H39) -> 0 | N67: =SUM(I34:I39) -> 0 | O67: =IF(SUM(E67,G67,I67,K67,M67)=H41,"OK","NOK") -> OK | P67: =IF(SUM(F67,H67,J67,L67,N67)=I41,"OK","NOK") -> OK | Q67: 0 | R67: 0 | X67: FOURNITURES | Y67: =+H44 -> 0 | Z67: =+I44 -> 0 | AA67: 0 | AB67: 0 | AC67: FOURN | AD67: 0 | AE67: 0
A68: MICRO | C68: 4 | D68: MICRO | E68: =SUM(J6:J11) -> 0 | F68: =SUM(K6:K11) -> 0 | G68: =SUM(J13:J18) -> 0 | H68: =SUM(K13:K18) -> 0 | I68: =SUM(J20:J25) -> 0 | J68: =SUM(K20:K25) -> 0 | K68: =SUM(J27:J32) -> 0 | L68: =SUM(K27:K32) -> 0 | M68: =SUM(J34:J39) -> 0 | N68: =SUM(K34:K39) -> 0 | O68: =IF(SUM(E68,G68,I68,K68,M68)=J41,"OK","NOK") -> OK | P68: =IF(SUM(F68,H68,J68,L68,N68)=K41,"OK","NOK") -> OK | Q68: 0 | R68: 0 | X68: MICRO | Y68: =+J44 -> 0 | Z68: =+K44 -> 0 | AA68: 0 | AB68: 0 | AC68: MICRO | AD68: 0 | AE68: 0
A69: COPIE IMPRIMERIE | C69: 9 | D69: COPIE IMPRIMERIE | E69: =SUM(L6:L11) -> 0 | F69: =SUM(M6:M11) -> 0 | G69: =SUM(L13:L18) -> 0 | H69: =SUM(M13:M18) -> 0 | I69: =SUM(L20:L25) -> 0 | J69: =SUM(M20:M25) -> 0 | K69: =SUM(L27:L32) -> 0 | L69: =SUM(M27:M32) -> 0 | M69: =SUM(L34:L39) -> 0 | N69: =SUM(M34:M39) -> 0 | O69: =IF(SUM(E69,G69,I69,K69,M69)=L41,"OK","NOK") -> OK | P69: =IF(SUM(F69,H69,J69,L69,N69)=M41,"OK","NOK") -> OK | Q69: 0 | R69: 0 | X69: COPIE IMPRIMERIE | Y69: =+L44 -> 0 | Z69: =+M44 -> 0 | AA69: 0 | AB69: 0 | AC69: IMAG | AD69: 0 | AE69: 0 | AI69: PDM Imag
A70: Pôle Techno | C70: 2&4 | D70: Pôle Techno | E70: =SUM(E66,E68) -> 60 | F70: =SUM(F66,F68) -> 0 | G70: 0 | H70: 0 | I70: 0 | J70: 0 | K70: 0 | L70: 0 | M70: 0 | N70: 0 | Q70: 60 | R70: 0 | X70: Pôle Techno | Y70: =+Y66+Y68 -> 0 | Z70: =+Z66+Z68 -> 0 | AA70: 0 | AB70: 0 | AD70: 0 | AE70: 0 | AI70: =+Q69/Q71 -> 0
A71: MAGASIN | D71: MAGASIN | E71: =SUM(E65:E69) -> 170 | F71: =SUM(F65:F69) -> 190 | G71: 0 | H71: 0 | I71: 0 | J71: 0 | K71: 0 | L71: 0 | M71: 0 | N71: 0 | Q71: =SUM(Q65:Q69) -> 170 | R71: =SUM(R65:R69) -> 190 | X71: MAGASIN | Y71: =SUM(Y65:Y69) -> 0 | Z71: =SUM(Z65:Z69) -> 0 | AA71: 0 | AB71: 0 | AF71: =Y71*95% -> 0 | AG71: =Z71*95% -> 0 | AH71: OD | AI71: =IF(AND($AI$70>=4%,$AI$70<5%),25,IF($AI$70>=5%,50,0)) -> 0 | AJ71: 0.05
D72: CONTRÔLE | E72: =IF(SUM(E65:E69)=SUM(O6:O11),"OK","NOK") -> OK | F72: =IF(SUM(F65:F69)=SUM(P6:P11),"OK","NOK") -> OK | G72: =IF(SUM(G65:G69)=SUM(O13:O18),"OK","NOK") -> OK | H72: =IF(SUM(H65:H69)=SUM(P13:P18),"OK","NOK") -> OK | I72: =IF(SUM(I65:I69)=SUM(O20:O25),"OK","NOK") -> OK | J72: =IF(SUM(J65:J69)=SUM(P20:P25),"OK","NOK") -> OK | K72: =IF(SUM(K65:K69)=SUM(O27:O32),"OK","NOK") -> OK | L72: =IF(SUM(L65:L69)=SUM(P27:P32),"OK","NOK") -> OK | M72: =IF(SUM(M65:M69)=SUM(O34:O39),"OK","NOK") -> OK | N72: =IF(SUM(N65:N69)=SUM(P34:P39),"OK","NOK") -> OK | AH72: ODC | AI72: =IF(AND($AI$70>=9%,$AI$70<10%),25,IF($AI$70>=10%,50,0)) -> 0 | AJ72: 0.1

Sheet FEVRIER
L2: Février | O2: 2022 | Q2: 4
D4: MO | F4: B | H4: F | J4: MI | L4: C | N4: TRANSAC JOUR | O4: CA JOUR | P4: IMU JOUR | Q4: % IMU | R4: PM JOUR
D5: CA | E5: IMU | F5: CA | G5: IMU | H5: CA | I5: IMU | J5: CA | K5: IMU | L5: CA | M5: IMU
C6: 2022-02-28 | D6: 0 | E6: 0 | F6: 0 | G6: 0 | H6: 0 | I6: 0 | J6: 0 | K6: 0 | L6: 0 | M6: 0 | N6: 0 | O6: =D6+F6+H6+J6+L6 -> 0 | P6: =SUM(E6+G6+I6+K6+M6) -> 0 | Q6: =IF(ISERROR(P6/O6),"%",P6/O6) -> % | R6: =IF(N6=0,"",O6/N6) -> 
A7: =IF(O7=0,0,1) -> 0 | B7: =IF(C6,1,0) -> 1 | C7: 2022-02-01 | O7: 0 | P7: 0 | Q7: % | R7: =IF(N7=0,"",O7/N7) -> 
A8: =IF(O8=0,0,1) -> 0 | B8: =IF(C7,1,0) -> 1 | C8: =C7+1 -> 2022-02-02 | O8: 0 | P8: 0 | Q8: %
A9: 0 | B9: 1 | C9: 2022-02-03 | O9: 0 | P9: 0 | Q9: %
A10: 0 | B10: 1 | C10: 2022-02-04 | O10: 0 | P10: 0 | Q10: %
A11: 0 | B11: 1 | C11: 2022-02-05 | O11: 0 | P11: 0 | Q11: %
C12: =C11+1 -> 2022-02-06 | D12: =IF(SUM(D10:D11)>(D44*(1/$Q$2)),"ä","æ") -> æ | E12: =IF(SUM(E10:E11)>(E44*(1/$Q$2)),"ä","æ") -> æ | F12: æ | G12: æ | H12: æ | I12: æ | J12: æ | K12: æ | L12: æ | M12: æ | N12: æ | O12: æ | P12: æ | Q12: æ | R12: æ
A13: 0 | B13: 1 | C13: =C12+1 -> 2022-02-07 | O13: =D13+F13+H13+J13+L13 -> 0 | P13: =SUM(E13+G13+I13+K13+M13) -> 0 | Q13: %
A14: 0 | B14: 1 | C14: 2022-02-08 | O14: =D14+F14+H14+J14+L14 -> 0 | P14: =SUM(E14+G14+I14+K14+M14) -> 0 | Q14: %
A15: 0 | B15: 1 | C15: 2022-02-09 | O15: =D15+F15+H15+J15+L15 -> 0 | P15: 0 | Q15: %
A16: 0 | B16: 1 | C16: 2022-02-10 | O16: =D16+F16+H16+J16+L16 -> 0 | P16: 0 | Q16: %
A17: 0 | B17: 1 | C17: 2022-02-11 | O17: 0 | P17: 0 | Q17: %
A18: 0 | B18: 1 | C18: 2022-02-12 | O18: =D18+F18+H18+J18+L18 -> 0 | P18: 0 | Q18: %
C19: 2022-02-13 | D19: =IF(SUM(D13:D18)+SUM(D10:D11)>(D44*(1/$Q$2)),"ä","æ") -> æ | E19: =IF(SUM(E13:E18)+SUM(E10:E11)>(E44*(1/$Q$2)),"ä","æ") -> æ | F19: æ | G19: æ | H19: æ | I19: æ | J19: æ | K19: æ | L19: æ | M19: æ | N19: æ | O19: æ | P19: æ | Q19: æ | R19: æ
A20: 0 | B20: 1 | C20: 2022-02-14 | O20: 0 | P20: 0 | Q20: %
A21: 0 | B21: 1 | C21: 2022-02-15 | O21: 0 | P21: 0 | Q21: %
A22: 0 | B22: 1 | C22: 2022-02-16 | O22: 0 | P22: 0 | Q22: %
A23: 0 | B23: 1 | C23: 2022-02-17 | O23: 0 | P23: 0 | Q23: %
A24: 0 | B24: 1 | C24: 2022-02-18 | O24: 0 | P24: 0 | Q24: %
A25: 0 | B25: 1 | C25: 2022-02-19 | O25: 0 | P25: 0 | Q25: %
C26: 2022-02-20 | D26: =IF(SUM(D13:D18)+SUM(D10:D11)+SUM(D20:D25)>(D44*(2/$Q$2)),"ä","æ") -> æ | E26: =IF(SUM(E13:E18)+SUM(E10:E11)+SUM(E20:E25)>(E44*(2/$Q$2)),"ä","æ") -> æ | F26: æ | G26: æ | H26: æ | I26: æ | J26: æ | K26: æ | L26: æ | M26: æ | N26: æ | O26: æ | P26: æ | Q26: æ | R26: æ
A27: 0 | B27: 1 | C27: 2022-02-21 | O27: 0 | P27: 0 | Q27: %
A28: 0 | B28: 1 | C28: 2022-02-22 | O28: 0 | P28: 0 | Q28: %
A29: 0 | B29: 1 | C29: 2022-02-23 | O29: 0 | P29: 0 | Q29: %
A30: 0 | B30: 1 | C30: 2022-02-24 | O30: 0 | P30: 0 | Q30: %
A31: 0 | B31: 1 | C31: 2022-02-25 | O31: 0 | P31: 0 | Q31: %
A32: 0 | B32: 1 | C32: 2022-02-26 | O32: 0 | P32: 0 | Q32: %
C33: 2022-02-27 | D33: =IF(SUM(D20:D25)+SUM(D13:D18)+SUM(D27:D32)+SUM(D7:D11)>(D44*(3/$Q$2)),"ä","æ") -> æ | E33: =IF(SUM(E20:E25)+SUM(E13:E18)+SUM(E27:E32)+SUM(E7:E11)>(E44*(3/$Q$2)),"ä","æ") -> æ | F33: æ | G33: æ | H33: æ | I33: æ | J33: æ | K33: æ | L33: æ | M33: æ | N33: æ | O33: æ | P33: æ | Q33: æ | R33: æ
A34: 0 | B34: 1 | C34: 2022-02-28 | O34: 0 | P34: 0 | Q34: %
C35: 2022-03-01 | D35: =IF(SUM(D27:D32)+SUM(D20:D25)+SUM(D34)+SUM(D13:D18)+SUM(D7:D11)>(D$44*(4/$Q$2)),"ä","æ") -> æ | E35: =IF(SUM(E27:E32)+SUM(E20:E25)+SUM(E34)+SUM(E13:E18)+SUM(E7:E11)>(E$44*(4/$Q$2)),"ä","æ") -> æ | F35: æ | G35: æ | H35: æ | I35: æ | J35: æ | K35: æ | L35: æ | M35: æ | N35: æ | O35: æ | P35: æ | Q35: æ | R35: æ
C36: 2022-03-02
C37: 2022-03-03
D38: =IF(SUM(D25:D30)+SUM(D18:D23)+SUM(D32:D37)+SUM(D11:D16)+SUM(D4:D9)>(D42),"ä","æ") -> æ | E38: æ | F38: æ | G38: æ | H38: æ | I38: æ | J38: æ | K38: æ | L38: æ | M38: æ | N38: æ | O38: æ | P38: æ | Q38: æ | R38: æ
A41: =SUM(A34:A37,A27:A32,A20:A25,A13:A18,A7:A11) -> 0 | B41: =SUM(B7:B37) -> 24 | C41: TOTAL MTD | D41: =SUM(D7:D37) -> 0 | E41: 0 | F41: 0 | G41: 0 | H41: 0 | I41: 0 | J41: 0 | K41: 0 | L41: 0 | M41: 0 | N41: 0 | O41: =SUM(O8:O37) -> 0 | P41: =SUM(P7:P37) -> 0 | Q41: %
D43: MO | F43: B | H43: F | J43: MI | L43: I | N43: TX | O43: CA | P43: IMU | Q43: % IMU | R43: PM
C44: OBJECTIF MTD | D44: ='AOP22 - 035'!D4 -> 0 | E44: ='AOP22 - 035'!D19 -> 0 | F44: ='AOP22 - 035'!D6 -> 0 | G44: ='AOP22 - 035'!D21 -> 0 | H44: ='AOP22 - 035'!D8 -> 0 | I44: ='AOP22 - 035'!D23 -> 0 | J44: ='AOP22 - 035'!D10 -> 0 | K44: ='AOP22 - 035'!D25 -> 0 | L44: ='AOP22 - 035'!D12 -> 0 | M44: ='AOP22 - 035'!D27 -> 0 | N44: 4500 | O44: =D44+F44+H44+J44+L44 -> 0 | P44: =E44+G44+I44+K44+M44 -> 0 | Q44: 0.41 | R44: 55
C45: INDEX (vs AOP) | D45: =IF(D52>(D44/$B$41),"ä","æ") ->  | E45: =IF(E52>(E44/$B$41),"ä","æ") ->  | Q45: =IF(Q41>Q44,"ä","æ") -> ä | R45: =IF(R41>R44,"ä","æ") -> ä
C46: % RÉALISÉ | D46: =SUM(D41/D44) ->  | F46: =SUM(F41/F44) ->  | H46: =SUM(H41/H44) ->  | N46: =SUM(N41/N44) -> 0 | O46: =(D41+F41+H41+J41+L41)/O44 ->  | P46: =(E41+G41+I41+K41+M41)/P44 ->  | Q46: =IF(ISERROR(Q41-Q44),"",Q41-Q44) ->  | R46: =IF(ISERROR(R41-R44),"",R41-R44) -> 
C47: INDEX (vs % Réal Attendu) | D47: =IF(D46>$Q$53,"ä","æ") ->  | E47: =IF(E46>$Q$53,"ä","æ") ->  | N47: æ
D50: MO | F50: B | H50: F | J50: MI | L50: I | N50: TX | O50: CA | P50: MARGE | Q50: Nb de Jours restants mois | R50: =+$R$51-$A$41 -> 24
C51: CA/MGE/TR Restants à faire/ jour | D51: =IF($R$50=0,D44-D41,(D44-D41)/$R$50) -> 0 | E51: 0 | F51: 0 | G51: 0 | H51: 0 | I51: 0 | J51: 0 | K51: 0 | L51: 0 | M51: 0 | N51: 187.5 | O51: =D51+F51+H51+J51+L51 -> 0 | P51: =E51+G51+I51+K51+M51 -> 0 | Q51: Nb de jours dans le mois | R51: =B41 -> 24
D52: =D41/$A$41 ->  | E52: =E41/$A$41 ->  | Q52: % Réalisation Attendu
D53: PÔLE | Q53: =((100/$R$51)*($R$51-$R$50))/100 -> 0
E55: CA | G55: IMU
D56: OBJECTIF MTD | E56: =+F44+J44 -> 0 | G56: =+G44+K44 -> 0 | I56: ² | K56: CA | L56: IMU
D57: Réalisé MTD | E57: =+F41+J41 -> 0 | G57: =+G41+K41 -> 0 | J57: CA/MGE Restants à faire/jour | K57: =+F51+J51 -> 0 | L57: =+G51+K51 -> 0
D58: INDEX | E58: =IF(E57>E60,"ä","æ") -> æ | F58: =IF(F54>F61,"ä","æ") -> æ | G58: =IF(G57>G60,"ä","æ") -> æ
D59: % RÉALISÉ | E59: =+$E$57/$E$56 ->  | G59: =+$G$57/$G$56 -> 
E60: =(E56/$R$51)*($R$51-$R$50) -> 0 | G60: =(G56/$R$51)*($R$51-$R$50) -> 0
E63: S1 | G63: S2 | I63: S3 | K63: S4 | M63: S5 | O63: CONTRÔLE | Q63: TOTAL DIVISIONS | Y63: AOP DIVISIONS | AD63: Delta VS Prime T2 | AF63: Delta VS Prime T300
E64: CA | F64: MARGE | G64: CA | H64: MARGE | I64: CA | J64: MARGE | K64: CA | L64: MARGE | M64: CA | N64: MARGE | O64: CA | P64: MARGE | Q64: CA | R64: MARGE | Y64: CA | Z64: MARGE | AA64: CA/Sem | AB64: Marge/Sem | AD64: CA(85%) | AE64: MARGE (90%) | AF64: CA (95%) | AG64: MARGE (95%)
A65: =D65 -> MOBILIER | C65: 1 | D65: MOBILIER | E65: =SUM(D6:D11) -> 0 | F65: =SUM(E6:E11) -> 0 | G65: =SUM(D13:D18) -> 0 | H65: =SUM(E13:E18) -> 0 | I65: =SUM(D20:D25) -> 0 | J65: =SUM(E20:E25) -> 0 | K65: =SUM(D27:D32) -> 0 | L65: =SUM(E27:E32) -> 0 | M65: =SUM(D34:D39) -> 0 | N65: =SUM(E34:E39) -> 0 | O65: =IF(SUM(E65,G65,I65,K65,M65)=D41,"OK","NOK") -> OK | P65: =IF(SUM(F65,H65,J65,L65,N65)=E41,"OK","NOK") -> OK | Q65: =SUM(E65,G65,I65,K65,M65) -> 0 | R65: 0 | X65: MOBILIER | Y65: =+D44 -> 0 | Z65: =+E44 -> 0 | AA65: =Y65/$Q$2 -> 0 | AB65: =Z65/$Q$2 -> 0 | AC65: MOB | AD65: =Y65*85% -> 0 | AE65: =Z65*90% -> 0
A66: =D66 -> BUREAUTIQUE | C66: 2 | D66: BUREAUTIQUE | E66: =SUM(F6:F11) -> 0 | F66: =SUM(G6:G11) -> 0 | G66: =SUM(F13:F18) -> 0 | H66: =SUM(G13:G18) -> 0 | I66: =SUM(F20:F25) -> 0 | J66: =SUM(G20:G25) -> 0 | K66: =SUM(F27:F32) -> 0 | L66: =SUM(G27:G32) -> 0 | M66: =SUM(F34:F39) -> 0 | N66: =SUM(G34:G39) -> 0 | O66: =IF(SUM(E66,G66,I66,K66,M66)=F41,"OK","NOK") -> OK | P66: =IF(SUM(F66,H66,J66,L66,N66)=G41,"OK","NOK") -> OK | Q66: 0 | R66: 0 | X66: BUREAUTIQUE | Y66: =+F44 -> 0 | Z66: =+G44 -> 0 | AA66: =Y66/$Q$2 -> 0 | AB66: 0 | AC66: BUR | AD66: 0 | AE66: 0
A67: FOURNITURES | C67: 3 | D67: FOURNITURES | E67: =SUM(H6:H11) -> 0 | F67: =SUM(I6:I11) -> 0 | G67: =SUM(H13:H18) -> 0 | H67: =SUM(I13:I18) -> 0 | I67: =SUM(H20:H25) -> 0 | J67: =SUM(I20:I25) -> 0 | K67: =SUM(H27:H32) -> 0 | L67: =SUM(I27:I32) -> 0 | M67: =SUM(H34:H39) -> 0 | N67: =SUM(I34:I39) -> 0 | O67: =IF(SUM(E67,G67,I67,K67,M67)=H41,"OK","NOK") -> OK | P67: =IF(SUM(F67,H67,J67,L67,N67)=I41,"OK","NOK") -> OK | Q67: 0 | R67: 0 | X67: FOURNITURES | Y67: =+H44 -> 0 | Z67: =+I44 -> 0 | AA67: 0 | AB67: 0 | AC67: FOURN | AD67: 0 | AE67: 0
A68: MICRO | C68: 4 | D68: MICRO | E68: =SUM(J6:J11) -> 0 | F68: =SUM(K6:K11) -> 0 | G68: =SUM(J13:J18) -> 0 | H68: =SUM(K13:K18) -> 0 | I68: =SUM(J20:J25) -> 0 | J68: =SUM(K20:K25) -> 0 | K68: =SUM(J27:J32) -> 0 | L68: =SUM(K27:K32) -> 0 | M68: =SUM(J34:J39) -> 0 | N68: =SUM(K34:K39) -> 0 | O68: =IF(SUM(E68,G68,I68,K68,M68)=J41,"OK","NOK") -> OK | P68: =IF(SUM(F68,H68,J68,L68,N68)=K41,"OK","NOK") -> OK | Q68: 0 | R68: 0 | X68: MICRO | Y68: =+J44 -> 0 | Z68: =+K44 -> 0 | AA68: 0 | AB68: 0 | AC68: MICRO | AD68: 0 | AE68: 0
A69: COPIE IMPRIMERIE | C69: 9 | D69: COPIE IMPRIMERIE | E69: =SUM(L6:L11) -> 0 | F69: =SUM(M6:M11) -> 0 | G69: =SUM(L13:L18) -> 0 | H69: =SUM(M13:M18) -> 0 | I69: =SUM(L20:L25) -> 0 | J69: =SUM(M20:M25) -> 0 | K69: =SUM(L27:L32) -> 0 | L69: =SUM(M27:M32) -> 0 | M69: =SUM(L34:L39) -> 0 | N69: =SUM(M34:M39) -> 0 | O69: =IF(SUM(E69,G69,I69,K69,M69)=L41,"OK","NOK") -> OK | P69: =IF(SUM(F69,H69,J69,L69,N69)=M41,"OK","NOK") -> OK | Q69: 0 | R69: 0 | X69: COPIE IMPRIMERIE | Y69: =+L44 -> 0 | Z69: =+M44 -> 0 | AA69: 0 | AB69: 0 | AC69: IMAG | AD69: 0 | AE69: 0 | AI69: PDM Imag
A70: Pôle Techno | C70: 2&4 | D70: Pôle Techno | E70: =SUM(E66,E68) -> 0 | F70: =SUM(F66,F68) -> 0 | G70: 0 | H70: 0 | I70: 0 | J70: 0 | K70: 0 | L70: 0 | M70: 0 | N70: 0 | Q70: 0 | R70: 0 | X70: Pôle Techno | Y70: =+Y66+Y68 -> 0 | Z70: =+Z66+Z68 -> 0 | AA70: 0 | AB70: 0 | AD70: 0 | AE70: 0 | AI70: =+Q69/Q71 -> 
A71: MAGASIN | D71: MAGASIN | E71: =SUM(E65:E69) -> 0 | F71: =SUM(F65:F69) -> 0 | G71: 0 | H71: 0 | I71: 0 | J71: 0 | K71: 0 | L71: 0 | M71: 0 | N71: 0 | Q71: =SUM(Q65:Q69) -> 0 | R71: =SUM(R65:R69) -> 0 | X71: MAGASIN | Y71: =SUM(Y65:Y69) -> 0 | Z71: =SUM(Z65:Z69) -> 0 | AA71: 0 | AB71: 0 | AF71: =Y71*95% -> 0 | AG71: =Z71*95% -> 0 | AH71: OD | AI71: =IF(AND($AI$70>=4%,$AI$70<5%),25,IF($AI$70>=5%,50,0)) ->  | AJ71: 0.05
D72: CONTRÔLE | E72: =IF(SUM(E65:E69)=SUM(O6:O11),"OK","NOK") -> OK | F72: =IF(SUM(F65:F69)=SUM(P6:P11),"OK","NOK") -> OK | G72: =IF(SUM(G65:G69)=SUM(O13:O18),"OK","NOK") -> OK | H72: =IF(SUM(H65:H69)=SUM(P13:P18),"OK","NOK") -> OK | I72: =IF(SUM(I65:I69)=SUM(O20:O25),"OK","NOK") -> OK | J72: =IF(SUM(J65:J69)=SUM(P20:P25),"OK","NOK") -> OK | K72: =IF(SUM(K65:K69)=SUM(O27:O32),"OK","NOK") -> OK | L72: =IF(SUM(L65:L69)=SUM(P27:P32),"OK","NOK") -> OK | M72: =IF(SUM(M65:M69)=SUM(O34:O39),"OK","NOK") -> OK | N72: =IF(SUM(N65:N69)=SUM(P34:P39),"OK","NOK") -> OK | AH72: ODC | AI72: =IF(AND($AI$70>=9%,$AI$70<10%),25,IF($AI$70>=10%,50,0)) ->  | AJ72: 0.1

Sheet MARS
L2: Mars | O2: 2022 | Q2: 5
D4: MO | F4: B | H4: F | J4: MI | L4: C | N4: TRANSAC JOUR | O4: CA JOUR | P4: IMU JOUR | Q4: % IMU | R4: PM JOUR
D5: CA | E5: IMU | F5: CA | G5: IMU | H5: CA | I5: IMU | J5: CA | K5: IMU | L5: CA | M5: IMU
C6: 2022-02-28 | D6: 0 | E6: 0 | F6: 0 | G6: 0 | H6: 0 | I6: 0 | J6: 0 | K6: 0 | L6: 0 | M6: 0 | N6: 0 | O6: =D6+F6+H6+J6+L6 -> 0 | P6: =SUM(E6+G6+I6+K6+M6) -> 0 | Q6: =IF(ISERROR(P6/O6),"%",P6/O6) -> % | R6: =IF(N6=0,"",O6/N6) -> 
A7: =IF(O7=0,0,1) -> 0 | B7: =IF(C6,1,0) -> 1 | C7: =C6+1 -> 2022-03-01 | O7: 0 | P7: 0 | Q7: % | R7: =IF(N7=0,"",O7/N7) -> 
A8: =IF(O8=0,0,1) -> 0 | B8: =IF(C7,1,0) -> 1 | C8: 2022-03-02 | O8: 0 | P8: 0 | Q8: %
A9: 0 | B9: 1 | C9: 2022-03-03 | O9: 0 | P9: 0 | Q9: %
A10: 0 | B10: 1 | C10: =C9+1 -> 2022-03-04 | O10: 0 | P10: 0 | Q10: %
A11: 0 | B11: 1 | C11: 2022-03-05 | O11: 0 | P11: 0 | Q11: %
C12: 2022-03-06 | D12: =IF(SUM(D7:D11)>(D44*(1/$Q$2)),"ä","æ") -> æ | E12: =IF(SUM(E6:E11)>(E44*(1/$Q$2)),"ä","æ") -> æ | F12: æ | G12: æ | H12: æ | I12: æ | J12: æ | K12: æ | L12: æ | M12: æ | N12: æ | O12: æ | P12: æ | Q12: =IF(ISERROR(IF(SUM(P6:P11)/SUM(O6:O11)>=$Q$44,"ä","æ")),"",IF(SUM(P6:P11)/SUM(O6:O11)>=$Q$44,"ä","æ")) ->  | R12: =IF(ISERROR(IF(SUM(O6:O11)/SUM(N6:N11)>=$R$44,"ä","æ")),"",IF(SUM(O6:O11)/SUM(N6:N11)>=$R$44,"ä","æ")) -> 
A13: 0 | B13: 1 | C13: 2022-03-07 | O13: =D13+F13+H13+J13+L13 -> 0 | P13: =SUM(E13+G13+I13+K13+M13) -> 0 | Q13: =IF(ISERROR(P13/O13),"%",P13/O13) -> %
A14: 0 | B14: 1 | C14: 2022-03-08 | O14: =D14+F14+H14+J14+L14 -> 0 | P14: =SUM(E14+G14+I14+K14+M14) -> 0 | Q14: %
A15: 0 | B15: 1 | C15: 2022-03-09 | O15: =D15+F15+H15+J15+L15 -> 0 | P15: 0 | Q15: %
A16: 0 | B16: 1 | C16: 2022-03-10 | O16: =D16+F16+H16+J16+L16 -> 0 | P16: =SUM(E16+G16+I16+K16+M16) -> 0 | Q16: %
A17: 0 | B17: 1 | C17: 2022-03-11 | O17: =D17+F17+H17+J17+L17 -> 0 | P17: 0 | Q17: %
A18: 0 | B18: 1 | C18: 2022-03-12 | O18: 0 | P18: 0 | Q18: %
C19: 2022-03-13 | D19: =IF(SUM(D13:D18)+SUM(D7:D11)>(D44*(2/$Q$2)),"ä","æ") -> æ | E19: =IF(SUM(E13:E18)+SUM(E6:E11)>(E44*(2/$Q$2)),"ä","æ") -> æ | F19: æ | G19: æ | H19: æ | I19: æ | J19: æ | K19: æ | L19: æ | M19: æ | N19: æ | O19: æ | P19: æ | Q19: æ | R19: æ
A20: 0 | B20: 1 | C20: 2022-03-14 | O20: =D20+F20+H20+J20+L20 -> 0 | P20: 0 | Q20: =IF(ISERROR(P20/O20),"%",P20/O20) -> %
A21: 0 | B21: 1 | C21: 2022-03-15 | O21: 0 | P21: 0 | Q21: %
A22: 0 | B22: 1 | C22: 2022-03-16 | O22: 0 | P22: 0 | Q22: %
A23: 1 | B23: 1 | C23: 2022-03-17 | D23: 48.19 | E23: 18.6917 | F23: 1790.32 | G23: 483.3383 | H23: 1364.15 | I23: 446.5315 | J23: 0 | K23: 0 | L23: 0 | M23: 0 | N23: 87 | O23: 3202.66 | P23: 948.5615 | Q23: 0.2961792697 | R23: 36.81218391
A24: 0 | B24: 1 | C24: 2022-03-18 | O24: 0 | P24: 0 | Q24: %
A25: 0 | B25: 1 | C25: 2022-03-19 | O25: 0 | P25: 0 | Q25: %
C26: 2022-03-20 | D26: =IF(SUM(D13:D18)+SUM(D6:D11)+SUM(D20:D25)>(D44*(3/$Q$2)),"ä","æ") -> ä | E26: ä | F26: ä | G26: ä | H26: ä | I26: ä | J26: æ | K26: æ | L26: æ | M26: æ | N26: ä | O26: ä | P26: ä | Q26: ä | R26: ä
A27: 0 | B27: 1 | C27: 2022-03-21 | O27: =D27+F27+H27+J27+L27 -> 0 | P27: 0 | Q27: =IF(ISERROR(P27/O27),"%",P27/O27) -> %
A28: 0 | B28: 1 | C28: 2022-03-22 | O28: 0 | P28: 0 | Q28: %
A29: 0 | B29: 1 | C29: 2022-03-23 | O29: 0 | P29: 0 | Q29: %
A30: 0 | B30: 1 | C30: 2022-03-24 | O30: 0 | P30: 0 | Q30: %
A31: 0 | B31: 1 | C31: 2022-03-25 | O31: 0 | P31: 0 | Q31: %
A32: 0 | B32: 1 | C32: 2022-03-26 | O32: 0 | P32: 0 | Q32: %
C33: 2022-03-27 | D33: =IF(SUM(D20:D25)+SUM(D13:D18)+SUM(D27:D32)+SUM(D6:D11)>(D44*(4/$Q$2)),"ä","æ") -> ä | E33: ä | F33: ä | G33: ä | H33: ä | I33: ä | J33: æ | K33: æ | L33: æ | M33: æ | N33: ä | O33: ä | P33: ä | Q33: æ | R33: æ
A34: 0 | B34: 1 | C34: =IF($Q$2=4,"",C33+1) -> 2022-03-28 | O34: =D34+F34+H34+J34+L34 -> 0 | P34: 0 | Q34: =IF(ISERROR(P34/O34),"%",P34/O34) -> %
A35: 0 | B35: 1 | C35: 2022-03-29 | O35: 0 | P35: 0 | Q35: %
A36: 0 | B36: 1 | C36: 2022-03-30 | O36: 0 | P36: 0 | Q36: %
A37: 0 | B37: 1 | C37: 2022-03-31 | O37: 0 | P37: 0 | Q37: %
D38: =IF(SUM(D20:D25)+SUM(D13:D18)+SUM(D27:D32)+SUM(D7:D11)+SUM(D34:D37)>(D44*(5/$Q$2)),"ä","æ") -> ä | E38: =IF(SUM(E20:E25)+SUM(E13:E18)+SUM(E27:E32)+SUM(E7:E11)+SUM(E34:E37)>(E44*(5/$Q$2)),"ä","æ") -> ä | F38: ä | G38: ä | H38: ä | I38: ä | J38: æ | K38: æ | L38: æ | M38: æ | N38: ä | O38: ä | P38: ä | Q38: æ | R38: æ
A41: =SUM(A34:A37,A27:A32,A20:A25,A13:A18,A7:A11) -> 1 | B41: =SUM(B7:B37) -> 27 | C41: TOTAL MTD | D41: =SUM(D7:D37) -> 48.19 | E41: =SUM(E7:E37) -> 18.6917 | F41: 1790.32 | G41: 483.3383 | H41: 1364.15 | I41: 446.5315 | J41: 0 | K41: 0 | L41: 0 | M41: 0 | N41: =SUM(N7:N37) -> 87 | O41: =SUM(O8:O37) -> 3202.66 | P41: =SUM(P7:P37) -> 948.5615 | Q41: 0.2961792697 | R41: 36.81218391
D43: MO | F43: B | H43: F | J43: MI | L43: I | N43: TX | O43: CA | P43: IMU | Q43: % IMU | R43: PM
C44: OBJECTIF MTD | D44: ='AOP22 - 035'!F4 -> 0 | E44: ='AOP22 - 035'!F19 -> 0 | F44: ='AOP22 - 035'!F6 -> 0 | G44: ='AOP22 - 035'!F21 -> 0 | H44: ='AOP22 - 035'!F8 -> 0 | I44: ='AOP22 - 035'!F23 -> 0 | J44: ='AOP22 - 035'!F10 -> 0 | K44: ='AOP22 - 035'!F25 -> 0 | L44: ='AOP22 - 035'!F12 -> 0 | M44: ='AOP22 - 035'!F27 -> 0 | O44: =D44+F44+H44+J44+L44 -> 0 | P44: =E44+G44+I44+K44+M44 -> 0 | Q44: 0.41 | R44: 55
C45: INDEX (vs AOP) | D45: =IF(D52>(D44/$B$41),"ä","æ") -> ä | E45: =IF(E52>(E44/$B$41),"ä","æ") -> ä | F45: ä | G45: ä | H45: ä | I45: ä | J45: æ | K45: æ | L45: æ | M45: æ | N45: ä | O45: ä | P45: ä | Q45: =IF(Q41>(Q44),"ä","æ") -> æ | R45: =IF(R41>(R44),"ä","æ") -> æ
C46: % RÉALISÉ | D46: =SUM(D41/D44) ->  | F46: =SUM(F41/F44) ->  | H46: =SUM(H41/H44) ->  | N46: =SUM(N41/N44) ->  | O46: =(D41+F41+H41+J41+L41)/O44 ->  | P46: =(E41+G41+I41+K41+M41)/P44 ->  | Q46: =IF(ISERROR(Q41-Q44),"",Q41-Q44) -> -0.1138207303 | R46: =IF(ISERROR(R41-R44),"",R41-R44) -> -18.18781609
C47: INDEX (vs % Réal Attendu) | D47: =IF(D46>$Q$53,"ä","æ") ->  | E47: =IF(E46>$Q$53,"ä","æ") -> 
D50: MO | F50: B | H50: F | J50: MI | L50: I | N50: TX | O50: CA | P50: MARGE | Q50: Nb de Jours restants mois | R50: =+$R$51-$A$41 -> 26
C51: CA/MGE/TR Restants à faire/ jour | D51: =IF($R$50=0,D44-D41,(D44-D41)/$R$50) -> -1.853461538 | E51: -0.7189115385 | F51: -68.85846154 | G51: -18.58993462 | H51: -52.46730769 | I51: -17.17428846 | J51: 0 | K51: 0 | L51: 0 | M51: 0 | N51: -3.346153846 | O51: =D51+F51+H51+J51+L51 -> -123.1792308 | P51: =E51+G51+I51+K51+M51 -> -36.48313462 | Q51: Nb de jours dans le mois | R51: 27
D52: =D41/$A$41 -> 48.19 | E52: =E41/$A$41 -> 18.6917 | F52: 1790.32 | G52: 483.3383 | H52: 1364.15 | I52: 446.5315 | J52: 0 | K52: 0 | L52: 0 | M52: 0 | N52: 87 | O52: 3202.66 | P52: 948.5615 | Q52: % Réalisation Attendu
D53: PÔLE | Q53: =((100/$R$51)*($R$51-$R$50))/100 -> 0.03703703704
E55: CA | G55: IMU
D56: OBJECTIF MTD | E56: =+F44+J44 -> 0 | G56: =+G44+K44 -> 0 | I56: ² | K56: CA | L56: IMU
D57: Réalisé MTD | E57: =+F41+J41 -> 1790.32 | G57: =+G41+K41 -> 483.3383 | J57: CA/MGE Restants à faire/jour | K57: =+F51+J51 -> -68.85846154 | L57: =+G51+K51 -> -18.58993462
D58: INDEX | E58: =IF(E57>E60,"ä","æ") -> ä | F58: =IF(F54>F61,"ä","æ") -> æ | G58: =IF(G57>G60,"ä","æ") -> ä
D59: % RÉALISÉ | E59: =+$E$57/$E$56 ->  | G59: =+$G$57/$G$56 -> 
E60: =(E56/$R$51)*($R$51-$R$50) -> 0 | G60: =(G56/$R$51)*($R$51-$R$50) -> 0
E63: S1 | G63: S2 | I63: S3 | K63: S4 | M63: S5 | O63: CONTRÔLE | Q63: TOTAL DIVISIONS | Y63: AOP DIVISIONS | AD63: Delta VS Prime T2 | AF63: Delta VS Prime T300
E64: CA | F64: MARGE | G64: CA | H64: MARGE | I64: CA | J64: MARGE | K64: CA | L64: MARGE | M64: CA | N64: MARGE | O64: CA | P64: MARGE | Q64: CA | R64: MARGE | Y64: CA | Z64: MARGE | AA64: CA/Sem | AB64: Marge/Sem | AD64: CA(85%) | AE64: MARGE (90%) | AF64: CA (95%) | AG64: MARGE (95%)
A65: =D65 -> MOBILIER | C65: 1 | D65: MOBILIER | E65: =SUM(D6:D11) -> 0 | F65: =SUM(E6:E11) -> 0 | G65: =SUM(D13:D18) -> 0 | H65: =SUM(E13:E18) -> 0 | I65: =SUM(D20:D25) -> 48.19 | J65: =SUM(E20:E25) -> 18.6917 | K65: =SUM(D27:D32) -> 0 | L65: =SUM(E27:E32) -> 0 | M65: =SUM(D34:D39) -> 0 | N65: =SUM(E34:E39) -> 0 | O65: =IF(SUM(E65,G65,I65,K65,M65)=D41,"OK","NOK") -> OK | P65: =IF(SUM(F65,H65,J65,L65,N65)=E41,"OK","NOK") -> OK | Q65: =SUM(E65,G65,I65,K65,M65) -> 48.19 | R65: 18.6917 | X65: MOBILIER | Y65: =+D44 -> 0 | Z65: =+E44 -> 0 | AA65: =Y65/$Q$2 -> 0 | AB65: =Z65/$Q$2 -> 0 | AC65: MOB | AD65: =Y65*85% -> 0 | AE65: =Z65*90% -> 0
A66: =D66 -> BUREAUTIQUE | C66: 2 | D66: BUREAUTIQUE | E66: =SUM(F6:F11) -> 0 | F66: =SUM(G6:G11) -> 0 | G66: =SUM(F13:F18) -> 0 | H66: =SUM(G13:G18) -> 0 | I66: =SUM(F20:F25) -> 1790.32 | J66: =SUM(G20:G25) -> 483.3383 | K66: =SUM(F27:F32) -> 0 | L66: =SUM(G27:G32) -> 0 | M66: =SUM(F34:F39) -> 0 | N66: =SUM(G34:G39) -> 0 | O66: =IF(SUM(E66,G66,I66,K66,M66)=F41,"OK","NOK") -> OK | P66: =IF(SUM(F66,H66,J66,L66,N66)=G41,"OK","NOK") -> OK | Q66: 1790.32 | R66: 483.3383 | X66: BUREAUTIQUE | Y66: =+F44 -> 0 | Z66: =+G44 -> 0 | AA66: =Y66/$Q$2 -> 0 | AB66: 0 | AC66: BUR | AD66: 0 | AE66: 0
A67: FOURNITURES | C67: 3 | D67: FOURNITURES | E67: =SUM(H6:H11) -> 0 | F67: =SUM(I6:I11) -> 0 | G67: =SUM(H13:H18) -> 0 | H67: =SUM(I13:I18) -> 0 | I67: =SUM(H20:H25) -> 1364.15 | J67: =SUM(I20:I25) -> 446.5315 | K67: =SUM(H27:H32) -> 0 | L67: =SUM(I27:I32) -> 0 | M67: =SUM(H34:H39) -> 0 | N67: =SUM(I34:I39) -> 0 | O67: =IF(SUM(E67,G67,I67,K67,M67)=H41,"OK","NOK") -> OK | P67: =IF(SUM(F67,H67,J67,L67,N67)=I41,"OK","NOK") -> OK | Q67: 1364.15 | R67: 446.5315 | X67: FOURNITURES | Y67: =+H44 -> 0 | Z67: =+I44 -> 0 | AA67: 0 | AB67: 0 | AC67: FOURN | AD67: 0 | AE67: 0
A68: MICRO | C68: 4 | D68: MICRO | E68: =SUM(J6:J11) -> 0 | F68: =SUM(K6:K11) -> 0 | G68: =SUM(J13:J18) -> 0 | H68: =SUM(K13:K18) -> 0 | I68: =SUM(J20:J25) -> 0 | J68: =SUM(K20:K25) -> 0 | K68: =SUM(J27:J32) -> 0 | L68: =SUM(K27:K32) -> 0 | M68: =SUM(J34:J39) -> 0 | N68: =SUM(K34:K39) -> 0 | O68: =IF(SUM(E68,G68,I68,K68,M68)=J41,"OK","NOK") -> OK | P68: =IF(SUM(F68,H68,J68,L68,N68)=K41,"OK","NOK") -> OK | Q68: 0 | R68: 0 | X68: MICRO | Y68: =+J44 -> 0 | Z68: =+K44 -> 0 | AA68: 0 | AB68: 0 | AC68: MICRO | AD68: 0 | AE68: 0
A69: COPIE IMPRIMERIE | C69: 9 | D69: COPIE IMPRIMERIE | E69: =SUM(L6:L11) -> 0 | F69: =SUM(M6:M11) -> 0 | G69: =SUM(L13:L18) -> 0 | H69: =SUM(M13:M18) -> 0 | I69: =SUM(L20:L25) -> 0 | J69: =SUM(M20:M25) -> 0 | K69: =SUM(L27:L32) -> 0 | L69: =SUM(M27:M32) -> 0 | M69: =SUM(L34:L39) -> 0 | N69: =SUM(M34:M39) -> 0 | O69: =IF(SUM(E69,G69,I69,K69,M69)=L41,"OK","NOK") -> OK | P69: =IF(SUM(F69,H69,J69,L69,N69)=M41,"OK","NOK") -> OK | Q69: 0 | R69: 0 | X69: COPIE IMPRIMERIE | Y69: =+L44 -> 0 | Z69: =+M44 -> 0 | AA69: 0 | AB69: 0 | AC69: IMAG | AD69: 0 | AE69: 0 | AI69: PDM Imag
A70: Pôle Techno | C70: 2&4 | D70: Pôle Techno | E70: =SUM(E66,E68) -> 0 | F70: =SUM(F66,F68) -> 0 | G70: 0 | H70: 0 | I70: 1790.32 | J70: 483.3383 | K70: 0 | L70: 0 | M70: 0 | N70: 0 | Q70: 1790.32 | R70: 483.3383 | X70: Pôle Techno | Y70: =+Y66+Y68 -> 0 | Z70: =+Z66+Z68 -> 0 | AA70: 0 | AB70: 0 | AD70: 0 | AE70: 0 | AI70: =+Q69/Q71 -> 0
A71: MAGASIN | D71: MAGASIN | E71: =SUM(E65:E69) -> 0 | F71: =SUM(F65:F69) -> 0 | G71: 0 | H71: 0 | I71: 3202.66 | J71: 948.5615 | K71: 0 | L71: 0 | M71: 0 | N71: 0 | Q71: =SUM(Q65:Q69) -> 3202.66 | R71: =SUM(R65:R69) -> 948.5615 | X71: MAGASIN | Y71: =SUM(Y65:Y69) -> 0 | Z71: =SUM(Z65:Z69) -> 0 | AA71: 0 | AB71: 0 | AF71: =Y71*95% -> 0 | AG71: =Z71*95% -> 0 | AH71: OD | AI71: =IF(AND($AI$70>=4%,$AI$70<5%),25,IF($AI$70>=5%,50,0)) -> 0 | AJ71: 0.05
D72: CONTRÔLE | E72: =IF(SUM(E65:E69)=SUM(O6:O11),"OK","NOK") -> OK | F72: =IF(SUM(F65:F69)=SUM(P6:P11),"OK","NOK") -> OK | G72: =IF(SUM(G65:G69)=SUM(O13:O18),"OK","NOK") -> OK | H72: =IF(SUM(H65:H69)=SUM(P13:P18),"OK","NOK") -> OK | I72: =IF(SUM(I65:I69)=SUM(O20:O25),"OK","NOK") -> OK | J72: =IF(SUM(J65:J69)=SUM(P20:P25),"OK","NOK") -> OK | K72: =IF(SUM(K65:K69)=SUM(O27:O32),"OK","NOK") -> OK | L72: =IF(SUM(L65:L69)=SUM(P27:P32),"OK","NOK") -> OK | M72: =IF(SUM(M65:M69)=SUM(O34:O39),"OK","NOK") -> OK | N72: =IF(SUM(N65:N69)=SUM(P34:P39),"OK","NOK") -> OK | AH72: ODC | AI72: =IF(AND($AI$70>=9%,$AI$70<10%),25,IF($AI$70>=10%,50,0)) -> 0 | AJ72: 0.1

Sheet AVRIL
L2: Avril | O2: 2022 | Q2: 4
D4: MO | F4: B | H4: F | J4: MI | L4: C | N4: TRANSAC JOUR | O4: CA JOUR | P4: IMU JOUR | Q4: % IMU | R4: PM JOUR
D5: CA | E5: IMU | F5: CA | G5: IMU | H5: CA | I5: IMU | J5: CA | K5: IMU | L5: CA | M5: IMU
C6: 2022-02-28 | D6: 0 | E6: 0 | F6: 0 | G6: 0 | H6: 0 | I6: 0 | J6: 0 | K6: 0 | L6: 0 | M6: 0 | N6: 0 | O6: =D6+F6+H6+J6+L6 -> 0 | P6: =SUM(E6+G6+I6+K6+M6) -> 0 | Q6: =IF(ISERROR(P6/O6),"%",P6/O6) -> % | R6: =IF(N6=0,"",O6/N6) -> 
A7: =IF(O7=0,0,1) ->  | B7: =IF(C6,1,0) -> 1 | C7: 2022-04-01 | D7: =IF($C7=#REF!,#REF!,"0") ->  | E7: =IF($C7=#REF!,#REF!,"0") ->  | F7: =IF($C7=#REF!,#REF!,"0") ->  | G7: =IF($C7=#REF!,#REF!,"0") ->  | H7: =IF($C7=#REF!,#REF!,"0") ->  | I7: =IF($C7=#REF!,#REF!,"0") ->  | J7: =IF($C7=#REF!,#REF!,"0") ->  | K7: =IF($C7=#REF!,#REF!,"0") ->  | L7: =IF($C7=#REF!,#REF!,"0") ->  | M7: =IF($C7=#REF!,#REF!,"0") ->  | N7: 0 | Q7: % | R7: =IF(N7=0,"",O7/N7) -> 
A8: =IF(O8=0,0,1) ->  | B8: =IF(C7,1,0) -> 1 | C8: =C7+1 -> 2022-04-02 | D8: =IF($C8=#REF!,#REF!,"0") ->  | E8: =IF($C8=#REF!,#REF!,"0") ->  | F8: =IF($C8=#REF!,#REF!,"0") ->  | G8: =IF($C8=#REF!,#REF!,"0") ->  | H8: =IF($C8=#REF!,#REF!,"0") ->  | I8: =IF($C8=#REF!,#REF!,"0") ->  | J8: =IF($C8=#REF!,#REF!,"0") ->  | K8: =IF($C8=#REF!,#REF!,"0") ->  | L8: =IF($C8=#REF!,#REF!,"0") ->  | M8: =IF($C8=#REF!,#REF!,"0") ->  | N8: 0 | Q8: %
C9: =C8+1 -> 2022-04-03 | D9: =IF(SUM(D7:D8)>(D44*(1/$Q$2)),"ä","æ") ->  | E9: =IF(SUM(E7:E8)>(E44*(1/$Q$2)),"ä","æ") ->  | N9: æ | Q9: æ | R9: æ
B10: 1 | C10: 2022-04-04 | D10: =IF($C10=#REF!,#REF!,"0") ->  | E10: =IF($C10=#REF!,#REF!,"0") ->  | F10: =IF($C10=#REF!,#REF!,"0") ->  | G10: =IF($C10=#REF!,#REF!,"0") ->  | H10: =IF($C10=#REF!,#REF!,"0") ->  | I10: =IF($C10=#REF!,#REF!,"0") ->  | J10: =IF($C10=#REF!,#REF!,"0") ->  | K10: =IF($C10=#REF!,#REF!,"0") ->  | L10: =IF($C10=#REF!,#REF!,"0") ->  | M10: =IF($C10=#REF!,#REF!,"0") ->  | N10: 0 | Q10: %
B11: 1 | C11: 2022-04-05 | D11: =IF($C11=#REF!,#REF!,"0") ->  | E11: =IF($C11=#REF!,#REF!,"0") ->  | F11: =IF($C11=#REF!,#REF!,"0") ->  | G11: =IF($C11=#REF!,#REF!,"0") ->  | H11: =IF($C11=#REF!,#REF!,"0") ->  | I11: =IF($C11=#REF!,#REF!,"0") ->  | J11: =IF($C11=#REF!,#REF!,"0") ->  | K11: =IF($C11=#REF!,#REF!,"0") ->  | L11: =IF($C11=#REF!,#REF!,"0") ->  | M11: =IF($C11=#REF!,#REF!,"0") ->  | N11: 0 | Q11: %
B12: 1 | C12: 2022-04-06 | D12: =IF($C12=#REF!,#REF!,"0") ->  | E12: =IF($C12=#REF!,#REF!,"0") ->  | F12: =IF($C12=#REF!,#REF!,"0") ->  | G12: =IF($C12=#REF!,#REF!,"0") ->  | H12: =IF($C12=#REF!,#REF!,"0") ->  | I12: =IF($C12=#REF!,#REF!,"0") ->  | J12: =IF($C12=#REF!,#REF!,"0") ->  | K12: =IF($C12=#REF!,#REF!,"0") ->  | L12: =IF($C12=#REF!,#REF!,"0") ->  | M12: =IF($C12=#REF!,#REF!,"0") ->  | N12: 0 | Q12: %
B13: 1 | C13: =C12+1 -> 2022-04-07 | D13: =IF($C13=#REF!,#REF!,"0") ->  | E13: =IF($C13=#REF!,#REF!,"0") ->  | F13: =IF($C13=#REF!,#REF!,"0") ->  | G13: =IF($C13=#REF!,#REF!,"0") ->  | H13: =IF($C13=#REF!,#REF!,"0") ->  | I13: =IF($C13=#REF!,#REF!,"0") ->  | J13: =IF($C13=#REF!,#REF!,"0") ->  | K13: =IF($C13=#REF!,#REF!,"0") ->  | L13: =IF($C13=#REF!,#REF!,"0") ->  | M13: =IF($C13=#REF!,#REF!,"0") ->  | N13: 0 | O13: =D13+F13+H13+J13+L13 ->  | P13: =SUM(E13+G13+I13+K13+M13) ->  | Q13: %
B14: 1 | C14: 2022-04-08 | D14: =IF($C14=#REF!,#REF!,"0") ->  | E14: =IF($C14=#REF!,#REF!,"0") ->  | F14: =IF($C14=#REF!,#REF!,"0") ->  | G14: =IF($C14=#REF!,#REF!,"0") ->  | H14: =IF($C14=#REF!,#REF!,"0") ->  | I14: =IF($C14=#REF!,#REF!,"0") ->  | J14: =IF($C14=#REF!,#REF!,"0") ->  | K14: =IF($C14=#REF!,#REF!,"0") ->  | L14: =IF($C14=#REF!,#REF!,"0") ->  | M14: =IF($C14=#REF!,#REF!,"0") ->  | N14: 0 | O14: =D14+F14+H14+J14+L14 ->  | P14: =SUM(E14+G14+I14+K14+M14) ->  | Q14: %
B15: 1 | C15: 2022-04-09 | D15: =IF($C15=#REF!,#REF!,"0") ->  | E15: =IF($C15=#REF!,#REF!,"0") ->  | F15: =IF($C15=#REF!,#REF!,"0") ->  | G15: =IF($C15=#REF!,#REF!,"0") ->  | H15: =IF($C15=#REF!,#REF!,"0") ->  | I15: =IF($C15=#REF!,#REF!,"0") ->  | J15: =IF($C15=#REF!,#REF!,"0") ->  | K15: =IF($C15=#REF!,#REF!,"0") ->  | L15: =IF($C15=#REF!,#REF!,"0") ->  | M15: =IF($C15=#REF!,#REF!,"0") ->  | N15: 0 | O15: =D15+F15+H15+J15+L15 ->  | Q15: %
C16: 2022-04-10 | D16: =IF(SUM(D10:D15)+SUM(D7:D8)>(D44*(1/$Q$2)),"ä","æ") ->  | E16: =IF(SUM(E10:E15)+SUM(E7:E8)>(E44*(1/$Q$2)),"ä","æ") ->  | N16: æ | Q16: æ | R16: æ
B17: 1 | C17: 2022-04-11 | D17: =IF($C17=#REF!,#REF!,"0") ->  | E17: =IF($C17=#REF!,#REF!,"0") ->  | F17: =IF($C17=#REF!,#REF!,"0") ->  | G17: =IF($C17=#REF!,#REF!,"0") ->  | H17: =IF($C17=#REF!,#REF!,"0") ->  | I17: =IF($C17=#REF!,#REF!,"0") ->  | J17: =IF($C17=#REF!,#REF!,"0") ->  | K17: =IF($C17=#REF!,#REF!,"0") ->  | L17: =IF($C17=#REF!,#REF!,"0") ->  | M17: =IF($C17=#REF!,#REF!,"0") ->  | N17: 0 | O17: =D17+F17+H17+J17+L17 ->  | Q17: %
B18: 1 | C18: 2022-04-12 | D18: =IF($C18=#REF!,#REF!,"0") ->  | E18: =IF($C18=#REF!,#REF!,"0") ->  | F18: =IF($C18=#REF!,#REF!,"0") ->  | G18: =IF($C18=#REF!,#REF!,"0") ->  | H18: =IF($C18=#REF!,#REF!,"0") ->  | I18: =IF($C18=#REF!,#REF!,"0") ->  | J18: =IF($C18=#REF!,#REF!,"0") ->  | K18: =IF($C18=#REF!,#REF!,"0") ->  | L18: =IF($C18=#REF!,#REF!,"0") ->  | M18: =IF($C18=#REF!,#REF!,"0") ->  | N18: 0 | Q18: %
B19: 1 | C19: 2022-04-13 | D19: =IF($C19=#REF!,#REF!,"0") ->  | E19: =IF($C19=#REF!,#REF!,"0") ->  | F19: =IF($C19=#REF!,#REF!,"0") ->  | G19: =IF($C19=#REF!,#REF!,"0") ->  | H19: =IF($C19=#REF!,#REF!,"0") ->  | I19: =IF($C19=#REF!,#REF!,"0") ->  | J19: =IF($C19=#REF!,#REF!,"0") ->  | K19: =IF($C19=#REF!,#REF!,"0") ->  | L19: =IF($C19=#REF!,#REF!,"0") ->  | M19: =IF($C19=#REF!,#REF!,"0") ->  | N19: 0 | Q19: %
B20: 1 | C20: 2022-04-14 | D20: =IF($C20=#REF!,#REF!,"0") ->  | E20: =IF($C20=#REF!,#REF!,"0") ->  | F20: =IF($C20=#REF!,#REF!,"0") ->  | G20: =IF($C20=#REF!,#REF!,"0") ->  | H20: =IF($C20=#REF!,#REF!,"0") ->  | I20: =IF($C20=#REF!,#REF!,"0") ->  | J20: =IF($C20=#REF!,#REF!,"0") ->  | K20: =IF($C20=#REF!,#REF!,"0") ->  | L20: =IF($C20=#REF!,#REF!,"0") ->  | M20: =IF($C20=#REF!,#REF!,"0") ->  | N20: 0 | Q20: %
B21: 1 | C21: 2022-04-15 | D21: =IF($C21=#REF!,#REF!,"0") ->  | E21: =IF($C21=#REF!,#REF!,"0") ->  | F21: =IF($C21=#REF!,#REF!,"0") ->  | G21: =IF($C21=#REF!,#REF!,"0") ->  | H21: =IF($C21=#REF!,#REF!,"0") ->  | I21: =IF($C21=#REF!,#REF!,"0") ->  | J21: =IF($C21=#REF!,#REF!,"0") ->  | K21: =IF($C21=#REF!,#REF!,"0") ->  | L21: =IF($C21=#REF!,#REF!,"0") ->  | M21: =IF($C21=#REF!,#REF!,"0") ->  | N21: 0 | Q21: %
B22: 1 | C22: 2022-04-16 | D22: =IF($C22=#REF!,#REF!,"0") ->  | E22: =IF($C22=#REF!,#REF!,"0") ->  | F22: =IF($C22=#REF!,#REF!,"0") ->  | G22: =IF($C22=#REF!,#REF!,"0") ->  | H22: =IF($C22=#REF!,#REF!,"0") ->  | I22: =IF($C22=#REF!,#REF!,"0") ->  | J22: =IF($C22=#REF!,#REF!,"0") ->  | K22: =IF($C22=#REF!,#REF!,"0") ->  | L22: =IF($C22=#REF!,#REF!,"0") ->  | M22: =IF($C22=#REF!,#REF!,"0") ->  | N22: 0 | Q22: %
C23: 2022-04-17 | D23: =IF(SUM(D10:D15)+SUM(D7:D8)+SUM(D17:D22)>(D44*(2/$Q$2)),"ä","æ") ->  | E23: =IF(SUM(E10:E15)+SUM(E7:E8)+SUM(E17:E22)>(E44*(2/$Q$2)),"ä","æ") ->  | N23: æ | Q23: æ | R23: æ
B24: 1 | C24: 2022-04-18 | D24: =IF($C24=#REF!,#REF!,"0") ->  | E24: =IF($C24=#REF!,#REF!,"0") ->  | F24: =IF($C24=#REF!,#REF!,"0") ->  | G24: =IF($C24=#REF!,#REF!,"0") ->  | H24: =IF($C24=#REF!,#REF!,"0") ->  | I24: =IF($C24=#REF!,#REF!,"0") ->  | J24: =IF($C24=#REF!,#REF!,"0") ->  | K24: =IF($C24=#REF!,#REF!,"0") ->  | L24: =IF($C24=#REF!,#REF!,"0") ->  | M24: =IF($C24=#REF!,#REF!,"0") ->  | N24: 0 | Q24: %
B25: 1 | C25: 2022-04-19 | D25: =IF($C25=#REF!,#REF!,"0") ->  | E25: =IF($C25=#REF!,#REF!,"0") ->  | F25: =IF($C25=#REF!,#REF!,"0") ->  | G25: =IF($C25=#REF!,#REF!,"0") ->  | H25: =IF($C25=#REF!,#REF!,"0") ->  | I25: =IF($C25=#REF!,#REF!,"0") ->  | J25: =IF($C25=#REF!,#REF!,"0") ->  | K25: =IF($C25=#REF!,#REF!,"0") ->  | L25: =IF($C25=#REF!,#REF!,"0") ->  | M25: =IF($C25=#REF!,#REF!,"0") ->  | N25: 0 | Q25: %
B26: 1 | C26: 2022-04-20 | D26: =IF($C26=#REF!,#REF!,"0") ->  | E26: =IF($C26=#REF!,#REF!,"0") ->  | F26: =IF($C26=#REF!,#REF!,"0") ->  | G26: =IF($C26=#REF!,#REF!,"0") ->  | H26: =IF($C26=#REF!,#REF!,"0") ->  | I26: =IF($C26=#REF!,#REF!,"0") ->  | J26: =IF($C26=#REF!,#REF!,"0") ->  | K26: =IF($C26=#REF!,#REF!,"0") ->  | L26: =IF($C26=#REF!,#REF!,"0") ->  | M26: =IF($C26=#REF!,#REF!,"0") ->  | N26: 0 | Q26: %
B27: 1 | C27: 2022-04-21 | D27: =IF($C27=#REF!,#REF!,"0") ->  | E27: =IF($C27=#REF!,#REF!,"0") ->  | F27: =IF($C27=#REF!,#REF!,"0") ->  | G27: =IF($C27=#REF!,#REF!,"0") ->  | H27: =IF($C27=#REF!,#REF!,"0") ->  | I27: =IF($C27=#REF!,#REF!,"0") ->  | J27: =IF($C27=#REF!,#REF!,"0") ->  | K27: =IF($C27=#REF!,#REF!,"0") ->  | L27: =IF($C27=#REF!,#REF!,"0") ->  | M27: =IF($C27=#REF!,#REF!,"0") ->  | N27: 0 | Q27: %
B28: 1 | C28: 2022-04-22 | D28: =IF($C28=#REF!,#REF!,"0") ->  | E28: =IF($C28=#REF!,#REF!,"0") ->  | F28: =IF($C28=#REF!,#REF!,"0") ->  | G28: =IF($C28=#REF!,#REF!,"0") ->  | H28: =IF($C28=#REF!,#REF!,"0") ->  | I28: =IF($C28=#REF!,#REF!,"0") ->  | J28: =IF($C28=#REF!,#REF!,"0") ->  | K28: =IF($C28=#REF!,#REF!,"0") ->  | L28: =IF($C28=#REF!,#REF!,"0") ->  | M28: =IF($C28=#REF!,#REF!,"0") ->  | N28: 0 | Q28: %
B29: 1 | C29: 2022-04-23 | D29: =IF($C29=#REF!,#REF!,"0") ->  | E29: =IF($C29=#REF!,#REF!,"0") ->  | F29: =IF($C29=#REF!,#REF!,"0") ->  | G29: =IF($C29=#REF!,#REF!,"0") ->  | H29: =IF($C29=#REF!,#REF!,"0") ->  | I29: =IF($C29=#REF!,#REF!,"0") ->  | J29: =IF($C29=#REF!,#REF!,"0") ->  | K29: =IF($C29=#REF!,#REF!,"0") ->  | L29: =IF($C29=#REF!,#REF!,"0") ->  | M29: =IF($C29=#REF!,#REF!,"0") ->  | N29: 0 | Q29: %
C30: 2022-04-24 | D30: =IF(SUM(D17:D22)+SUM(D10:D15)+SUM(D24:D29)+SUM(D7:D8)>(D44*(3/$Q$2)),"ä","æ") ->  | E30: =IF(SUM(E17:E22)+SUM(E10:E15)+SUM(E24:E29)+SUM(E7:E8)>(E44*(3/$Q$2)),"ä","æ") ->  | N30: æ | Q30: æ | R30: æ
B31: 1 | C31: 2022-04-25 | D31: =IF($C31=#REF!,#REF!,"0") ->  | E31: =IF($C31=#REF!,#REF!,"0") ->  | F31: =IF($C31=#REF!,#REF!,"0") ->  | G31: =IF($C31=#REF!,#REF!,"0") ->  | H31: =IF($C31=#REF!,#REF!,"0") ->  | I31: =IF($C31=#REF!,#REF!,"0") ->  | J31: =IF($C31=#REF!,#REF!,"0") ->  | K31: =IF($C31=#REF!,#REF!,"0") ->  | L31: =IF($C31=#REF!,#REF!,"0") ->  | M31: =IF($C31=#REF!,#REF!,"0") ->  | N31: 0 | Q31: %
B32: 1 | C32: 2022-04-26 | D32: =IF($C32=#REF!,#REF!,"0") ->  | E32: =IF($C32=#REF!,#REF!,"0") ->  | F32: =IF($C32=#REF!,#REF!,"0") ->  | G32: =IF($C32=#REF!,#REF!,"0") ->  | H32: =IF($C32=#REF!,#REF!,"0") ->  | I32: =IF($C32=#REF!,#REF!,"0") ->  | J32: =IF($C32=#REF!,#REF!,"0") ->  | K32: =IF($C32=#REF!,#REF!,"0") ->  | L32: =IF($C32=#REF!,#REF!,"0") ->  | M32: =IF($C32=#REF!,#REF!,"0") ->  | N32: 0 | Q32: %
B33: 1 | C33: 2022-04-27 | D33: =IF($C33=#REF!,#REF!,"0") ->  | E33: =IF($C33=#REF!,#REF!,"0") ->  | F33: =IF($C33=#REF!,#REF!,"0") ->  | G33: =IF($C33=#REF!,#REF!,"0") ->  | H33: =IF($C33=#REF!,#REF!,"0") ->  | I33: =IF($C33=#REF!,#REF!,"0") ->  | J33: =IF($C33=#REF!,#REF!,"0") ->  | K33: =IF($C33=#REF!,#REF!,"0") ->  | L33: =IF($C33=#REF!,#REF!,"0") ->  | M33: =IF($C33=#REF!,#REF!,"0") ->  | N33: 0 | Q33: %
B34: 1 | C34: 2022-04-28 | D34: =IF($C34=#REF!,#REF!,"0") ->  | E34: =IF($C34=#REF!,#REF!,"0") ->  | F34: =IF($C34=#REF!,#REF!,"0") ->  | G34: =IF($C34=#REF!,#REF!,"0") ->  | H34: =IF($C34=#REF!,#REF!,"0") ->  | I34: =IF($C34=#REF!,#REF!,"0") ->  | J34: =IF($C34=#REF!,#REF!,"0") ->  | K34: =IF($C34=#REF!,#REF!,"0") ->  | L34: =IF($C34=#REF!,#REF!,"0") ->  | M34: =IF($C34=#REF!,#REF!,"0") ->  | N34: 0 | Q34: %
B35: 1 | C35: 2022-04-29 | D35: =IF($C35=#REF!,#REF!,"0") ->  | E35: =IF($C35=#REF!,#REF!,"0") ->  | F35: =IF($C35=#REF!,#REF!,"0") ->  | G35: =IF($C35=#REF!,#REF!,"0") ->  | H35: =IF($C35=#REF!,#REF!,"0") ->  | I35: =IF($C35=#REF!,#REF!,"0") ->  | J35: =IF($C35=#REF!,#REF!,"0") ->  | K35: =IF($C35=#REF!,#REF!,"0") ->  | L35: =IF($C35=#REF!,#REF!,"0") ->  | M35: =IF($C35=#REF!,#REF!,"0") ->  | N35: 0 | Q35: %
B36: 1 | C36: 2022-04-30 | D36: =IF($C36=#REF!,#REF!,"0") ->  | E36: =IF($C36=#REF!,#REF!,"0") ->  | F36: =IF($C36=#REF!,#REF!,"0") ->  | G36: =IF($C36=#REF!,#REF!,"0") ->  | H36: =IF($C36=#REF!,#REF!,"0") ->  | I36: =IF($C36=#REF!,#REF!,"0") ->  | J36: =IF($C36=#REF!,#REF!,"0") ->  | K36: =IF($C36=#REF!,#REF!,"0") ->  | L36: =IF($C36=#REF!,#REF!,"0") ->  | M36: =IF($C36=#REF!,#REF!,"0") ->  | N36: 0 | Q36: %
C37: 2022-05-01 | D37: =IF(SUM(D24:D29)+SUM(D17:D22)+SUM(D31:D36)+SUM(D10:D15)+SUM(D7:D8)>(D44*(4/$Q$2)),"ä","æ") ->  | E37: =IF(SUM(E24:E29)+SUM(E17:E22)+SUM(E31:E36)+SUM(E10:E15)+SUM(E7:E8)>(E44*(4/$Q$2)),"ä","æ") ->  | N37: æ | Q37: æ | R37: æ
D38: =IF(SUM(D25:D30)+SUM(D18:D23)+SUM(D32:D37)+SUM(D11:D16)+SUM(D4:D9)>(D42),"ä","æ") ->  | N38: æ | Q38: æ | R38: æ
A41: =SUM(A34:A37,A27:A32,A20:A25,A13:A18,A7:A11) ->  | B41: =SUM(B7:B37) -> 26 | C41: TOTAL MTD | D41: =SUM(D7:D37) ->  | N41: 0 | O41: =SUM(O8:O37) ->  | P41: =SUM(P7:P37) ->  | Q41: %
D43: MO | F43: B | H43: F | J43: MI | L43: I | N43: TX | O43: CA | P43: IMU | Q43: % IMU | R43: PM
C44: OBJECTIF MTD
C45: INDEX (vs AOP) | D45: =IF(D52>(D44/$B$41),"ä","æ") ->  | E45: =IF(E52>(E44/$B$41),"ä","æ") ->  | Q45: =IF(Q41>Q44,"ä","æ") -> ä | R45: =IF(R41>R44,"ä","æ") -> æ
C46: % RÉALISÉ | D46: =SUM(D41/D44) ->  | F46: =SUM(F41/F44) ->  | H46: =SUM(H41/H44) ->  | N46: =SUM(N41/N44) ->  | O46: =(D41+F41+H41+J41+L41)/O44 ->  | P46: =(E41+G41+I41+K41+M41)/P44 ->  | Q46: =IF(ISERROR(Q41-Q44),"",Q41-Q44) ->  | R46: =IF(ISERROR(R41-R44),"",R41-R44) -> 
C47: INDEX (vs % Réal Attendu) | D47: =IF(D46>$Q$53,"ä","æ") ->  | E47: =IF(E46>$Q$53,"ä","æ") -> 
D50: MO | F50: B | H50: F | J50: MI | L50: I | N50: TX | O50: CA | P50: MARGE | Q50: Nb de Jours restants mois | R50: =+$R$51-$A$41 -> 
C51: CA/MGE/TR Restants à faire/ jour | D51: =IF($R$50=0,D44-D41,(D44-D41)/$R$50) ->  | O51: =D51+F51+H51+J51+L51 ->  | P51: =E51+G51+I51+K51+M51 ->  | Q51: Nb de jours dans le mois | R51: =B41 -> 26
D52: =D41/$A$41 ->  | E52: =E41/$A$41 ->  | Q52: % Réalisation Attendu
D53: PÔLE | Q53: =((100/$R$51)*($R$51-$R$50))/100 -> 
E55: CA | G55: IMU
D56: OBJECTIF MTD | E56: =+F44+J44 -> 0 | G56: =+G44+K44 -> 0 | I56: ² | K56: CA | L56: IMU
D57: Réalisé MTD | E57: =+F41+J41 ->  | G57: =+G41+K41 ->  | J57: CA/MGE Restants à faire/jour | K57: =+F51+J51 ->  | L57: =+G51+K51 -> 
D58: INDEX | E58: =IF(E57>E60,"ä","æ") ->  | F58: =IF(F54>F61,"ä","æ") -> æ | G58: =IF(G57>G60,"ä","æ") -> 
D59: % RÉALISÉ | E59: =+$E$57/$E$56 ->  | G59: =+$G$57/$G$56 -> 
E60: =(E56/$R$51)*($R$51-$R$50) ->  | G60: =(G56/$R$51)*($R$51-$R$50) -> 
E63: S1 | G63: S2 | I63: S3 | K63: S4 | M63: S5 | O63: CONTRÔLE | Q63: TOTAL DIVISIONS | Y63: AOP DIVISIONS | AD63: Delta VS Prime T2 | AF63: Delta VS Prime T300
E64: CA | F64: MARGE | G64: CA | H64: MARGE | I64: CA | J64: MARGE | K64: CA | L64: MARGE | M64: CA | N64: MARGE | O64: CA | P64: MARGE | Q64: CA | R64: MARGE | Y64: CA | Z64: MARGE | AA64: CA/Sem | AB64: Marge/Sem | AD64: CA(85%) | AE64: MARGE (90%) | AF64: CA (95%) | AG64: MARGE (95%)
A65: =D65 -> MOBILIER | C65: 1 | D65: MOBILIER | E65: =SUM(D6:D11) ->  | F65: =SUM(E6:E11) ->  | G65: =SUM(D13:D18) ->  | H65: =SUM(E13:E18) ->  | I65: =SUM(D20:D25) ->  | J65: =SUM(E20:E25) ->  | K65: =SUM(D27:D32) ->  | L65: =SUM(E27:E32) ->  | M65: =SUM(D34:D39) ->  | N65: =SUM(E34:E39) ->  | O65: =IF(SUM(E65,G65,I65,K65,M65)=D41,"OK","NOK") ->  | P65: =IF(SUM(F65,H65,J65,L65,N65)=E41,"OK","NOK") ->  | Q65: =SUM(E65,G65,I65,K65,M65) ->  | X65: MOBILIER | Y65: =+D44 -> 0 | Z65: =+E44 -> 0 | AA65: =Y65/$Q$2 -> 0 | AB65: =Z65/$Q$2 -> 0 | AC65: MOB | AD65: =Y65*85% -> 0 | AE65: =Z65*90% -> 0
A66: =D66 -> BUREAUTIQUE | C66: 2 | D66: BUREAUTIQUE | E66: =SUM(F6:F11) ->  | F66: =SUM(G6:G11) ->  | G66: =SUM(F13:F18) ->  | H66: =SUM(G13:G18) ->  | I66: =SUM(F20:F25) ->  | J66: =SUM(G20:G25) ->  | K66: =SUM(F27:F32) ->  | L66: =SUM(G27:G32) ->  | M66: =SUM(F34:F39) ->  | N66: =SUM(G34:G39) ->  | O66: =IF(SUM(E66,G66,I66,K66,M66)=F41,"OK","NOK") ->  | P66: =IF(SUM(F66,H66,J66,L66,N66)=G41,"OK","NOK") ->  | X66: BUREAUTIQUE | Y66: =+F44 -> 0 | Z66: =+G44 -> 0 | AA66: =Y66/$Q$2 -> 0 | AB66: 0 | AC66: BUR | AD66: 0 | AE66: 0
A67: FOURNITURES | C67: 3 | D67: FOURNITURES | E67: =SUM(H6:H11) ->  | F67: =SUM(I6:I11) ->  | G67: =SUM(H13:H18) ->  | H67: =SUM(I13:I18) ->  | I67: =SUM(H20:H25) ->  | J67: =SUM(I20:I25) ->  | K67: =SUM(H27:H32) ->  | L67: =SUM(I27:I32) ->  | M67: =SUM(H34:H39) ->  | N67: =SUM(I34:I39) ->  | O67: =IF(SUM(E67,G67,I67,K67,M67)=H41,"OK","NOK") ->  | P67: =IF(SUM(F67,H67,J67,L67,N67)=I41,"OK","NOK") ->  | X67: FOURNITURES | Y67: =+H44 -> 0 | Z67: =+I44 -> 0 | AA67: 0 | AB67: 0 | AC67: FOURN | AD67: 0 | AE67: 0
A68: MICRO | C68: 4 | D68: MICRO | E68: =SUM(J6:J11) ->  | F68: =SUM(K6:K11) ->  | G68: =SUM(J13:J18) ->  | H68: =SUM(K13:K18) ->  | I68: =SUM(J20:J25) ->  | J68: =SUM(K20:K25) ->  | K68: =SUM(J27:J32) ->  | L68: =SUM(K27:K32) ->  | M68: =SUM(J34:J39) ->  | N68: =SUM(K34:K39) ->  | O68: =IF(SUM(E68,G68,I68,K68,M68)=J41,"OK","NOK") ->  | P68: =IF(SUM(F68,H68,J68,L68,N68)=K41,"OK","NOK") ->  | X68: MICRO | Y68: =+J44 -> 0 | Z68: =+K44 -> 0 | AA68: 0 | AB68: 0 | AC68: MICRO | AD68: 0 | AE68: 0
A69: COPIE IMPRIMERIE | C69: 9 | D69: COPIE IMPRIMERIE | E69: =SUM(L6:L11) ->  | F69: =SUM(M6:M11) ->  | G69: =SUM(L13:L18) ->  | H69: =SUM(M13:M18) ->  | I69: =SUM(L20:L25) ->  | J69: =SUM(M20:M25) ->  | K69: =SUM(L27:L32) ->  | L69: =SUM(M27:M32) ->  | M69: =SUM(L34:L39) ->  | N69: =SUM(M34:M39) ->  | O69: =IF(SUM(E69,G69,I69,K69,M69)=L41,"OK","NOK") ->  | P69: =IF(SUM(F69,H69,J69,L69,N69)=M41,"OK","NOK") ->  | X69: COPIE IMPRIMERIE | Y69: =+L44 -> 0 | Z69: =+M44 -> 0 | AA69: 0 | AB69: 0 | AC69: IMAG | AD69: 0 | AE69: 0 | AI69: PDM Imag
A70: Pôle Techno | C70: 2&4 | D70: Pôle Techno | E70: =SUM(E66,E68) ->  | F70: =SUM(F66,F68) ->  | X70: Pôle Techno | Y70: =+Y66+Y68 -> 0 | Z70: =+Z66+Z68 -> 0 | AA70: 0 | AB70: 0 | AD70: 0 | AE70: 0 | AI70: =+Q69/Q71 -> 
A71: MAGASIN | D71: MAGASIN | E71: =SUM(E65:E69) ->  | F71: =SUM(F65:F69) ->  | Q71: =SUM(Q65:Q69) ->  | R71: =SUM(R65:R69) ->  | X71: MAGASIN | Y71: =SUM(Y65:Y69) -> 0 | Z71: =SUM(Z65:Z69) -> 0 | AA71: 0 | AB71: 0 | AF71: =Y71*95% -> 0 | AG71: =Z71*95% -> 0 | AH71: OD | AI71: =IF(AND($AI$70>=4%,$AI$70<5%),25,IF($AI$70>=5%,50,0)) ->  | AJ71: 0.05
D72: CONTRÔLE | E72: =IF(SUM(E65:E69)=SUM(O6:O11),"OK","NOK") ->  | F72: =IF(SUM(F65:F69)=SUM(P6:P11),"OK","NOK") ->  | G72: =IF(SUM(G65:G69)=SUM(O13:O18),"OK","NOK") ->  | H72: =IF(SUM(H65:H69)=SUM(P13:P18),"OK","NOK") ->  | I72: =IF(SUM(I65:I69)=SUM(O20:O25),"OK","NOK") ->  | J72: =IF(SUM(J65:J69)=SUM(P20:P25),"OK","NOK") ->  | K72: =IF(SUM(K65:K69)=SUM(O27:O32),"OK","NOK") ->  | L72: =IF(SUM(L65:L69)=SUM(P27:P32),"OK","NOK") ->  | M72: =IF(SUM(M65:M69)=SUM(O34:O39),"OK","NOK") ->  | N72: =IF(SUM(N65:N69)=SUM(P34:P39),"OK","NOK") ->  | AH72: ODC | AI72: =IF(AND($AI$70>=9%,$AI$70<10%),25,IF($AI$70>=10%,50,0)) ->  | AJ72: 0.1

Sheet MAI
L2: Mai | O2: 2022 | Q2: 4
D4: MO | F4: B | H4: F | J4: MI | L4: C | N4: TRANSAC JOUR | O4: CA JOUR | P4: IMU JOUR | Q4: % IMU | R4: PM JOUR
D5: CA | E5: IMU | F5: CA | G5: IMU | H5: CA | I5: IMU | J5: CA | K5: IMU | L5: CA | M5: IMU
C6: 2022-02-28 | D6: 0 | E6: 0 | F6: 0 | G6: 0 | H6: 0 | I6: 0 | J6: 0 | K6: 0 | L6: 0 | M6: 0 | N6: 0 | O6: =D6+F6+H6+J6+L6 -> 0 | P6: =SUM(E6+G6+I6+K6+M6) -> 0 | Q6: =IF(ISERROR(P6/O6),"%",P6/O6) -> % | R6: =IF(N6=0,"",O6/N6) -> 
A7: =IF(O7=0,0,1) ->  | B7: =IF(C6,1,0) -> 1 | C7: 2022-05-02 | D7: =IF($C7=#REF!,#REF!,"0") ->  | E7: =IF($C7=#REF!,#REF!,"0") ->  | F7: =IF($C7=#REF!,#REF!,"0") ->  | G7: =IF($C7=#REF!,#REF!,"0") ->  | H7: =IF($C7=#REF!,#REF!,"0") ->  | I7: =IF($C7=#REF!,#REF!,"0") ->  | J7: =IF($C7=#REF!,#REF!,"0") ->  | K7: =IF($C7=#REF!,#REF!,"0") ->  | L7: =IF($C7=#REF!,#REF!,"0") ->  | M7: =IF($C7=#REF!,#REF!,"0") ->  | N7: 0 | Q7: % | R7: =IF(N7=0,"",O7/N7) -> 
A8: =IF(O8=0,0,1) ->  | B8: =IF(C7,1,0) -> 1 | C8: =C7+1 -> 2022-05-03 | D8: =IF($C8=#REF!,#REF!,"0") ->  | E8: =IF($C8=#REF!,#REF!,"0") ->  | F8: =IF($C8=#REF!,#REF!,"0") ->  | G8: =IF($C8=#REF!,#REF!,"0") ->  | H8: =IF($C8=#REF!,#REF!,"0") ->  | I8: =IF($C8=#REF!,#REF!,"0") ->  | J8: =IF($C8=#REF!,#REF!,"0") ->  | K8: =IF($C8=#REF!,#REF!,"0") ->  | L8: =IF($C8=#REF!,#REF!,"0") ->  | M8: =IF($C8=#REF!,#REF!,"0") ->  | N8: 0 | Q8: %
B9: 1 | C9: 2022-05-04 | D9: =IF($C9=#REF!,#REF!,"0") ->  | E9: =IF($C9=#REF!,#REF!,"0") ->  | F9: =IF($C9=#REF!,#REF!,"0") ->  | G9: =IF($C9=#REF!,#REF!,"0") ->  | H9: =IF($C9=#REF!,#REF!,"0") ->  | I9: =IF($C9=#REF!,#REF!,"0") ->  | J9: =IF($C9=#REF!,#REF!,"0") ->  | K9: =IF($C9=#REF!,#REF!,"0") ->  | L9: =IF($C9=#REF!,#REF!,"0") ->  | M9: =IF($C9=#REF!,#REF!,"0") ->  | N9: 0 | Q9: %
B10: 1 | C10: 2022-05-05 | D10: =IF($C10=#REF!,#REF!,"0") ->  | E10: =IF($C10=#REF!,#REF!,"0") ->  | F10: =IF($C10=#REF!,#REF!,"0") ->  | G10: =IF($C10=#REF!,#REF!,"0") ->  | H10: =IF($C10=#REF!,#REF!,"0") ->  | I10: =IF($C10=#REF!,#REF!,"0") ->  | J10: =IF($C10=#REF!,#REF!,"0") ->  | K10: =IF($C10=#REF!,#REF!,"0") ->  | L10: =IF($C10=#REF!,#REF!,"0") ->  | M10: =IF($C10=#REF!,#REF!,"0") ->  | N10: 0 | Q10: %
B11: 1 | C11: 2022-05-06 | D11: =IF($C11=#REF!,#REF!,"0") ->  | E11: =IF($C11=#REF!,#REF!,"0") ->  | F11: =IF($C11=#REF!,#REF!,"0") ->  | G11: =IF($C11=#REF!,#REF!,"0") ->  | H11: =IF($C11=#REF!,#REF!,"0") ->  | I11: =IF($C11=#REF!,#REF!,"0") ->  | J11: =IF($C11=#REF!,#REF!,"0") ->  | K11: =IF($C11=#REF!,#REF!,"0") ->  | L11: =IF($C11=#REF!,#REF!,"0") ->  | M11: =IF($C11=#REF!,#REF!,"0") ->  | N11: 0 | Q11: %
B12: 1 | C12: 2022-05-07 | D12: =IF($C12=#REF!,#REF!,"0") ->  | E12: =IF($C12=#REF!,#REF!,"0") ->  | F12: =IF($C12=#REF!,#REF!,"0") ->  | G12: =IF($C12=#REF!,#REF!,"0") ->  | H12: =IF($C12=#REF!,#REF!,"0") ->  | I12: =IF($C12=#REF!,#REF!,"0") ->  | J12: =IF($C12=#REF!,#REF!,"0") ->  | K12: =IF($C12=#REF!,#REF!,"0") ->  | L12: =IF($C12=#REF!,#REF!,"0") ->  | M12: =IF($C12=#REF!,#REF!,"0") ->  | N12: 0 | Q12: %
C13: =C12+1 -> 2022-05-08 | D13: =IF(SUM(D7:D12)>(D44*(1/$Q$2)),"ä","æ") ->  | E13: =IF(SUM(E7:E12)>(E44*(1/$Q$2)),"ä","æ") ->  | N13: æ | Q13: æ | R13: æ
B14: 1 | C14: 2022-05-09 | D14: =IF($C14=#REF!,#REF!,"0") ->  | E14: =IF($C14=#REF!,#REF!,"0") ->  | F14: =IF($C14=#REF!,#REF!,"0") ->  | G14: =IF($C14=#REF!,#REF!,"0") ->  | H14: =IF($C14=#REF!,#REF!,"0") ->  | I14: =IF($C14=#REF!,#REF!,"0") ->  | J14: =IF($C14=#REF!,#REF!,"0") ->  | K14: =IF($C14=#REF!,#REF!,"0") ->  | L14: =IF($C14=#REF!,#REF!,"0") ->  | M14: =IF($C14=#REF!,#REF!,"0") ->  | N14: 0 | O14: =D14+F14+H14+J14+L14 ->  | P14: =SUM(E14+G14+I14+K14+M14) ->  | Q14: %
B15: 1 | C15: 2022-05-10 | D15: =IF($C15=#REF!,#REF!,"0") ->  | E15: =IF($C15=#REF!,#REF!,"0") ->  | F15: =IF($C15=#REF!,#REF!,"0") ->  | G15: =IF($C15=#REF!,#REF!,"0") ->  | H15: =IF($C15=#REF!,#REF!,"0") ->  | I15: =IF($C15=#REF!,#REF!,"0") ->  | J15: =IF($C15=#REF!,#REF!,"0") ->  | K15: =IF($C15=#REF!,#REF!,"0") ->  | L15: =IF($C15=#REF!,#REF!,"0") ->  | M15: =IF($C15=#REF!,#REF!,"0") ->  | N15: 0 | O15: =D15+F15+H15+J15+L15 ->  | Q15: %
B16: 1 | C16: 2022-05-11 | D16: =IF($C16=#REF!,#REF!,"0") ->  | E16: =IF($C16=#REF!,#REF!,"0") ->  | F16: =IF($C16=#REF!,#REF!,"0") ->  | G16: =IF($C16=#REF!,#REF!,"0") ->  | H16: =IF($C16=#REF!,#REF!,"0") ->  | I16: =IF($C16=#REF!,#REF!,"0") ->  | J16: =IF($C16=#REF!,#REF!,"0") ->  | K16: =IF($C16=#REF!,#REF!,"0") ->  | L16: =IF($C16=#REF!,#REF!,"0") ->  | M16: =IF($C16=#REF!,#REF!,"0") ->  | N16: 0 | O16: =D16+F16+H16+J16+L16 ->  | Q16: %
B17: 1 | C17: 2022-05-12 | D17: =IF($C17=#REF!,#REF!,"0") ->  | E17: =IF($C17=#REF!,#REF!,"0") ->  | F17: =IF($C17=#REF!,#REF!,"0") ->  | G17: =IF($C17=#REF!,#REF!,"0") ->  | H17: =IF($C17=#REF!,#REF!,"0") ->  | I17: =IF($C17=#REF!,#REF!,"0") ->  | J17: =IF($C17=#REF!,#REF!,"0") ->  | K17: =IF($C17=#REF!,#REF!,"0") ->  | L17: =IF($C17=#REF!,#REF!,"0") ->  | M17: =IF($C17=#REF!,#REF!,"0") ->  | N17: 0 | O17: =D17+F17+H17+J17+L17 ->  | Q17: %
B18: 1 | C18: 2022-05-13 | D18: =IF($C18=#REF!,#REF!,"0") ->  | E18: =IF($C18=#REF!,#REF!,"0") ->  | F18: =IF($C18=#REF!,#REF!,"0") ->  | G18: =IF($C18=#REF!,#REF!,"0") ->  | H18: =IF($C18=#REF!,#REF!,"0") ->  | I18: =IF($C18=#REF!,#REF!,"0") ->  | J18: =IF($C18=#REF!,#REF!,"0") ->  | K18: =IF($C18=#REF!,#REF!,"0") ->  | L18: =IF($C18=#REF!,#REF!,"0") ->  | M18: =IF($C18=#REF!,#REF!,"0") ->  | N18: 0 | Q18: %
B19: 1 | C19: 2022-05-14 | D19: =IF($C19=#REF!,#REF!,"0") ->  | E19: =IF($C19=#REF!,#REF!,"0") ->  | F19: =IF($C19=#REF!,#REF!,"0") ->  | G19: =IF($C19=#REF!,#REF!,"0") ->  | H19: =IF($C19=#REF!,#REF!,"0") ->  | I19: =IF($C19=#REF!,#REF!,"0") ->  | J19: =IF($C19=#REF!,#REF!,"0") ->  | K19: =IF($C19=#REF!,#REF!,"0") ->  | L19: =IF($C19=#REF!,#REF!,"0") ->  | M19: =IF($C19=#REF!,#REF!,"0") ->  | N19: 0 | Q19: %
C20: 2022-05-15 | D20: =IF(SUM(D14:D19)+SUM(D7:D12)>(D44*(2/$Q$2)),"ä","æ") ->  | E20: =IF(SUM(E14:E19)+SUM(E7:E12)>(E44*(2/$Q$2)),"ä","æ") ->  | F20: =IF(SUM(F14:F19)+SUM(F7:F12)>(F44*(2/$Q$2)),"ä","æ") ->  | N20: æ | Q20: æ | R20: æ
B21: 1 | C21: 2022-05-16 | D21: =IF($C21=#REF!,#REF!,"0") ->  | E21: =IF($C21=#REF!,#REF!,"0") ->  | F21: =IF($C21=#REF!,#REF!,"0") ->  | G21: =IF($C21=#REF!,#REF!,"0") ->  | H21: =IF($C21=#REF!,#REF!,"0") ->  | I21: =IF($C21=#REF!,#REF!,"0") ->  | J21: =IF($C21=#REF!,#REF!,"0") ->  | K21: =IF($C21=#REF!,#REF!,"0") ->  | L21: =IF($C21=#REF!,#REF!,"0") ->  | M21: =IF($C21=#REF!,#REF!,"0") ->  | N21: 0 | Q21: %
B22: 1 | C22: 2022-05-17 | D22: =IF($C22=#REF!,#REF!,"0") ->  | E22: =IF($C22=#REF!,#REF!,"0") ->  | F22: =IF($C22=#REF!,#REF!,"0") ->  | G22: =IF($C22=#REF!,#REF!,"0") ->  | H22: =IF($C22=#REF!,#REF!,"0") ->  | I22: =IF($C22=#REF!,#REF!,"0") ->  | J22: =IF($C22=#REF!,#REF!,"0") ->  | K22: =IF($C22=#REF!,#REF!,"0") ->  | L22: =IF($C22=#REF!,#REF!,"0") ->  | M22: =IF($C22=#REF!,#REF!,"0") ->  | N22: 0 | Q22: %
B23: 1 | C23: 2022-05-18 | D23: =IF($C23=#REF!,#REF!,"0") ->  | E23: =IF($C23=#REF!,#REF!,"0") ->  | F23: =IF($C23=#REF!,#REF!,"0") ->  | G23: =IF($C23=#REF!,#REF!,"0") ->  | H23: =IF($C23=#REF!,#REF!,"0") ->  | I23: =IF($C23=#REF!,#REF!,"0") ->  | J23: =IF($C23=#REF!,#REF!,"0") ->  | K23: =IF($C23=#REF!,#REF!,"0") ->  | L23: =IF($C23=#REF!,#REF!,"0") ->  | M23: =IF($C23=#REF!,#REF!,"0") ->  | N23: 0 | Q23: %
B24: 1 | C24: 2022-05-19 | D24: =IF($C24=#REF!,#REF!,"0") ->  | E24: =IF($C24=#REF!,#REF!,"0") ->  | F24: =IF($C24=#REF!,#REF!,"0") ->  | G24: =IF($C24=#REF!,#REF!,"0") ->  | H24: =IF($C24=#REF!,#REF!,"0") ->  | I24: =IF($C24=#REF!,#REF!,"0") ->  | J24: =IF($C24=#REF!,#REF!,"0") ->  | K24: =IF($C24=#REF!,#REF!,"0") ->  | L24: =IF($C24=#REF!,#REF!,"0") ->  | M24: =IF($C24=#REF!,#REF!,"0") ->  | N24: 0 | Q24: %
B25: 1 | C25: 2022-05-20 | D25: =IF($C25=#REF!,#REF!,"0") ->  | E25: =IF($C25=#REF!,#REF!,"0") ->  | F25: =IF($C25=#REF!,#REF!,"0") ->  | G25: =IF($C25=#REF!,#REF!,"0") ->  | H25: =IF($C25=#REF!,#REF!,"0") ->  | I25: =IF($C25=#REF!,#REF!,"0") ->  | J25: =IF($C25=#REF!,#REF!,"0") ->  | K25: =IF($C25=#REF!,#REF!,"0") ->  | L25: =IF($C25=#REF!,#REF!,"0") ->  | M25: =IF($C25=#REF!,#REF!,"0") ->  | N25: 0 | Q25: %
B26: 1 | C26: 2022-05-21 | D26: =IF($C26=#REF!,#REF!,"0") ->  | E26: =IF($C26=#REF!,#REF!,"0") ->  | F26: =IF($C26=#REF!,#REF!,"0") ->  | G26: =IF($C26=#REF!,#REF!,"0") ->  | H26: =IF($C26=#REF!,#REF!,"0") ->  | I26: =IF($C26=#REF!,#REF!,"0") ->  | J26: =IF($C26=#REF!,#REF!,"0") ->  | K26: =IF($C26=#REF!,#REF!,"0") ->  | L26: =IF($C26=#REF!,#REF!,"0") ->  | M26: =IF($C26=#REF!,#REF!,"0") ->  | N26: 0 | Q26: %
C27: 2022-05-22 | D27: =IF(SUM(D14:D19)+SUM(D7:D12)+SUM(D21:D26)>(D44*(3/$Q$2)),"ä","æ") ->  | E27: =IF(SUM(E14:E19)+SUM(E7:E12)+SUM(E21:E26)>(E44*(3/$Q$2)),"ä","æ") ->  | N27: æ | Q27: æ | R27: æ
B28: 1 | C28: 2022-05-23 | D28: =IF($C28=#REF!,#REF!,"0") ->  | E28: =IF($C28=#REF!,#REF!,"0") ->  | F28: =IF($C28=#REF!,#REF!,"0") ->  | G28: =IF($C28=#REF!,#REF!,"0") ->  | H28: =IF($C28=#REF!,#REF!,"0") ->  | I28: =IF($C28=#REF!,#REF!,"0") ->  | J28: =IF($C28=#REF!,#REF!,"0") ->  | K28: =IF($C28=#REF!,#REF!,"0") ->  | L28: =IF($C28=#REF!,#REF!,"0") ->  | M28: =IF($C28=#REF!,#REF!,"0") ->  | N28: 0 | Q28: %
B29: 1 | C29: 2022-05-24 | D29: =IF($C29=#REF!,#REF!,"0") ->  | E29: =IF($C29=#REF!,#REF!,"0") ->  | F29: =IF($C29=#REF!,#REF!,"0") ->  | G29: =IF($C29=#REF!,#REF!,"0") ->  | H29: =IF($C29=#REF!,#REF!,"0") ->  | I29: =IF($C29=#REF!,#REF!,"0") ->  | J29: =IF($C29=#REF!,#REF!,"0") ->  | K29: =IF($C29=#REF!,#REF!,"0") ->  | L29: =IF($C29=#REF!,#REF!,"0") ->  | M29: =IF($C29=#REF!,#REF!,"0") ->  | N29: 0 | Q29: %
B30: 1 | C30: 2022-05-25 | D30: =IF($C30=#REF!,#REF!,"0") ->  | E30: =IF($C30=#REF!,#REF!,"0") ->  | F30: =IF($C30=#REF!,#REF!,"0") ->  | G30: =IF($C30=#REF!,#REF!,"0") ->  | H30: =IF($C30=#REF!,#REF!,"0") ->  | I30: =IF($C30=#REF!,#REF!,"0") ->  | J30: =IF($C30=#REF!,#REF!,"0") ->  | K30: =IF($C30=#REF!,#REF!,"0") ->  | L30: =IF($C30=#REF!,#REF!,"0") ->  | M30: =IF($C30=#REF!,#REF!,"0") ->  | N30: 0 | Q30: %
B31: 1 | C31: 2022-05-26 | D31: =IF($C31=#REF!,#REF!,"0") ->  | E31: =IF($C31=#REF!,#REF!,"0") ->  | F31: =IF($C31=#REF!,#REF!,"0") ->  | G31: =IF($C31=#REF!,#REF!,"0") ->  | H31: =IF($C31=#REF!,#REF!,"0") ->  | I31: =IF($C31=#REF!,#REF!,"0") ->  | J31: =IF($C31=#REF!,#REF!,"0") ->  | K31: =IF($C31=#REF!,#REF!,"0") ->  | L31: =IF($C31=#REF!,#REF!,"0") ->  | M31: =IF($C31=#REF!,#REF!,"0") ->  | N31: 0 | Q31: %
B32: 1 | C32: 2022-05-27 | D32: =IF($C32=#REF!,#REF!,"0") ->  | E32: =IF($C32=#REF!,#REF!,"0") ->  | F32: =IF($C32=#REF!,#REF!,"0") ->  | G32: =IF($C32=#REF!,#REF!,"0") ->  | H32: =IF($C32=#REF!,#REF!,"0") ->  | I32: =IF($C32=#REF!,#REF!,"0") ->  | J32: =IF($C32=#REF!,#REF!,"0") ->  | K32: =IF($C32=#REF!,#REF!,"0") ->  | L32: =IF($C32=#REF!,#REF!,"0") ->  | M32: =IF($C32=#REF!,#REF!,"0") ->  | N32: 0 | Q32: %
B33: 1 | C33: 2022-05-28 | D33: =IF($C33=#REF!,#REF!,"0") ->  | E33: =IF($C33=#REF!,#REF!,"0") ->  | F33: =IF($C33=#REF!,#REF!,"0") ->  | G33: =IF($C33=#REF!,#REF!,"0") ->  | H33: =IF($C33=#REF!,#REF!,"0") ->  | I33: =IF($C33=#REF!,#REF!,"0") ->  | J33: =IF($C33=#REF!,#REF!,"0") ->  | K33: =IF($C33=#REF!,#REF!,"0") ->  | L33: =IF($C33=#REF!,#REF!,"0") ->  | M33: =IF($C33=#REF!,#REF!,"0") ->  | N33: 0 | Q33: %
C34: 2022-05-29 | D34: =IF(SUM(D21:D26)+SUM(D14:D19)+SUM(D28:D33)+SUM(D7:D12)>(D44*(4/$Q$2)),"ä","æ") ->  | E34: =IF(SUM(E21:E26)+SUM(E14:E19)+SUM(E28:E33)+SUM(E7:E12)>(E44*(4/$Q$2)),"ä","æ") ->  | N34: æ | Q34: æ | R34: æ
B35: 1 | C35: 2022-05-30 | D35: =IF($C35=#REF!,#REF!,"0") ->  | E35: =IF($C35=#REF!,#REF!,"0") ->  | F35: =IF($C35=#REF!,#REF!,"0") ->  | G35: =IF($C35=#REF!,#REF!,"0") ->  | H35: =IF($C35=#REF!,#REF!,"0") ->  | I35: =IF($C35=#REF!,#REF!,"0") ->  | J35: =IF($C35=#REF!,#REF!,"0") ->  | K35: =IF($C35=#REF!,#REF!,"0") ->  | L35: =IF($C35=#REF!,#REF!,"0") ->  | M35: =IF($C35=#REF!,#REF!,"0") ->  | N35: 0 | Q35: %
B36: 1 | C36: 2022-05-31 | D36: =IF($C36=#REF!,#REF!,"0") ->  | E36: =IF($C36=#REF!,#REF!,"0") ->  | F36: =IF($C36=#REF!,#REF!,"0") ->  | G36: =IF($C36=#REF!,#REF!,"0") ->  | H36: =IF($C36=#REF!,#REF!,"0") ->  | I36: =IF($C36=#REF!,#REF!,"0") ->  | J36: =IF($C36=#REF!,#REF!,"0") ->  | K36: =IF($C36=#REF!,#REF!,"0") ->  | L36: =IF($C36=#REF!,#REF!,"0") ->  | M36: =IF($C36=#REF!,#REF!,"0") ->  | N36: 0 | Q36: %
C37: 2022-06-01 | D37: =IF(SUM(D28:D33)+SUM(D21:D26)+SUM(D35:D36)+SUM(D14:D19)+SUM(D7:D12)>(D44*(4/$Q$2)),"ä","æ") ->  | E37: =IF(SUM(E28:E33)+SUM(E21:E26)+SUM(E35:E36)+SUM(E14:E19)+SUM(E7:E12)>(E44*(4/$Q$2)),"ä","æ") ->  | N37: æ | Q37: æ | R37: æ
D38: =IF(SUM(D25:D30)+SUM(D18:D23)+SUM(D32:D37)+SUM(D11:D16)+SUM(D4:D9)>(D42),"ä","æ") ->  | N38: æ | Q38: æ | R38: æ
A41: =SUM(A34:A37,A27:A32,A20:A25,A13:A18,A7:A11) ->  | B41: =SUM(B7:B37) -> 26 | C41: TOTAL MTD | D41: =SUM(D7:D37) ->  | N41: 0 | O41: =SUM(O8:O37) ->  | P41: =SUM(P7:P37) ->  | Q41: %
D43: MO | F43: B | H43: F | J43: MI | L43: I | N43: TX | O43: CA | P43: IMU | Q43: % IMU | R43: PM
C44: OBJECTIF MTD
C45: INDEX (vs AOP) | D45: =IF(D52>(D44/$B$41),"ä","æ") ->  | E45: =IF(E52>(E44/$B$41),"ä","æ") ->  | Q45: =IF(Q41>Q44,"ä","æ") -> ä | R45: =IF(R41>R44,"ä","æ") -> æ
C46: % RÉALISÉ | D46: =SUM(D41/D44) ->  | F46: =SUM(F41/F44) ->  | H46: =SUM(H41/H44) ->  | N46: =SUM(N41/N44) ->  | O46: =(D41+F41+H41+J41+L41)/O44 ->  | P46: =(E41+G41+I41+K41+M41)/P44 ->  | Q46: =IF(ISERROR(Q41-Q44),"",Q41-Q44) ->  | R46: =IF(ISERROR(R41-R44),"",R41-R44) -> 
C47: INDEX (vs % Réal Attendu) | D47: =IF(D46>$Q$53,"ä","æ") ->  | E47: =IF(E46>$Q$53,"ä","æ") -> 
D50: MO | F50: B | H50: F | J50: MI | L50: I | N50: TX | O50: CA | P50: MARGE | Q50: Nb de Jours restants mois | R50: =+$R$51-$A$41 -> 
C51: CA/MGE/TR Restants à faire/ jour | D51: =IF($R$50=0,D44-D41,(D44-D41)/$R$50) ->  | O51: =D51+F51+H51+J51+L51 ->  | P51: =E51+G51+I51+K51+M51 ->  | Q51: Nb de jours dans le mois | R51: =B41 -> 26
D52: =D41/$A$41 ->  | E52: =E41/$A$41 ->  | Q52: % Réalisation Attendu
D53: PÔLE | Q53: =((100/$R$51)*($R$51-$R$50))/100 -> 
E55: CA | G55: IMU
D56: OBJECTIF MTD | E56: =+F44+J44 -> 0 | G56: =+G44+K44 -> 0 | I56: ² | K56: CA | L56: IMU
D57: Réalisé MTD | E57: =+F41+J41 ->  | G57: =+G41+K41 ->  | J57: CA/MGE Restants à faire/jour | K57: =+F51+J51 ->  | L57: =+G51+K51 -> 
D58: INDEX | E58: =IF(E57>E60,"ä","æ") ->  | F58: =IF(F54>F61,"ä","æ") -> æ | G58: =IF(G57>G60,"ä","æ") -> 
D59: % RÉALISÉ | E59: =+$E$57/$E$56 ->  | G59: =+$G$57/$G$56 -> 
E60: =(E56/$R$51)*($R$51-$R$50) ->  | G60: =(G56/$R$51)*($R$51-$R$50) -> 
E63: S1 | G63: S2 | I63: S3 | K63: S4 | M63: S5 | O63: CONTRÔLE | Q63: TOTAL DIVISIONS | Y63: AOP DIVISIONS | AD63: Delta VS Prime T2 | AF63: Delta VS Prime T300
E64: CA | F64: MARGE | G64: CA | H64: MARGE | I64: CA | J64: MARGE | K64: CA | L64: MARGE | M64: CA | N64: MARGE | O64: CA | P64: MARGE | Q64: CA | R64: MARGE | Y64: CA | Z64: MARGE | AA64: CA/Sem | AB64: Marge/Sem | AD64: CA(85%) | AE64: MARGE (90%) | AF64: CA (95%) | AG64: MARGE (95%)
A65: =D65 -> MOBILIER | C65: 1 | D65: MOBILIER | E65: =SUM(D6:D11) ->  | F65: =SUM(E6:E11) ->  | G65: =SUM(D13:D18) ->  | H65: =SUM(E13:E18) ->  | I65: =SUM(D20:D25) ->  | J65: =SUM(E20:E25) ->  | K65: =SUM(D27:D32) ->  | L65: =SUM(E27:E32) ->  | M65: =SUM(D34:D39) ->  | N65: =SUM(E34:E39) ->  | O65: =IF(SUM(E65,G65,I65,K65,M65)=D41,"OK","NOK") ->  | P65: =IF(SUM(F65,H65,J65,L65,N65)=E41,"OK","NOK") ->  | Q65: =SUM(E65,G65,I65,K65,M65) ->  | X65: MOBILIER | Y65: =+D44 -> 0 | Z65: =+E44 -> 0 | AA65: =Y65/$Q$2 -> 0 | AB65: =Z65/$Q$2 -> 0 | AC65: MOB | AD65: =Y65*85% -> 0 | AE65: =Z65*90% -> 0
A66: =D66 -> BUREAUTIQUE | C66: 2 | D66: BUREAUTIQUE | E66: =SUM(F6:F11) ->  | F66: =SUM(G6:G11) ->  | G66: =SUM(F13:F18) ->  | H66: =SUM(G13:G18) ->  | I66: =SUM(F20:F25) ->  | J66: =SUM(G20:G25) ->  | K66: =SUM(F27:F32) ->  | L66: =SUM(G27:G32) ->  | M66: =SUM(F34:F39) ->  | N66: =SUM(G34:G39) ->  | O66: =IF(SUM(E66,G66,I66,K66,M66)=F41,"OK","NOK") ->  | P66: =IF(SUM(F66,H66,J66,L66,N66)=G41,"OK","NOK") ->  | X66: BUREAUTIQUE | Y66: =+F44 -> 0 | Z66: =+G44 -> 0 | AA66: =Y66/$Q$2 -> 0 | AB66: 0 | AC66: BUR | AD66: 0 | AE66: 0
A67: FOURNITURES | C67: 3 | D67: FOURNITURES | E67: =SUM(H6:H11) ->  | F67: =SUM(I6:I11) ->  | G67: =SUM(H13:H18) ->  | H67: =SUM(I13:I18) ->  | I67: =SUM(H20:H25) ->  | J67: =SUM(I20:I25) ->  | K67: =SUM(H27:H32) ->  | L67: =SUM(I27:I32) ->  | M67: =SUM(H34:H39) ->  | N67: =SUM(I34:I39) ->  | O67: =IF(SUM(E67,G67,I67,K67,M67)=H41,"OK","NOK") ->  | P67: =IF(SUM(F67,H67,J67,L67,N67)=I41,"OK","NOK") ->  | X67: FOURNITURES | Y67: =+H44 -> 0 | Z67: =+I44 -> 0 | AA67: 0 | AB67: 0 | AC67: FOURN | AD67: 0 | AE67: 0
A68: MICRO | C68: 4 | D68: MICRO | E68: =SUM(J6:J11) ->  | F68: =SUM(K6:K11) ->  | G68: =SUM(J13:J18) ->  | H68: =SUM(K13:K18) ->  | I68: =SUM(J20:J25) ->  | J68: =SUM(K20:K25) ->  | K68: =SUM(J27:J32) ->  | L68: =SUM(K27:K32) ->  | M68: =SUM(J34:J39) ->  | N68: =SUM(K34:K39) ->  | O68: =IF(SUM(E68,G68,I68,K68,M68)=J41,"OK","NOK") ->  | P68: =IF(SUM(F68,H68,J68,L68,N68)=K41,"OK","NOK") ->  | X68: MICRO | Y68: =+J44 -> 0 | Z68: =+K44 -> 0 | AA68: 0 | AB68: 0 | AC68: MICRO | AD68: 0 | AE68: 0
A69: COPIE IMPRIMERIE | C69: 9 | D69: COPIE IMPRIMERIE | E69: =SUM(L6:L11) ->  | F69: =SUM(M6:M11) ->  | G69: =SUM(L13:L18) ->  | H69: =SUM(M13:M18) ->  | I69: =SUM(L20:L25) ->  | J69: =SUM(M20:M25) ->  | K69: =SUM(L27:L32) ->  | L69: =SUM(M27:M32) ->  | M69: =SUM(L34:L39) ->  | N69: =SUM(M34:M39) ->  | O69: =IF(SUM(E69,G69,I69,K69,M69)=L41,"OK","NOK") ->  | P69: =IF(SUM(F69,H69,J69,L69,N69)=M41,"OK","NOK") ->  | X69: COPIE IMPRIMERIE | Y69: =+L44 -> 0 | Z69: =+M44 -> 0 | AA69: 0 | AB69: 0 | AC69: IMAG | AD69: 0 | AE69: 0 | AI69: PDM Imag
A70: Pôle Techno | C70: 2&4 | D70: Pôle Techno | E70: =SUM(E66,E68) ->  | F70: =SUM(F66,F68) ->  | X70: Pôle Techno | Y70: =+Y66+Y68 -> 0 | Z70: =+Z66+Z68 -> 0 | AA70: 0 | AB70: 0 | AD70: 0 | AE70: 0 | AI70: =+Q69/Q71 -> 
A71: MAGASIN | D71: MAGASIN | E71: =SUM(E65:E69) ->  | F71: =SUM(F65:F69) ->  | Q71: =SUM(Q65:Q69) ->  | R71: =SUM(R65:R69) ->  | X71: MAGASIN | Y71: =SUM(Y65:Y69) -> 0 | Z71: =SUM(Z65:Z69) -> 0 | AA71: 0 | AB71: 0 | AF71: =Y71*95% -> 0 | AG71: =Z71*95% -> 0 | AH71: OD | AI71: =IF(AND($AI$70>=4%,$AI$70<5%),25,IF($AI$70>=5%,50,0)) ->  | AJ71: 0.05
D72: CONTRÔLE | E72: =IF(SUM(E65:E69)=SUM(O6:O11),"OK","NOK") ->  | F72: =IF(SUM(F65:F69)=SUM(P6:P11),"OK","NOK") ->  | G72: =IF(SUM(G65:G69)=SUM(O13:O18),"OK","NOK") ->  | H72: =IF(SUM(H65:H69)=SUM(P13:P18),"OK","NOK") ->  | I72: =IF(SUM(I65:I69)=SUM(O20:O25),"OK","NOK") ->  | J72: =IF(SUM(J65:J69)=SUM(P20:P25),"OK","NOK") ->  | K72: =IF(SUM(K65:K69)=SUM(O27:O32),"OK","NOK") ->  | L72: =IF(SUM(L65:L69)=SUM(P27:P32),"OK","NOK") ->  | M72: =IF(SUM(M65:M69)=SUM(O34:O39),"OK","NOK") ->  | N72: =IF(SUM(N65:N69)=SUM(P34:P39),"OK","NOK") ->  | AH72: ODC | AI72: =IF(AND($AI$70>=9%,$AI$70<10%),25,IF($AI$70>=10%,50,0)) ->  | AJ72: 0.1

Sheet JUIN
L2: Juin | O2: 2022 | Q2: 5
D4: MO | F4: B | H4: F | J4: MI | L4: C | N4: TRANSAC JOUR | O4: CA JOUR | P4: IMU JOUR | Q4: % IMU | R4: PM JOUR
D5: CA | E5: IMU | F5: CA | G5: IMU | H5: CA | I5: IMU | J5: CA | K5: IMU | L5: CA | M5: IMU
C6: 2022-02-28 | D6: 0 | E6: 0 | F6: 0 | G6: 0 | H6: 0 | I6: 0 | J6: 0 | K6: 0 | L6: 0 | M6: 0 | N6: 0 | O6: =D6+F6+H6+J6+L6 -> 0 | P6: =SUM(E6+G6+I6+K6+M6) -> 0 | Q6: =IF(ISERROR(P6/O6),"%",P6/O6) -> % | R6: =IF(N6=0,"",O6/N6) -> 
A7: =IF(O7=0,0,1) ->  | B7: =IF(C6,1,0) -> 1 | C7: 2022-06-01 | D7: =IF($C7=#REF!,#REF!,"0") ->  | E7: =IF($C7=#REF!,#REF!,"0") ->  | F7: =IF($C7=#REF!,#REF!,"0") ->  | G7: =IF($C7=#REF!,#REF!,"0") ->  | H7: =IF($C7=#REF!,#REF!,"0") ->  | I7: =IF($C7=#REF!,#REF!,"0") ->  | J7: =IF($C7=#REF!,#REF!,"0") ->  | K7: =IF($C7=#REF!,#REF!,"0") ->  | L7: =IF($C7=#REF!,#REF!,"0") ->  | M7: =IF($C7=#REF!,#REF!,"0") ->  | N7: 0 | Q7: % | R7: =IF(N7=0,"",O7/N7) -> 
A8: =IF(O8=0,0,1) ->  | B8: =IF(C7,1,0) -> 1 | C8: =C7+1 -> 2022-06-02 | D8: =IF($C8=#REF!,#REF!,"0") ->  | E8: =IF($C8=#REF!,#REF!,"0") ->  | F8: =IF($C8=#REF!,#REF!,"0") ->  | G8: =IF($C8=#REF!,#REF!,"0") ->  | H8: =IF($C8=#REF!,#REF!,"0") ->  | I8: =IF($C8=#REF!,#REF!,"0") ->  | J8: =IF($C8=#REF!,#REF!,"0") ->  | K8: =IF($C8=#REF!,#REF!,"0") ->  | L8: =IF($C8=#REF!,#REF!,"0") ->  | M8: =IF($C8=#REF!,#REF!,"0") ->  | N8: 0 | Q8: %
B9: 1 | C9: 2022-06-03 | D9: =IF($C9=#REF!,#REF!,"0") ->  | E9: =IF($C9=#REF!,#REF!,"0") ->  | F9: =IF($C9=#REF!,#REF!,"0") ->  | G9: =IF($C9=#REF!,#REF!,"0") ->  | H9: =IF($C9=#REF!,#REF!,"0") ->  | I9: =IF($C9=#REF!,#REF!,"0") ->  | J9: =IF($C9=#REF!,#REF!,"0") ->  | K9: =IF($C9=#REF!,#REF!,"0") ->  | L9: =IF($C9=#REF!,#REF!,"0") ->  | M9: =IF($C9=#REF!,#REF!,"0") ->  | N9: 0 | Q9: %
B10: 1 | C10: 2022-06-04 | D10: =IF($C10=#REF!,#REF!,"0") ->  | E10: =IF($C10=#REF!,#REF!,"0") ->  | F10: =IF($C10=#REF!,#REF!,"0") ->  | G10: =IF($C10=#REF!,#REF!,"0") ->  | H10: =IF($C10=#REF!,#REF!,"0") ->  | I10: =IF($C10=#REF!,#REF!,"0") ->  | J10: =IF($C10=#REF!,#REF!,"0") ->  | K10: =IF($C10=#REF!,#REF!,"0") ->  | L10: =IF($C10=#REF!,#REF!,"0") ->  | M10: =IF($C10=#REF!,#REF!,"0") ->  | N10: 0 | Q10: %
C11: =C10+1 -> 2022-06-05 | D11: =IF(SUM(D7:D10)>(D44*(1/$Q$2)),"ä","æ") ->  | E11: =IF(SUM(E7:E10)>(E44*(1/$Q$2)),"ä","æ") ->  | N11: æ | Q11: æ | R11: æ
B12: 1 | C12: 2022-06-06 | D12: =IF($C12=#REF!,#REF!,"0") ->  | E12: =IF($C12=#REF!,#REF!,"0") ->  | F12: =IF($C12=#REF!,#REF!,"0") ->  | G12: =IF($C12=#REF!,#REF!,"0") ->  | H12: =IF($C12=#REF!,#REF!,"0") ->  | I12: =IF($C12=#REF!,#REF!,"0") ->  | J12: =IF($C12=#REF!,#REF!,"0") ->  | K12: =IF($C12=#REF!,#REF!,"0") ->  | L12: =IF($C12=#REF!,#REF!,"0") ->  | M12: =IF($C12=#REF!,#REF!,"0") ->  | N12: 0 | Q12: %
B13: 1 | C13: 2022-06-07 | D13: =IF($C13=#REF!,#REF!,"0") ->  | E13: =IF($C13=#REF!,#REF!,"0") ->  | F13: =IF($C13=#REF!,#REF!,"0") ->  | G13: =IF($C13=#REF!,#REF!,"0") ->  | H13: =IF($C13=#REF!,#REF!,"0") ->  | I13: =IF($C13=#REF!,#REF!,"0") ->  | J13: =IF($C13=#REF!,#REF!,"0") ->  | K13: =IF($C13=#REF!,#REF!,"0") ->  | L13: =IF($C13=#REF!,#REF!,"0") ->  | M13: =IF($C13=#REF!,#REF!,"0") ->  | N13: 0 | Q13: %
B14: 1 | C14: 2022-06-08 | D14: =IF($C14=#REF!,#REF!,"0") ->  | E14: =IF($C14=#REF!,#REF!,"0") ->  | F14: =IF($C14=#REF!,#REF!,"0") ->  | G14: =IF($C14=#REF!,#REF!,"0") ->  | H14: =IF($C14=#REF!,#REF!,"0") ->  | I14: =IF($C14=#REF!,#REF!,"0") ->  | J14: =IF($C14=#REF!,#REF!,"0") ->  | K14: =IF($C14=#REF!,#REF!,"0") ->  | L14: =IF($C14=#REF!,#REF!,"0") ->  | M14: =IF($C14=#REF!,#REF!,"0") ->  | N14: 0 | P14: =SUM(E14+G14+I14+K14+M14) ->  | Q14: %
B15: 1 | C15: 2022-06-09 | D15: =IF($C15=#REF!,#REF!,"0") ->  | E15: =IF($C15=#REF!,#REF!,"0") ->  | F15: =IF($C15=#REF!,#REF!,"0") ->  | G15: =IF($C15=#REF!,#REF!,"0") ->  | H15: =IF($C15=#REF!,#REF!,"0") ->  | I15: =IF($C15=#REF!,#REF!,"0") ->  | J15: =IF($C15=#REF!,#REF!,"0") ->  | K15: =IF($C15=#REF!,#REF!,"0") ->  | L15: =IF($C15=#REF!,#REF!,"0") ->  | M15: =IF($C15=#REF!,#REF!,"0") ->  | N15: 0 | O15: =D15+F15+H15+J15+L15 ->  | Q15: %
B16: 1 | C16: 2022-06-10 | D16: =IF($C16=#REF!,#REF!,"0") ->  | E16: =IF($C16=#REF!,#REF!,"0") ->  | F16: =IF($C16=#REF!,#REF!,"0") ->  | G16: =IF($C16=#REF!,#REF!,"0") ->  | H16: =IF($C16=#REF!,#REF!,"0") ->  | I16: =IF($C16=#REF!,#REF!,"0") ->  | J16: =IF($C16=#REF!,#REF!,"0") ->  | K16: =IF($C16=#REF!,#REF!,"0") ->  | L16: =IF($C16=#REF!,#REF!,"0") ->  | M16: =IF($C16=#REF!,#REF!,"0") ->  | N16: 0 | O16: =D16+F16+H16+J16+L16 ->  | Q16: %
B17: 1 | C17: 2022-06-11 | D17: =IF($C17=#REF!,#REF!,"0") ->  | E17: =IF($C17=#REF!,#REF!,"0") ->  | F17: =IF($C17=#REF!,#REF!,"0") ->  | G17: =IF($C17=#REF!,#REF!,"0") ->  | H17: =IF($C17=#REF!,#REF!,"0") ->  | I17: =IF($C17=#REF!,#REF!,"0") ->  | J17: =IF($C17=#REF!,#REF!,"0") ->  | K17: =IF($C17=#REF!,#REF!,"0") ->  | L17: =IF($C17=#REF!,#REF!,"0") ->  | M17: =IF($C17=#REF!,#REF!,"0") ->  | N17: 0 | O17: =D17+F17+H17+J17+L17 ->  | Q17: %
C18: 2022-06-12 | D18: =IF(SUM(D12:D17)+SUM(D7:D10)>(D44*(2/$Q$2)),"ä","æ") ->  | E18: =IF(SUM(E12:E17)+SUM(E7:E10)>(E44*(2/$Q$2)),"ä","æ") ->  | N18: æ | Q18: æ | R18: æ
B19: 1 | C19: 2022-06-13 | D19: =IF($C19=#REF!,#REF!,"0") ->  | E19: =IF($C19=#REF!,#REF!,"0") ->  | F19: =IF($C19=#REF!,#REF!,"0") ->  | G19: =IF($C19=#REF!,#REF!,"0") ->  | H19: =IF($C19=#REF!,#REF!,"0") ->  | I19: =IF($C19=#REF!,#REF!,"0") ->  | J19: =IF($C19=#REF!,#REF!,"0") ->  | K19: =IF($C19=#REF!,#REF!,"0") ->  | L19: =IF($C19=#REF!,#REF!,"0") ->  | M19: =IF($C19=#REF!,#REF!,"0") ->  | N19: 0 | Q19: %
B20: 1 | C20: 2022-06-14 | D20: =IF($C20=#REF!,#REF!,"0") ->  | E20: =IF($C20=#REF!,#REF!,"0") ->  | F20: =IF($C20=#REF!,#REF!,"0") ->  | G20: =IF($C20=#REF!,#REF!,"0") ->  | H20: =IF($C20=#REF!,#REF!,"0") ->  | I20: =IF($C20=#REF!,#REF!,"0") ->  | J20: =IF($C20=#REF!,#REF!,"0") ->  | K20: =IF($C20=#REF!,#REF!,"0") ->  | L20: =IF($C20=#REF!,#REF!,"0") ->  | M20: =IF($C20=#REF!,#REF!,"0") ->  | N20: 0 | Q20: %
B21: 1 | C21: 2022-06-15 | D21: =IF($C21=#REF!,#REF!,"0") ->  | E21: =IF($C21=#REF!,#REF!,"0") ->  | F21: =IF($C21=#REF!,#REF!,"0") ->  | G21: =IF($C21=#REF!,#REF!,"0") ->  | H21: =IF($C21=#REF!,#REF!,"0") ->  | I21: =IF($C21=#REF!,#REF!,"0") ->  | J21: =IF($C21=#REF!,#REF!,"0") ->  | K21: =IF($C21=#REF!,#REF!,"0") ->  | L21: =IF($C21=#REF!,#REF!,"0") ->  | M21: =IF($C21=#REF!,#REF!,"0") ->  | N21: 0 | Q21: %
B22: 1 | C22: 2022-06-16 | D22: =IF($C22=#REF!,#REF!,"0") ->  | E22: =IF($C22=#REF!,#REF!,"0") ->  | F22: =IF($C22=#REF!,#REF!,"0") ->  | G22: =IF($C22=#REF!,#REF!,"0") ->  | H22: =IF($C22=#REF!,#REF!,"0") ->  | I22: =IF($C22=#REF!,#REF!,"0") ->  | J22: =IF($C22=#REF!,#REF!,"0") ->  | K22: =IF($C22=#REF!,#REF!,"0") ->  | L22: =IF($C22=#REF!,#REF!,"0") ->  | M22: =IF($C22=#REF!,#REF!,"0") ->  | N22: 0 | Q22: %
B23: 1 | C23: 2022-06-17 | D23: =IF($C23=#REF!,#REF!,"0") ->  | E23: =IF($C23=#REF!,#REF!,"0") ->  | F23: =IF($C23=#REF!,#REF!,"0") ->  | G23: =IF($C23=#REF!,#REF!,"0") ->  | H23: =IF($C23=#REF!,#REF!,"0") ->  | I23: =IF($C23=#REF!,#REF!,"0") ->  | J23: =IF($C23=#REF!,#REF!,"0") ->  | K23: =IF($C23=#REF!,#REF!,"0") ->  | L23: =IF($C23=#REF!,#REF!,"0") ->  | M23: =IF($C23=#REF!,#REF!,"0") ->  | N23: 0 | Q23: %
B24: 1 | C24: 2022-06-18 | D24: =IF($C24=#REF!,#REF!,"0") ->  | E24: =IF($C24=#REF!,#REF!,"0") ->  | F24: =IF($C24=#REF!,#REF!,"0") ->  | G24: =IF($C24=#REF!,#REF!,"0") ->  | H24: =IF($C24=#REF!,#REF!,"0") ->  | I24: =IF($C24=#REF!,#REF!,"0") ->  | J24: =IF($C24=#REF!,#REF!,"0") ->  | K24: =IF($C24=#REF!,#REF!,"0") ->  | L24: =IF($C24=#REF!,#REF!,"0") ->  | M24: =IF($C24=#REF!,#REF!,"0") ->  | N24: 0 | Q24: %
C25: 2022-06-19 | D25: =IF(SUM(D12:D17)+SUM(D7:D10)+SUM(D19:D24)>(D44*(3/$Q$2)),"ä","æ") ->  | E25: =IF(SUM(E12:E17)+SUM(E7:E10)+SUM(E19:E24)>(E44*(3/$Q$2)),"ä","æ") ->  | N25: æ | Q25: æ | R25: æ
B26: 1 | C26: 2022-06-20 | D26: =IF($C26=#REF!,#REF!,"0") ->  | E26: =IF($C26=#REF!,#REF!,"0") ->  | F26: =IF($C26=#REF!,#REF!,"0") ->  | G26: =IF($C26=#REF!,#REF!,"0") ->  | H26: =IF($C26=#REF!,#REF!,"0") ->  | I26: =IF($C26=#REF!,#REF!,"0") ->  | J26: =IF($C26=#REF!,#REF!,"0") ->  | K26: =IF($C26=#REF!,#REF!,"0") ->  | L26: =IF($C26=#REF!,#REF!,"0") ->  | M26: =IF($C26=#REF!,#REF!,"0") ->  | N26: 0 | Q26: %
B27: 1 | C27: 2022-06-21 | D27: =IF($C27=#REF!,#REF!,"0") ->  | E27: =IF($C27=#REF!,#REF!,"0") ->  | F27: =IF($C27=#REF!,#REF!,"0") ->  | G27: =IF($C27=#REF!,#REF!,"0") ->  | H27: =IF($C27=#REF!,#REF!,"0") ->  | I27: =IF($C27=#REF!,#REF!,"0") ->  | J27: =IF($C27=#REF!,#REF!,"0") ->  | K27: =IF($C27=#REF!,#REF!,"0") ->  | L27: =IF($C27=#REF!,#REF!,"0") ->  | M27: =IF($C27=#REF!,#REF!,"0") ->  | N27: 0 | Q27: %
B28: 1 | C28: 2022-06-22 | D28: =IF($C28=#REF!,#REF!,"0") ->  | E28: =IF($C28=#REF!,#REF!,"0") ->  | F28: =IF($C28=#REF!,#REF!,"0") ->  | G28: =IF($C28=#REF!,#REF!,"0") ->  | H28: =IF($C28=#REF!,#REF!,"0") ->  | I28: =IF($C28=#REF!,#REF!,"0") ->  | J28: =IF($C28=#REF!,#REF!,"0") ->  | K28: =IF($C28=#REF!,#REF!,"0") ->  | L28: =IF($C28=#REF!,#REF!,"0") ->  | M28: =IF($C28=#REF!,#REF!,"0") ->  | N28: 0 | Q28: %
B29: 1 | C29: 2022-06-23 | D29: =IF($C29=#REF!,#REF!,"0") ->  | E29: =IF($C29=#REF!,#REF!,"0") ->  | F29: =IF($C29=#REF!,#REF!,"0") ->  | G29: =IF($C29=#REF!,#REF!,"0") ->  | H29: =IF($C29=#REF!,#REF!,"0") ->  | I29: =IF($C29=#REF!,#REF!,"0") ->  | J29: =IF($C29=#REF!,#REF!,"0") ->  | K29: =IF($C29=#REF!,#REF!,"0") ->  | L29: =IF($C29=#REF!,#REF!,"0") ->  | M29: =IF($C29=#REF!,#REF!,"0") ->  | N29: 0 | Q29: %
B30: 1 | C30: 2022-06-24 | D30: =IF($C30=#REF!,#REF!,"0") ->  | E30: =IF($C30=#REF!,#REF!,"0") ->  | F30: =IF($C30=#REF!,#REF!,"0") ->  | G30: =IF($C30=#REF!,#REF!,"0") ->  | H30: =IF($C30=#REF!,#REF!,"0") ->  | I30: =IF($C30=#REF!,#REF!,"0") ->  | J30: =IF($C30=#REF!,#REF!,"0") ->  | K30: =IF($C30=#REF!,#REF!,"0") ->  | L30: =IF($C30=#REF!,#REF!,"0") ->  | M30: =IF($C30=#REF!,#REF!,"0") ->  | N30: 0 | Q30: %
B31: 1 | C31: 2022-06-25 | D31: =IF($C31=#REF!,#REF!,"0") ->  | E31: =IF($C31=#REF!,#REF!,"0") ->  | F31: =IF($C31=#REF!,#REF!,"0") ->  | G31: =IF($C31=#REF!,#REF!,"0") ->  | H31: =IF($C31=#REF!,#REF!,"0") ->  | I31: =IF($C31=#REF!,#REF!,"0") ->  | J31: =IF($C31=#REF!,#REF!,"0") ->  | K31: =IF($C31=#REF!,#REF!,"0") ->  | L31: =IF($C31=#REF!,#REF!,"0") ->  | M31: =IF($C31=#REF!,#REF!,"0") ->  | N31: 0 | Q31: %
C32: 2022-06-26 | D32: =IF(SUM(D19:D24)+SUM(D12:D17)+SUM(D26:D31)+SUM(D7:D10)>(D44*(4/$Q$2)),"ä","æ") ->  | E32: =IF(SUM(E19:E24)+SUM(E12:E17)+SUM(E26:E31)+SUM(E7:E10)>(E44*(4/$Q$2)),"ä","æ") ->  | N32: æ | Q32: æ | R32: æ
B33: 1 | C33: 2022-06-27 | D33: =IF($C33=#REF!,#REF!,"0") ->  | E33: =IF($C33=#REF!,#REF!,"0") ->  | F33: =IF($C33=#REF!,#REF!,"0") ->  | G33: =IF($C33=#REF!,#REF!,"0") ->  | H33: =IF($C33=#REF!,#REF!,"0") ->  | I33: =IF($C33=#REF!,#REF!,"0") ->  | J33: =IF($C33=#REF!,#REF!,"0") ->  | K33: =IF($C33=#REF!,#REF!,"0") ->  | L33: =IF($C33=#REF!,#REF!,"0") ->  | M33: =IF($C33=#REF!,#REF!,"0") ->  | N33: 0 | Q33: %
B34: 1 | C34: 2022-06-28 | D34: =IF($C34=#REF!,#REF!,"0") ->  | E34: =IF($C34=#REF!,#REF!,"0") ->  | F34: =IF($C34=#REF!,#REF!,"0") ->  | G34: =IF($C34=#REF!,#REF!,"0") ->  | H34: =IF($C34=#REF!,#REF!,"0") ->  | I34: =IF($C34=#REF!,#REF!,"0") ->  | J34: =IF($C34=#REF!,#REF!,"0") ->  | K34: =IF($C34=#REF!,#REF!,"0") ->  | L34: =IF($C34=#REF!,#REF!,"0") ->  | M34: =IF($C34=#REF!,#REF!,"0") ->  | N34: 0 | Q34: %
B35: 1 | C35: 2022-06-29 | D35: =IF($C35=#REF!,#REF!,"0") ->  | E35: =IF($C35=#REF!,#REF!,"0") ->  | F35: =IF($C35=#REF!,#REF!,"0") ->  | G35: =IF($C35=#REF!,#REF!,"0") ->  | H35: =IF($C35=#REF!,#REF!,"0") ->  | I35: =IF($C35=#REF!,#REF!,"0") ->  | J35: =IF($C35=#REF!,#REF!,"0") ->  | K35: =IF($C35=#REF!,#REF!,"0") ->  | L35: =IF($C35=#REF!,#REF!,"0") ->  | M35: =IF($C35=#REF!,#REF!,"0") ->  | N35: 0 | Q35: %
B36: 1 | C36: 2022-06-30 | D36: =IF($C36=#REF!,#REF!,"0") ->  | E36: =IF($C36=#REF!,#REF!,"0") ->  | F36: =IF($C36=#REF!,#REF!,"0") ->  | G36: =IF($C36=#REF!,#REF!,"0") ->  | H36: =IF($C36=#REF!,#REF!,"0") ->  | I36: =IF($C36=#REF!,#REF!,"0") ->  | J36: =IF($C36=#REF!,#REF!,"0") ->  | K36: =IF($C36=#REF!,#REF!,"0") ->  | L36: =IF($C36=#REF!,#REF!,"0") ->  | M36: =IF($C36=#REF!,#REF!,"0") ->  | N36: 0 | Q36: %
C37: 2022-07-01 | D37: =IF(SUM(D26:D31)+SUM(D19:D24)+SUM(D33:D36)+SUM(D12:D17)+SUM(D7:D10)>(D44*(5/$Q$2)),"ä","æ") ->  | E37: =IF(SUM(E26:E31)+SUM(E19:E24)+SUM(E33:E36)+SUM(E12:E17)+SUM(E7:E10)>(E44*(5/$Q$2)),"ä","æ") ->  | N37: æ | Q37: æ | R37: æ
D38: =IF(SUM(D25:D30)+SUM(D18:D23)+SUM(D32:D37)+SUM(D11:D16)+SUM(D4:D9)>(D42),"ä","æ") ->  | N38: æ | Q38: æ | R38: æ
A41: =SUM(A34:A37,A27:A32,A20:A25,A13:A18,A7:A11) ->  | B41: =SUM(B7:B37) -> 26 | C41: TOTAL MTD | D41: =SUM(D7:D37) ->  | N41: 0 | O41: =SUM(O8:O37) ->  | P41: =SUM(P7:P37) ->  | Q41: %
D43: MO | F43: B | H43: F | J43: MI | L43: I | N43: TX | O43: CA | P43: IMU | Q43: % IMU | R43: PM
C44: OBJECTIF MTD
C45: INDEX (vs AOP) | D45: =IF(D52>(D44/$B$41),"ä","æ") ->  | E45: =IF(E52>(E44/$B$41),"ä","æ") ->  | Q45: =IF(Q41>Q44,"ä","æ") -> ä | R45: =IF(R41>R44,"ä","æ") -> æ
C46: % RÉALISÉ | D46: =SUM(D41/D44) ->  | F46: =SUM(F41/F44) ->  | H46: =SUM(H41/H44) ->  | N46: =SUM(N41/N44) ->  | O46: =(D41+F41+H41+J41+L41)/O44 ->  | P46: =(E41+G41+I41+K41+M41)/P44 ->  | Q46: =IF(ISERROR(Q41-Q44),"",Q41-Q44) ->  | R46: =IF(ISERROR(R41-R44),"",R41-R44) -> 
C47: INDEX (vs % Réal Attendu) | D47: =IF(D46>$Q$53,"ä","æ") ->  | E47: =IF(E46>$Q$53,"ä","æ") -> 
D50: MO | F50: B | H50: F | J50: MI | L50: I | N50: TX | O50: CA | P50: MARGE | Q50: Nb de Jours restants mois | R50: =+$R$51-$A$41 -> 
C51: CA/MGE/TR Restants à faire/ jour | D51: =IF($R$50=0,D44-D41,(D44-D41)/$R$50) ->  | O51: =D51+F51+H51+J51+L51 ->  | P51: =E51+G51+I51+K51+M51 ->  | Q51: Nb de jours dans le mois | R51: =B41 -> 26
D52: =D41/$A$41 ->  | E52: =E41/$A$41 ->  | Q52: % Réalisation Attendu
D53: PÔLE | Q53: =((100/$R$51)*($R$51-$R$50))/100 -> 
E55: CA | G55: IMU
D56: OBJECTIF MTD | E56: =+F44+J44 -> 0 | G56: =+G44+K44 -> 0 | I56: ² | K56: CA | L56: IMU
D57: Réalisé MTD | E57: =+F41+J41 ->  | G57: =+G41+K41 ->  | J57: CA/MGE Restants à faire/jour | K57: =+F51+J51 ->  | L57: =+G51+K51 -> 
D58: INDEX | E58: =IF(E57>E60,"ä","æ") ->  | F58: =IF(F54>F61,"ä","æ") -> æ | G58: =IF(G57>G60,"ä","æ") -> 
D59: % RÉALISÉ | E59: =+$E$57/$E$56 ->  | G59: =+$G$57/$G$56 -> 
E60: =(E56/$R$51)*($R$51-$R$50) ->  | G60: =(G56/$R$51)*($R$51-$R$50) -> 
E63: S1 | G63: S2 | I63: S3 | K63: S4 | M63: S5 | O63: CONTRÔLE | Q63: TOTAL DIVISIONS | Y63: AOP DIVISIONS | AD63: Delta VS Prime T2 | AF63: Delta VS Prime T300
E64: CA | F64: MARGE | G64: CA | H64: MARGE | I64: CA | J64: MARGE | K64: CA | L64: MARGE | M64: CA | N64: MARGE | O64: CA | P64: MARGE | Q64: CA | R64: MARGE | Y64: CA | Z64: MARGE | AA64: CA/Sem | AB64: Marge/Sem | AD64: CA(85%) | AE64: MARGE (90%) | AF64: CA (95%) | AG64: MARGE (95%)
A65: =D65 -> MOBILIER | C65: 1 | D65: MOBILIER | E65: =SUM(D6:D11) ->  | F65: =SUM(E6:E11) ->  | G65: =SUM(D13:D18) ->  | H65: =SUM(E13:E18) ->  | I65: =SUM(D20:D25) ->  | J65: =SUM(E20:E25) ->  | K65: =SUM(D27:D32) ->  | L65: =SUM(E27:E32) ->  | M65: =SUM(D34:D39) ->  | N65: =SUM(E34:E39) ->  | O65: =IF(SUM(E65,G65,I65,K65,M65)=D41,"OK","NOK") ->  | P65: =IF(SUM(F65,H65,J65,L65,N65)=E41,"OK","NOK") ->  | Q65: =SUM(E65,G65,I65,K65,M65) ->  | X65: MOBILIER | Y65: =+D44 -> 0 | Z65: =+E44 -> 0 | AA65: =Y65/$Q$2 -> 0 | AB65: =Z65/$Q$2 -> 0 | AC65: MOB | AD65: =Y65*85% -> 0 | AE65: =Z65*90% -> 0
A66: =D66 -> BUREAUTIQUE | C66: 2 | D66: BUREAUTIQUE | E66: =SUM(F6:F11) ->  | F66: =SUM(G6:G11) ->  | G66: =SUM(F13:F18) ->  | H66: =SUM(G13:G18) ->  | I66: =SUM(F20:F25) ->  | J66: =SUM(G20:G25) ->  | K66: =SUM(F27:F32) ->  | L66: =SUM(G27:G32) ->  | M66: =SUM(F34:F39) ->  | N66: =SUM(G34:G39) ->  | O66: =IF(SUM(E66,G66,I66,K66,M66)=F41,"OK","NOK") ->  | P66: =IF(SUM(F66,H66,J66,L66,N66)=G41,"OK","NOK") ->  | X66: BUREAUTIQUE | Y66: =+F44 -> 0 | Z66: =+G44 -> 0 | AA66: =Y66/$Q$2 -> 0 | AB66: 0 | AC66: BUR | AD66: 0 | AE66: 0
A67: FOURNITURES | C67: 3 | D67: FOURNITURES | E67: =SUM(H6:H11) ->  | F67: =SUM(I6:I11) ->  | G67: =SUM(H13:H18) ->  | H67: =SUM(I13:I18) ->  | I67: =SUM(H20:H25) ->  | J67: =SUM(I20:I25) ->  | K67: =SUM(H27:H32) ->  | L67: =SUM(I27:I32) ->  | M67: =SUM(H34:H39) ->  | N67: =SUM(I34:I39) ->  | O67: =IF(SUM(E67,G67,I67,K67,M67)=H41,"OK","NOK") ->  | P67: =IF(SUM(F67,H67,J67,L67,N67)=I41,"OK","NOK") ->  | X67: FOURNITURES | Y67: =+H44 -> 0 | Z67: =+I44 -> 0 | AA67: 0 | AB67: 0 | AC67: FOURN | AD67: 0 | AE67: 0
A68: MICRO | C68: 4 | D68: MICRO | E68: =SUM(J6:J11) ->  | F68: =SUM(K6:K11) ->  | G68: =SUM(J13:J18) ->  | H68: =SUM(K13:K18) ->  | I68: =SUM(J20:J25) ->  | J68: =SUM(K20:K25) ->  | K68: =SUM(J27:J32) ->  | L68: =SUM(K27:K32) ->  | M68: =SUM(J34:J39) ->  | N68: =SUM(K34:K39) ->  | O68: =IF(SUM(E68,G68,I68,K68,M68)=J41,"OK","NOK") ->  | P68: =IF(SUM(F68,H68,J68,L68,N68)=K41,"OK","NOK") ->  | X68: MICRO | Y68: =+J44 -> 0 | Z68: =+K44 -> 0 | AA68: 0 | AB68: 0 | AC68: MICRO | AD68: 0 | AE68: 0
A69: COPIE IMPRIMERIE | C69: 9 | D69: COPIE IMPRIMERIE | E69: =SUM(L6:L11) ->  | F69: =SUM(M6:M11) ->  | G69: =SUM(L13:L18) ->  | H69: =SUM(M13:M18) ->  | I69: =SUM(L20:L25) ->  | J69: =SUM(M20:M25) ->  | K69: =SUM(L27:L32) ->  | L69: =SUM(M27:M32) ->  | M69: =SUM(L34:L39) ->  | N69: =SUM(M34:M39) ->  | O69: =IF(SUM(E69,G69,I69,K69,M69)=L41,"OK","NOK") ->  | P69: =IF(SUM(F69,H69,J69,L69,N69)=M41,"OK","NOK") ->  | X69: COPIE IMPRIMERIE | Y69: =+L44 -> 0 | Z69: =+M44 -> 0 | AA69: 0 | AB69: 0 | AC69: IMAG | AD69: 0 | AE69: 0 | AI69: PDM Imag
A70: Pôle Techno | C70: 2&4 | D70: Pôle Techno | E70: =SUM(E66,E68) ->  | F70: =SUM(F66,F68) ->  | X70: Pôle Techno | Y70: =+Y66+Y68 -> 0 | Z70: =+Z66+Z68 -> 0 | AA70: 0 | AB70: 0 | AD70: 0 | AE70: 0 | AI70: =+Q69/Q71 -> 
A71: MAGASIN | D71: MAGASIN | E71: =SUM(E65:E69) ->  | F71: =SUM(F65:F69) ->  | Q71: =SUM(Q65:Q69) ->  | R71: =SUM(R65:R69) ->  | X71: MAGASIN | Y71: =SUM(Y65:Y69) -> 0 | Z71: =SUM(Z65:Z69) -> 0 | AA71: 0 | AB71: 0 | AF71: =Y71*95% -> 0 | AG71: =Z71*95% -> 0 | AH71: OD | AI71: =IF(AND($AI$70>=4%,$AI$70<5%),25,IF($AI$70>=5%,50,0)) ->  | AJ71: 0.05
D72: CONTRÔLE | E72: =IF(SUM(E65:E69)=SUM(O6:O11),"OK","NOK") ->  | F72: =IF(SUM(F65:F69)=SUM(P6:P11),"OK","NOK") ->  | G72: =IF(SUM(G65:G69)=SUM(O13:O18),"OK","NOK") ->  | H72: =IF(SUM(H65:H69)=SUM(P13:P18),"OK","NOK") ->  | I72: =IF(SUM(I65:I69)=SUM(O20:O25),"OK","NOK") ->  | J72: =IF(SUM(J65:J69)=SUM(P20:P25),"OK","NOK") ->  | K72: =IF(SUM(K65:K69)=SUM(O27:O32),"OK","NOK") ->  | L72: =IF(SUM(L65:L69)=SUM(P27:P32),"OK","NOK") ->  | M72: =IF(SUM(M65:M69)=SUM(O34:O39),"OK","NOK") ->  | N72: =IF(SUM(N65:N69)=SUM(P34:P39),"OK","NOK") ->  | AH72: ODC | AI72: =IF(AND($AI$70>=9%,$AI$70<10%),25,IF($AI$70>=10%,50,0)) ->  | AJ72: 0.1

Sheet JUILLET
L2: Juillet | O2: 2022 | Q2: 4
D4: MO | F4: B | H4: F | J4: MI | L4: C | N4: TRANSAC JOUR | O4: CA JOUR | P4: IMU JOUR | Q4: % IMU | R4: PM JOUR
D5: CA | E5: IMU | F5: CA | G5: IMU | H5: CA | I5: IMU | J5: CA | K5: IMU | L5: CA | M5: IMU
C6: 2022-02-28 | D6: 0 | E6: 0 | F6: 0 | G6: 0 | H6: 0 | I6: 0 | J6: 0 | K6: 0 | L6: 0 | M6: 0 | N6: 0 | O6: =D6+F6+H6+J6+L6 -> 0 | P6: =SUM(E6+G6+I6+K6+M6) -> 0 | Q6: =IF(ISERROR(P6/O6),"%",P6/O6) -> % | R6: =IF(N6=0,"",O6/N6) -> 
A7: =IF(O7=0,0,1) ->  | B7: =IF(C6,1,0) -> 1 | C7: 2022-07-01 | D7: =IF($C7=#REF!,#REF!,"0") ->  | E7: =IF($C7=#REF!,#REF!,"0") ->  | F7: =IF($C7=#REF!,#REF!,"0") ->  | G7: =IF($C7=#REF!,#REF!,"0") ->  | H7: =IF($C7=#REF!,#REF!,"0") ->  | I7: =IF($C7=#REF!,#REF!,"0") ->  | J7: =IF($C7=#REF!,#REF!,"0") ->  | K7: =IF($C7=#REF!,#REF!,"0") ->  | L7: =IF($C7=#REF!,#REF!,"0") ->  | M7: =IF($C7=#REF!,#REF!,"0") ->  | N7: 0 | Q7: % | R7: =IF(N7=0,"",O7/N7) -> 
A8: =IF(O8=0,0,1) ->  | B8: =IF(C7,1,0) -> 1 | C8: =C7+1 -> 2022-07-02 | D8: =IF($C8=#REF!,#REF!,"0") ->  | E8: =IF($C8=#REF!,#REF!,"0") ->  | F8: =IF($C8=#REF!,#REF!,"0") ->  | G8: =IF($C8=#REF!,#REF!,"0") ->  | H8: =IF($C8=#REF!,#REF!,"0") ->  | I8: =IF($C8=#REF!,#REF!,"0") ->  | J8: =IF($C8=#REF!,#REF!,"0") ->  | K8: =IF($C8=#REF!,#REF!,"0") ->  | L8: =IF($C8=#REF!,#REF!,"0") ->  | M8: =IF($C8=#REF!,#REF!,"0") ->  | N8: 0 | Q8: %
C9: =C8+1 -> 2022-07-03 | D9: =IF(SUM(D7:D8)>(D44*(1/$Q$2)),"ä","æ") ->  | E9: =IF(SUM(E7:E8)>(E44*(1/$Q$2)),"ä","æ") ->  | N9: æ | Q9: æ | R9: æ
B10: 1 | C10: 2022-07-04 | D10: =IF($C10=#REF!,#REF!,"0") ->  | E10: =IF($C10=#REF!,#REF!,"0") ->  | F10: =IF($C10=#REF!,#REF!,"0") ->  | G10: =IF($C10=#REF!,#REF!,"0") ->  | H10: =IF($C10=#REF!,#REF!,"0") ->  | I10: =IF($C10=#REF!,#REF!,"0") ->  | J10: =IF($C10=#REF!,#REF!,"0") ->  | K10: =IF($C10=#REF!,#REF!,"0") ->  | L10: =IF($C10=#REF!,#REF!,"0") ->  | M10: =IF($C10=#REF!,#REF!,"0") ->  | N10: 0 | Q10: %
B11: 1 | C11: 2022-07-05 | D11: =IF($C11=#REF!,#REF!,"0") ->  | E11: =IF($C11=#REF!,#REF!,"0") ->  | F11: =IF($C11=#REF!,#REF!,"0") ->  | G11: =IF($C11=#REF!,#REF!,"0") ->  | H11: =IF($C11=#REF!,#REF!,"0") ->  | I11: =IF($C11=#REF!,#REF!,"0") ->  | J11: =IF($C11=#REF!,#REF!,"0") ->  | K11: =IF($C11=#REF!,#REF!,"0") ->  | L11: =IF($C11=#REF!,#REF!,"0") ->  | M11: =IF($C11=#REF!,#REF!,"0") ->  | N11: 0 | Q11: %
B12: 1 | C12: 2022-07-06 | D12: =IF($C12=#REF!,#REF!,"0") ->  | E12: =IF($C12=#REF!,#REF!,"0") ->  | F12: =IF($C12=#REF!,#REF!,"0") ->  | G12: =IF($C12=#REF!,#REF!,"0") ->  | H12: =IF($C12=#REF!,#REF!,"0") ->  | I12: =IF($C12=#REF!,#REF!,"0") ->  | J12: =IF($C12=#REF!,#REF!,"0") ->  | K12: =IF($C12=#REF!,#REF!,"0") ->  | L12: =IF($C12=#REF!,#REF!,"0") ->  | M12: =IF($C12=#REF!,#REF!,"0") ->  | N12: 0 | Q12: %
B13: 1 | C13: 2022-07-07 | D13: =IF($C13=#REF!,#REF!,"0") ->  | E13: =IF($C13=#REF!,#REF!,"0") ->  | F13: =IF($C13=#REF!,#REF!,"0") ->  | G13: =IF($C13=#REF!,#REF!,"0") ->  | H13: =IF($C13=#REF!,#REF!,"0") ->  | I13: =IF($C13=#REF!,#REF!,"0") ->  | J13: =IF($C13=#REF!,#REF!,"0") ->  | K13: =IF($C13=#REF!,#REF!,"0") ->  | L13: =IF($C13=#REF!,#REF!,"0") ->  | M13: =IF($C13=#REF!,#REF!,"0") ->  | N13: 0 | Q13: %
B14: 1 | C14: 2022-07-08 | D14: =IF($C14=#REF!,#REF!,"0") ->  | E14: =IF($C14=#REF!,#REF!,"0") ->  | F14: =IF($C14=#REF!,#REF!,"0") ->  | G14: =IF($C14=#REF!,#REF!,"0") ->  | H14: =IF($C14=#REF!,#REF!,"0") ->  | I14: =IF($C14=#REF!,#REF!,"0") ->  | J14: =IF($C14=#REF!,#REF!,"0") ->  | K14: =IF($C14=#REF!,#REF!,"0") ->  | L14: =IF($C14=#REF!,#REF!,"0") ->  | M14: =IF($C14=#REF!,#REF!,"0") ->  | N14: 0 | P14: =SUM(E14+G14+I14+K14+M14) ->  | Q14: %
B15: 1 | C15: 2022-07-09 | D15: =IF($C15=#REF!,#REF!,"0") ->  | E15: =IF($C15=#REF!,#REF!,"0") ->  | F15: =IF($C15=#REF!,#REF!,"0") ->  | G15: =IF($C15=#REF!,#REF!,"0") ->  | H15: =IF($C15=#REF!,#REF!,"0") ->  | I15: =IF($C15=#REF!,#REF!,"0") ->  | J15: =IF($C15=#REF!,#REF!,"0") ->  | K15: =IF($C15=#REF!,#REF!,"0") ->  | L15: =IF($C15=#REF!,#REF!,"0") ->  | M15: =IF($C15=#REF!,#REF!,"0") ->  | N15: 0 | O15: =D15+F15+H15+J15+L15 ->  | Q15: %
C16: =C15+1 -> 2022-07-10 | D16: =IF(SUM(D10:D15)+SUM(D7:D8)>(D44*(1/$Q$2)),"ä","æ") ->  | E16: =IF(SUM(E10:E15)+SUM(E7:E8)>(E44*(1/$Q$2)),"ä","æ") ->  | N16: æ | Q16: æ | R16: æ
B17: 1 | C17: 2022-07-11 | D17: =IF($C17=#REF!,#REF!,"0") ->  | E17: =IF($C17=#REF!,#REF!,"0") ->  | F17: =IF($C17=#REF!,#REF!,"0") ->  | G17: =IF($C17=#REF!,#REF!,"0") ->  | H17: =IF($C17=#REF!,#REF!,"0") ->  | I17: =IF($C17=#REF!,#REF!,"0") ->  | J17: =IF($C17=#REF!,#REF!,"0") ->  | K17: =IF($C17=#REF!,#REF!,"0") ->  | L17: =IF($C17=#REF!,#REF!,"0") ->  | M17: =IF($C17=#REF!,#REF!,"0") ->  | N17: 0 | O17: =D17+F17+H17+J17+L17 ->  | Q17: %
B18: 1 | C18: 2022-07-12 | D18: =IF($C18=#REF!,#REF!,"0") ->  | E18: =IF($C18=#REF!,#REF!,"0") ->  | F18: =IF($C18=#REF!,#REF!,"0") ->  | G18: =IF($C18=#REF!,#REF!,"0") ->  | H18: =IF($C18=#REF!,#REF!,"0") ->  | I18: =IF($C18=#REF!,#REF!,"0") ->  | J18: =IF($C18=#REF!,#REF!,"0") ->  | K18: =IF($C18=#REF!,#REF!,"0") ->  | L18: =IF($C18=#REF!,#REF!,"0") ->  | M18: =IF($C18=#REF!,#REF!,"0") ->  | N18: 0 | Q18: %
B19: 1 | C19: 2022-07-13 | D19: =IF($C19=#REF!,#REF!,"0") ->  | E19: =IF($C19=#REF!,#REF!,"0") ->  | F19: =IF($C19=#REF!,#REF!,"0") ->  | G19: =IF($C19=#REF!,#REF!,"0") ->  | H19: =IF($C19=#REF!,#REF!,"0") ->  | I19: =IF($C19=#REF!,#REF!,"0") ->  | J19: =IF($C19=#REF!,#REF!,"0") ->  | K19: =IF($C19=#REF!,#REF!,"0") ->  | L19: =IF($C19=#REF!,#REF!,"0") ->  | M19: =IF($C19=#REF!,#REF!,"0") ->  | N19: 0 | Q19: %
C20: 2022-07-14
B21: 1 | C21: 2022-07-15 | D21: =IF($C21=#REF!,#REF!,"0") ->  | E21: =IF($C21=#REF!,#REF!,"0") ->  | F21: =IF($C21=#REF!,#REF!,"0") ->  | G21: =IF($C21=#REF!,#REF!,"0") ->  | H21: =IF($C21=#REF!,#REF!,"0") ->  | I21: =IF($C21=#REF!,#REF!,"0") ->  | J21: =IF($C21=#REF!,#REF!,"0") ->  | K21: =IF($C21=#REF!,#REF!,"0") ->  | L21: =IF($C21=#REF!,#REF!,"0") ->  | M21: =IF($C21=#REF!,#REF!,"0") ->  | N21: 0 | Q21: %
B22: 1 | C22: 2022-07-16 | D22: =IF($C22=#REF!,#REF!,"0") ->  | E22: =IF($C22=#REF!,#REF!,"0") ->  | F22: =IF($C22=#REF!,#REF!,"0") ->  | G22: =IF($C22=#REF!,#REF!,"0") ->  | H22: =IF($C22=#REF!,#REF!,"0") ->  | I22: =IF($C22=#REF!,#REF!,"0") ->  | J22: =IF($C22=#REF!,#REF!,"0") ->  | K22: =IF($C22=#REF!,#REF!,"0") ->  | L22: =IF($C22=#REF!,#REF!,"0") ->  | M22: =IF($C22=#REF!,#REF!,"0") ->  | N22: 0 | Q22: %
C23: =C22+1 -> 2022-07-17 | D23: =IF(SUM(D10:D15)+SUM(D7:D8)+SUM(D17:D22)>(D44*(2/$Q$2)),"ä","æ") ->  | E23: =IF(SUM(E10:E15)+SUM(E7:E8)+SUM(E17:E22)>(E44*(2/$Q$2)),"ä","æ") ->  | N23: æ | Q23: æ | R23: æ
B24: 1 | C24: 2022-07-18 | D24: =IF($C24=#REF!,#REF!,"0") ->  | E24: =IF($C24=#REF!,#REF!,"0") ->  | F24: =IF($C24=#REF!,#REF!,"0") ->  | G24: =IF($C24=#REF!,#REF!,"0") ->  | H24: =IF($C24=#REF!,#REF!,"0") ->  | I24: =IF($C24=#REF!,#REF!,"0") ->  | J24: =IF($C24=#REF!,#REF!,"0") ->  | K24: =IF($C24=#REF!,#REF!,"0") ->  | L24: =IF($C24=#REF!,#REF!,"0") ->  | M24: =IF($C24=#REF!,#REF!,"0") ->  | N24: 0 | Q24: %
B25: 1 | C25: 2022-07-19 | D25: =IF($C25=#REF!,#REF!,"0") ->  | E25: =IF($C25=#REF!,#REF!,"0") ->  | F25: =IF($C25=#REF!,#REF!,"0") ->  | G25: =IF($C25=#REF!,#REF!,"0") ->  | H25: =IF($C25=#REF!,#REF!,"0") ->  | I25: =IF($C25=#REF!,#REF!,"0") ->  | J25: =IF($C25=#REF!,#REF!,"0") ->  | K25: =IF($C25=#REF!,#REF!,"0") ->  | L25: =IF($C25=#REF!,#REF!,"0") ->  | M25: =IF($C25=#REF!,#REF!,"0") ->  | N25: 0 | Q25: %
B26: 1 | C26: 2022-07-20 | D26: =IF($C26=#REF!,#REF!,"0") ->  | E26: =IF($C26=#REF!,#REF!,"0") ->  | F26: =IF($C26=#REF!,#REF!,"0") ->  | G26: =IF($C26=#REF!,#REF!,"0") ->  | H26: =IF($C26=#REF!,#REF!,"0") ->  | I26: =IF($C26=#REF!,#REF!,"0") ->  | J26: =IF($C26=#REF!,#REF!,"0") ->  | K26: =IF($C26=#REF!,#REF!,"0") ->  | L26: =IF($C26=#REF!,#REF!,"0") ->  | M26: =IF($C26=#REF!,#REF!,"0") ->  | N26: 0 | Q26: %
B27: 1 | C27: 2022-07-21 | D27: =IF($C27=#REF!,#REF!,"0") ->  | E27: =IF($C27=#REF!,#REF!,"0") ->  | F27: =IF($C27=#REF!,#REF!,"0") ->  | G27: =IF($C27=#REF!,#REF!,"0") ->  | H27: =IF($C27=#REF!,#REF!,"0") ->  | I27: =IF($C27=#REF!,#REF!,"0") ->  | J27: =IF($C27=#REF!,#REF!,"0") ->  | K27: =IF($C27=#REF!,#REF!,"0") ->  | L27: =IF($C27=#REF!,#REF!,"0") ->  | M27: =IF($C27=#REF!,#REF!,"0") ->  | N27: 0 | Q27: %
B28: 1 | C28: 2022-07-22 | D28: =IF($C28=#REF!,#REF!,"0") ->  | E28: =IF($C28=#REF!,#REF!,"0") ->  | F28: =IF($C28=#REF!,#REF!,"0") ->  | G28: =IF($C28=#REF!,#REF!,"0") ->  | H28: =IF($C28=#REF!,#REF!,"0") ->  | I28: =IF($C28=#REF!,#REF!,"0") ->  | J28: =IF($C28=#REF!,#REF!,"0") ->  | K28: =IF($C28=#REF!,#REF!,"0") ->  | L28: =IF($C28=#REF!,#REF!,"0") ->  | M28: =IF($C28=#REF!,#REF!,"0") ->  | N28: 0 | Q28: %
B29: 1 | C29: 2022-07-23 | D29: =IF($C29=#REF!,#REF!,"0") ->  | E29: =IF($C29=#REF!,#REF!,"0") ->  | F29: =IF($C29=#REF!,#REF!,"0") ->  | G29: =IF($C29=#REF!,#REF!,"0") ->  | H29: =IF($C29=#REF!,#REF!,"0") ->  | I29: =IF($C29=#REF!,#REF!,"0") ->  | J29: =IF($C29=#REF!,#REF!,"0") ->  | K29: =IF($C29=#REF!,#REF!,"0") ->  | L29: =IF($C29=#REF!,#REF!,"0") ->  | M29: =IF($C29=#REF!,#REF!,"0") ->  | N29: 0 | Q29: %
C30: =C29+1 -> 2022-07-24 | D30: =IF(SUM(D17:D22)+SUM(D10:D15)+SUM(D24:D29)+SUM(D7:D8)>(D44*(3/$Q$2)),"ä","æ") ->  | E30: =IF(SUM(E17:E22)+SUM(E10:E15)+SUM(E24:E29)+SUM(E7:E8)>(E44*(3/$Q$2)),"ä","æ") ->  | N30: æ | Q30: æ | R30: æ
B31: 1 | C31: 2022-07-25 | D31: =IF($C31=#REF!,#REF!,"0") ->  | E31: =IF($C31=#REF!,#REF!,"0") ->  | F31: =IF($C31=#REF!,#REF!,"0") ->  | G31: =IF($C31=#REF!,#REF!,"0") ->  | H31: =IF($C31=#REF!,#REF!,"0") ->  | I31: =IF($C31=#REF!,#REF!,"0") ->  | J31: =IF($C31=#REF!,#REF!,"0") ->  | K31: =IF($C31=#REF!,#REF!,"0") ->  | L31: =IF($C31=#REF!,#REF!,"0") ->  | M31: =IF($C31=#REF!,#REF!,"0") ->  | N31: 0 | Q31: %
B32: 1 | C32: 2022-07-26 | D32: =IF($C32=#REF!,#REF!,"0") ->  | E32: =IF($C32=#REF!,#REF!,"0") ->  | F32: =IF($C32=#REF!,#REF!,"0") ->  | G32: =IF($C32=#REF!,#REF!,"0") ->  | H32: =IF($C32=#REF!,#REF!,"0") ->  | I32: =IF($C32=#REF!,#REF!,"0") ->  | J32: =IF($C32=#REF!,#REF!,"0") ->  | K32: =IF($C32=#REF!,#REF!,"0") ->  | L32: =IF($C32=#REF!,#REF!,"0") ->  | M32: =IF($C32=#REF!,#REF!,"0") ->  | N32: 0 | Q32: %
B33: 1 | C33: 2022-07-27 | D33: =IF($C33=#REF!,#REF!,"0") ->  | E33: =IF($C33=#REF!,#REF!,"0") ->  | F33: =IF($C33=#REF!,#REF!,"0") ->  | G33: =IF($C33=#REF!,#REF!,"0") ->  | H33: =IF($C33=#REF!,#REF!,"0") ->  | I33: =IF($C33=#REF!,#REF!,"0") ->  | J33: =IF($C33=#REF!,#REF!,"0") ->  | K33: =IF($C33=#REF!,#REF!,"0") ->  | L33: =IF($C33=#REF!,#REF!,"0") ->  | M33: =IF($C33=#REF!,#REF!,"0") ->  | N33: 0 | Q33: %
B34: 1 | C34: 2022-07-28 | D34: =IF($C34=#REF!,#REF!,"0") ->  | E34: =IF($C34=#REF!,#REF!,"0") ->  | F34: =IF($C34=#REF!,#REF!,"0") ->  | G34: =IF($C34=#REF!,#REF!,"0") ->  | H34: =IF($C34=#REF!,#REF!,"0") ->  | I34: =IF($C34=#REF!,#REF!,"0") ->  | J34: =IF($C34=#REF!,#REF!,"0") ->  | K34: =IF($C34=#REF!,#REF!,"0") ->  | L34: =IF($C34=#REF!,#REF!,"0") ->  | M34: =IF($C34=#REF!,#REF!,"0") ->  | N34: 0 | Q34: %
B35: 1 | C35: 2022-07-29 | D35: =IF($C35=#REF!,#REF!,"0") ->  | E35: =IF($C35=#REF!,#REF!,"0") ->  | F35: =IF($C35=#REF!,#REF!,"0") ->  | G35: =IF($C35=#REF!,#REF!,"0") ->  | H35: =IF($C35=#REF!,#REF!,"0") ->  | I35: =IF($C35=#REF!,#REF!,"0") ->  | J35: =IF($C35=#REF!,#REF!,"0") ->  | K35: =IF($C35=#REF!,#REF!,"0") ->  | L35: =IF($C35=#REF!,#REF!,"0") ->  | M35: =IF($C35=#REF!,#REF!,"0") ->  | N35: 0 | Q35: %
B36: 1 | C36: 2022-07-30 | D36: =IF($C36=#REF!,#REF!,"0") ->  | E36: =IF($C36=#REF!,#REF!,"0") ->  | F36: =IF($C36=#REF!,#REF!,"0") ->  | G36: =IF($C36=#REF!,#REF!,"0") ->  | H36: =IF($C36=#REF!,#REF!,"0") ->  | I36: =IF($C36=#REF!,#REF!,"0") ->  | J36: =IF($C36=#REF!,#REF!,"0") ->  | K36: =IF($C36=#REF!,#REF!,"0") ->  | L36: =IF($C36=#REF!,#REF!,"0") ->  | M36: =IF($C36=#REF!,#REF!,"0") ->  | N36: 0 | Q36: %
C37: 2022-07-31 | D37: =IF(SUM(D24:D29)+SUM(D17:D22)+SUM(D31:D36)+SUM(D10:D15)+SUM(D7:D8)>(D44*(4/$Q$2)),"ä","æ") ->  | E37: =IF(SUM(E24:E29)+SUM(E17:E22)+SUM(E31:E36)+SUM(E10:E15)+SUM(E7:E8)>(E44*(4/$Q$2)),"ä","æ") ->  | N37: æ | Q37: æ | R37: æ
D38: =IF(SUM(D25:D30)+SUM(D18:D23)+SUM(D32:D37)+SUM(D11:D16)+SUM(D4:D9)>(D42),"ä","æ") ->  | N38: æ | Q38: æ | R38: æ
A41: =SUM(A34:A37,A27:A32,A20:A25,A13:A18,A7:A11) ->  | B41: =SUM(B7:B37) -> 25 | C41: TOTAL MTD | D41: =SUM(D7:D37) ->  | N41: 0 | O41: =SUM(O8:O37) ->  | P41: =SUM(P7:P37) ->  | Q41: %
D43: MO | F43: B | H43: F | J43: MI | L43: I | N43: TX | O43: CA | P43: IMU | Q43: % IMU | R43: PM
C44: OBJECTIF MTD
C45: INDEX (vs AOP) | D45: =IF(D52>(D44/$B$41),"ä","æ") ->  | E45: =IF(E52>(E44/$B$41),"ä","æ") ->  | Q45: =IF(Q41>Q44,"ä","æ") -> ä | R45: =IF(R41>R44,"ä","æ") -> æ
C46: % RÉALISÉ | D46: =SUM(D41/D44) ->  | F46: =SUM(F41/F44) ->  | H46: =SUM(H41/H44) ->  | N46: =SUM(N41/N44) ->  | O46: =(D41+F41+H41+J41+L41)/O44 ->  | P46: =(E41+G41+I41+K41+M41)/P44 ->  | Q46: =IF(ISERROR(Q41-Q44),"",Q41-Q44) ->  | R46: =IF(ISERROR(R41-R44),"",R41-R44) -> 
C47: INDEX (vs % Réal Attendu) | D47: =IF(D46>$Q$53,"ä","æ") ->  | E47: =IF(E46>$Q$53,"ä","æ") -> 
D50: MO | F50: B | H50: F | J50: MI | L50: I | N50: TX | O50: CA | P50: MARGE | Q50: Nb de Jours restants mois | R50: =+$R$51-$A$41 -> 
C51: CA/MGE/TR Restants à faire/ jour | D51: =IF($R$50=0,D44-D41,(D44-D41)/$R$50) ->  | O51: =D51+F51+H51+J51+L51 ->  | P51: =E51+G51+I51+K51+M51 ->  | Q51: Nb de jours dans le mois | R51: =B41 -> 25
D52: =D41/$A$41 ->  | E52: =E41/$A$41 ->  | Q52: % Réalisation Attendu
D53: PÔLE | Q53: =((100/$R$51)*($R$51-$R$50))/100 -> 
E55: CA | G55: IMU
D56: OBJECTIF MTD | E56: =+F44+J44 -> 0 | G56: =+G44+K44 -> 0 | I56: ² | K56: CA | L56: IMU
D57: Réalisé MTD | E57: =+F41+J41 ->  | G57: =+G41+K41 ->  | J57: CA/MGE Restants à faire/jour | K57: =+F51+J51 ->  | L57: =+G51+K51 -> 
D58: INDEX | E58: =IF(E57>E60,"ä","æ") ->  | F58: =IF(F54>F61,"ä","æ") -> æ | G58: =IF(G57>G60,"ä","æ") -> 
D59: % RÉALISÉ | E59: =+$E$57/$E$56 ->  | G59: =+$G$57/$G$56 -> 
E60: =(E56/$R$51)*($R$51-$R$50) ->  | G60: =(G56/$R$51)*($R$51-$R$50) -> 
E63: S1 | G63: S2 | I63: S3 | K63: S4 | M63: S5 | O63: CONTRÔLE | Q63: TOTAL DIVISIONS | Y63: AOP DIVISIONS | AD63: Delta VS Prime T2 | AF63: Delta VS Prime T300
E64: CA | F64: MARGE | G64: CA | H64: MARGE | I64: CA | J64: MARGE | K64: CA | L64: MARGE | M64: CA | N64: MARGE | O64: CA | P64: MARGE | Q64: CA | R64: MARGE | Y64: CA | Z64: MARGE | AA64: CA/Sem | AB64: Marge/Sem | AD64: CA(85%) | AE64: MARGE (90%) | AF64: CA (95%) | AG64: MARGE (95%)
A65: =D65 -> MOBILIER | C65: 1 | D65: MOBILIER | E65: =SUM(D6:D11) ->  | F65: =SUM(E6:E11) ->  | G65: =SUM(D13:D18) ->  | H65: =SUM(E13:E18) ->  | I65: =SUM(D20:D25) ->  | J65: =SUM(E20:E25) ->  | K65: =SUM(D27:D32) ->  | L65: =SUM(E27:E32) ->  | M65: =SUM(D34:D39) ->  | N65: =SUM(E34:E39) ->  | O65: =IF(SUM(E65,G65,I65,K65,M65)=D41,"OK","NOK") ->  | P65: =IF(SUM(F65,H65,J65,L65,N65)=E41,"OK","NOK") ->  | Q65: =SUM(E65,G65,I65,K65,M65) ->  | X65: MOBILIER | Y65: =+D44 -> 0 | Z65: =+E44 -> 0 | AA65: =Y65/$Q$2 -> 0 | AB65: =Z65/$Q$2 -> 0 | AC65: MOB | AD65: =Y65*85% -> 0 | AE65: =Z65*90% -> 0
A66: =D66 -> BUREAUTIQUE | C66: 2 | D66: BUREAUTIQUE | E66: =SUM(F6:F11) ->  | F66: =SUM(G6:G11) ->  | G66: =SUM(F13:F18) ->  | H66: =SUM(G13:G18) ->  | I66: =SUM(F20:F25) ->  | J66: =SUM(G20:G25) ->  | K66: =SUM(F27:F32) ->  | L66: =SUM(G27:G32) ->  | M66: =SUM(F34:F39) ->  | N66: =SUM(G34:G39) ->  | O66: =IF(SUM(E66,G66,I66,K66,M66)=F41,"OK","NOK") ->  | P66: =IF(SUM(F66,H66,J66,L66,N66)=G41,"OK","NOK") ->  | X66: BUREAUTIQUE | Y66: =+F44 -> 0 | Z66: =+G44 -> 0 | AA66: =Y66/$Q$2 -> 0 | AB66: 0 | AC66: BUR | AD66: 0 | AE66: 0
A67: FOURNITURES | C67: 3 | D67: FOURNITURES | E67: =SUM(H6:H11) ->  | F67: =SUM(I6:I11) ->  | G67: =SUM(H13:H18) ->  | H67: =SUM(I13:I18) ->  | I67: =SUM(H20:H25) ->  | J67: =SUM(I20:I25) ->  | K67: =SUM(H27:H32) ->  | L67: =SUM(I27:I32) ->  | M67: =SUM(H34:H39) ->  | N67: =SUM(I34:I39) ->  | O67: =IF(SUM(E67,G67,I67,K67,M67)=H41,"OK","NOK") ->  | P67: =IF(SUM(F67,H67,J67,L67,N67)=I41,"OK","NOK") ->  | X67: FOURNITURES | Y67: =+H44 -> 0 | Z67: =+I44 -> 0 | AA67: 0 | AB67: 0 | AC67: FOURN | AD67: 0 | AE67: 0
A68: MICRO | C68: 4 | D68: MICRO | E68: =SUM(J6:J11) ->  | F68: =SUM(K6:K11) ->  | G68: =SUM(J13:J18) ->  | H68: =SUM(K13:K18) ->  | I68: =SUM(J20:J25) ->  | J68: =SUM(K20:K25) ->  | K68: =SUM(J27:J32) ->  | L68: =SUM(K27:K32) ->  | M68: =SUM(J34:J39) ->  | N68: =SUM(K34:K39) ->  | O68: =IF(SUM(E68,G68,I68,K68,M68)=J41,"OK","NOK") ->  | P68: =IF(SUM(F68,H68,J68,L68,N68)=K41,"OK","NOK") ->  | X68: MICRO | Y68: =+J44 -> 0 | Z68: =+K44 -> 0 | AA68: 0 | AB68: 0 | AC68: MICRO | AD68: 0 | AE68: 0
A69: COPIE IMPRIMERIE | C69: 9 | D69: COPIE IMPRIMERIE | E69: =SUM(L6:L11) ->  | F69: =SUM(M6:M11) ->  | G69: =SUM(L13:L18) ->  | H69: =SUM(M13:M18) ->  | I69: =SUM(L20:L25) ->  | J69: =SUM(M20:M25) ->  | K69: =SUM(L27:L32) ->  | L69: =SUM(M27:M32) ->  | M69: =SUM(L34:L39) ->  | N69: =SUM(M34:M39) ->  | O69: =IF(SUM(E69,G69,I69,K69,M69)=L41,"OK","NOK") ->  | P69: =IF(SUM(F69,H69,J69,L69,N69)=M41,"OK","NOK") ->  | X69: COPIE IMPRIMERIE | Y69: =+L44 -> 0 | Z69: =+M44 -> 0 | AA69: 0 | AB69: 0 | AC69: IMAG | AD69: 0 | AE69: 0 | AI69: PDM Imag
A70: Pôle Techno | C70: 2&4 | D70: Pôle Techno | E70: =SUM(E66,E68) ->  | F70: =SUM(F66,F68) ->  | X70: Pôle Techno | Y70: =+Y66+Y68 -> 0 | Z70: =+Z66+Z68 -> 0 | AA70: 0 | AB70: 0 | AD70: 0 | AE70: 0 | AI70: =+Q69/Q71 -> 
A71: MAGASIN | D71: MAGASIN | E71: =SUM(E65:E69) ->  | F71: =SUM(F65:F69) ->  | Q71: =SUM(Q65:Q69) ->  | R71: =SUM(R65:R69) ->  | X71: MAGASIN | Y71: =SUM(Y65:Y69) -> 0 | Z71: =SUM(Z65:Z69) -> 0 | AA71: 0 | AB71: 0 | AF71: =Y71*95% -> 0 | AG71: =Z71*95% -> 0 | AH71: OD | AI71: =IF(AND($AI$70>=4%,$AI$70<5%),25,IF($AI$70>=5%,50,0)) ->  | AJ71: 0.05
D72: CONTRÔLE | E72: =IF(SUM(E65:E69)=SUM(O6:O11),"OK","NOK") ->  | F72: =IF(SUM(F65:F69)=SUM(P6:P11),"OK","NOK") ->  | G72: =IF(SUM(G65:G69)=SUM(O13:O18),"OK","NOK") ->  | H72: =IF(SUM(H65:H69)=SUM(P13:P18),"OK","NOK") ->  | I72: =IF(SUM(I65:I69)=SUM(O20:O25),"OK","NOK") ->  | J72: =IF(SUM(J65:J69)=SUM(P20:P25),"OK","NOK") ->  | K72: =IF(SUM(K65:K69)=SUM(O27:O32),"OK","NOK") ->  | L72: =IF(SUM(L65:L69)=SUM(P27:P32),"OK","NOK") ->  | M72: =IF(SUM(M65:M69)=SUM(O34:O39),"OK","NOK") ->  | N72: =IF(SUM(N65:N69)=SUM(P34:P39),"OK","NOK") ->  | AH72: ODC | AI72: =IF(AND($AI$70>=9%,$AI$70<10%),25,IF($AI$70>=10%,50,0)) ->  | AJ72: 0.1

Sheet AOUT
L2: Août | O2: 2022 | Q2: 4
D4: MO | F4: B | H4: F | J4: MI | L4: C | N4: TRANSAC JOUR | O4: CA JOUR | P4: IMU JOUR | Q4: % IMU | R4: PM JOUR
D5: CA | E5: IMU | F5: CA | G5: IMU | H5: CA | I5: IMU | J5: CA | K5: IMU | L5: CA | M5: IMU
C6: 2022-02-28 | D6: 0 | E6: 0 | F6: 0 | G6: 0 | H6: 0 | I6: 0 | J6: 0 | K6: 0 | L6: 0 | M6: 0 | N6: 0 | O6: =D6+F6+H6+J6+L6 -> 0 | P6: =SUM(E6+G6+I6+K6+M6) -> 0 | Q6: =IF(ISERROR(P6/O6),"%",P6/O6) -> % | R6: =IF(N6=0,"",O6/N6) -> 
A7: =IF(O7=0,0,1) ->  | B7: =IF(C6,1,0) -> 1 | C7: 2022-08-01 | D7: =IF($C7=#REF!,#REF!,"0") ->  | E7: =IF($C7=#REF!,#REF!,"0") ->  | F7: =IF($C7=#REF!,#REF!,"0") ->  | G7: =IF($C7=#REF!,#REF!,"0") ->  | H7: =IF($C7=#REF!,#REF!,"0") ->  | I7: =IF($C7=#REF!,#REF!,"0") ->  | J7: =IF($C7=#REF!,#REF!,"0") ->  | K7: =IF($C7=#REF!,#REF!,"0") ->  | L7: =IF($C7=#REF!,#REF!,"0") ->  | M7: =IF($C7=#REF!,#REF!,"0") ->  | N7: 0 | Q7: % | R7: =IF(N7=0,"",O7/N7) -> 
A8: =IF(O8=0,0,1) ->  | B8: =IF(C7,1,0) -> 1 | C8: =C7+1 -> 2022-08-02 | D8: =IF($C8=#REF!,#REF!,"0") ->  | E8: =IF($C8=#REF!,#REF!,"0") ->  | F8: =IF($C8=#REF!,#REF!,"0") ->  | G8: =IF($C8=#REF!,#REF!,"0") ->  | H8: =IF($C8=#REF!,#REF!,"0") ->  | I8: =IF($C8=#REF!,#REF!,"0") ->  | J8: =IF($C8=#REF!,#REF!,"0") ->  | K8: =IF($C8=#REF!,#REF!,"0") ->  | L8: =IF($C8=#REF!,#REF!,"0") ->  | M8: =IF($C8=#REF!,#REF!,"0") ->  | N8: 0 | Q8: %
B9: 1 | C9: 2022-08-03 | D9: =IF($C9=#REF!,#REF!,"0") ->  | E9: =IF($C9=#REF!,#REF!,"0") ->  | F9: =IF($C9=#REF!,#REF!,"0") ->  | G9: =IF($C9=#REF!,#REF!,"0") ->  | H9: =IF($C9=#REF!,#REF!,"0") ->  | I9: =IF($C9=#REF!,#REF!,"0") ->  | J9: =IF($C9=#REF!,#REF!,"0") ->  | K9: =IF($C9=#REF!,#REF!,"0") ->  | L9: =IF($C9=#REF!,#REF!,"0") ->  | M9: =IF($C9=#REF!,#REF!,"0") ->  | N9: 0 | Q9: %
B10: 1 | C10: 2022-08-04 | D10: =IF($C10=#REF!,#REF!,"0") ->  | E10: =IF($C10=#REF!,#REF!,"0") ->  | F10: =IF($C10=#REF!,#REF!,"0") ->  | G10: =IF($C10=#REF!,#REF!,"0") ->  | H10: =IF($C10=#REF!,#REF!,"0") ->  | I10: =IF($C10=#REF!,#REF!,"0") ->  | J10: =IF($C10=#REF!,#REF!,"0") ->  | K10: =IF($C10=#REF!,#REF!,"0") ->  | L10: =IF($C10=#REF!,#REF!,"0") ->  | M10: =IF($C10=#REF!,#REF!,"0") ->  | N10: 0 | Q10: %
B11: 1 | C11: 2022-08-05 | D11: =IF($C11=#REF!,#REF!,"0") ->  | E11: =IF($C11=#REF!,#REF!,"0") ->  | F11: =IF($C11=#REF!,#REF!,"0") ->  | G11: =IF($C11=#REF!,#REF!,"0") ->  | H11: =IF($C11=#REF!,#REF!,"0") ->  | I11: =IF($C11=#REF!,#REF!,"0") ->  | J11: =IF($C11=#REF!,#REF!,"0") ->  | K11: =IF($C11=#REF!,#REF!,"0") ->  | L11: =IF($C11=#REF!,#REF!,"0") ->  | M11: =IF($C11=#REF!,#REF!,"0") ->  | N11: 0 | Q11: %
B12: 1 | C12: 2022-08-06 | D12: =IF($C12=#REF!,#REF!,"0") ->  | E12: =IF($C12=#REF!,#REF!,"0") ->  | F12: =IF($C12=#REF!,#REF!,"0") ->  | G12: =IF($C12=#REF!,#REF!,"0") ->  | H12: =IF($C12=#REF!,#REF!,"0") ->  | I12: =IF($C12=#REF!,#REF!,"0") ->  | J12: =IF($C12=#REF!,#REF!,"0") ->  | K12: =IF($C12=#REF!,#REF!,"0") ->  | L12: =IF($C12=#REF!,#REF!,"0") ->  | M12: =IF($C12=#REF!,#REF!,"0") ->  | N12: 0 | Q12: %
C13: =C12+1 -> 2022-08-07 | D13: =IF(SUM(D7:D12)>(D44*(1/$Q$2)),"ä","æ") ->  | E13: =IF(SUM(E7:E12)>(E44*(1/$Q$2)),"ä","æ") ->  | N13: æ | Q13: æ | R13: æ
B14: 1 | C14: 2022-08-08 | D14: =IF($C14=#REF!,#REF!,"0") ->  | E14: =IF($C14=#REF!,#REF!,"0") ->  | F14: =IF($C14=#REF!,#REF!,"0") ->  | G14: =IF($C14=#REF!,#REF!,"0") ->  | H14: =IF($C14=#REF!,#REF!,"0") ->  | I14: =IF($C14=#REF!,#REF!,"0") ->  | J14: =IF($C14=#REF!,#REF!,"0") ->  | K14: =IF($C14=#REF!,#REF!,"0") ->  | L14: =IF($C14=#REF!,#REF!,"0") ->  | M14: =IF($C14=#REF!,#REF!,"0") ->  | N14: 0 | P14: =SUM(E14+G14+I14+K14+M14) ->  | Q14: %
B15: 1 | C15: 2022-08-09 | D15: =IF($C15=#REF!,#REF!,"0") ->  | E15: =IF($C15=#REF!,#REF!,"0") ->  | F15: =IF($C15=#REF!,#REF!,"0") ->  | G15: =IF($C15=#REF!,#REF!,"0") ->  | H15: =IF($C15=#REF!,#REF!,"0") ->  | I15: =IF($C15=#REF!,#REF!,"0") ->  | J15: =IF($C15=#REF!,#REF!,"0") ->  | K15: =IF($C15=#REF!,#REF!,"0") ->  | L15: =IF($C15=#REF!,#REF!,"0") ->  | M15: =IF($C15=#REF!,#REF!,"0") ->  | N15: 0 | O15: =D15+F15+H15+J15+L15 ->  | Q15: %
B16: 1 | C16: 2022-08-10 | D16: =IF($C16=#REF!,#REF!,"0") ->  | E16: =IF($C16=#REF!,#REF!,"0") ->  | F16: =IF($C16=#REF!,#REF!,"0") ->  | G16: =IF($C16=#REF!,#REF!,"0") ->  | H16: =IF($C16=#REF!,#REF!,"0") ->  | I16: =IF($C16=#REF!,#REF!,"0") ->  | J16: =IF($C16=#REF!,#REF!,"0") ->  | K16: =IF($C16=#REF!,#REF!,"0") ->  | L16: =IF($C16=#REF!,#REF!,"0") ->  | M16: =IF($C16=#REF!,#REF!,"0") ->  | N16: 0 | O16: =D16+F16+H16+J16+L16 ->  | Q16: %
B17: 1 | C17: 2022-08-11 | D17: =IF($C17=#REF!,#REF!,"0") ->  | E17: =IF($C17=#REF!,#REF!,"0") ->  | F17: =IF($C17=#REF!,#REF!,"0") ->  | G17: =IF($C17=#REF!,#REF!,"0") ->  | H17: =IF($C17=#REF!,#REF!,"0") ->  | I17: =IF($C17=#REF!,#REF!,"0") ->  | J17: =IF($C17=#REF!,#REF!,"0") ->  | K17: =IF($C17=#REF!,#REF!,"0") ->  | L17: =IF($C17=#REF!,#REF!,"0") ->  | M17: =IF($C17=#REF!,#REF!,"0") ->  | N17: 0 | O17: =D17+F17+H17+J17+L17 ->  | Q17: %
B18: 1 | C18: 2022-08-12 | D18: =IF($C18=#REF!,#REF!,"0") ->  | E18: =IF($C18=#REF!,#REF!,"0") ->  | F18: =IF($C18=#REF!,#REF!,"0") ->  | G18: =IF($C18=#REF!,#REF!,"0") ->  | H18: =IF($C18=#REF!,#REF!,"0") ->  | I18: =IF($C18=#REF!,#REF!,"0") ->  | J18: =IF($C18=#REF!,#REF!,"0") ->  | K18: =IF($C18=#REF!,#REF!,"0") ->  | L18: =IF($C18=#REF!,#REF!,"0") ->  | M18: =IF($C18=#REF!,#REF!,"0") ->  | N18: 0 | Q18: %
B19: 1 | C19: 2022-08-13 | D19: =IF($C19=#REF!,#REF!,"0") ->  | E19: =IF($C19=#REF!,#REF!,"0") ->  | F19: =IF($C19=#REF!,#REF!,"0") ->  | G19: =IF($C19=#REF!,#REF!,"0") ->  | H19: =IF($C19=#REF!,#REF!,"0") ->  | I19: =IF($C19=#REF!,#REF!,"0") ->  | J19: =IF($C19=#REF!,#REF!,"0") ->  | K19: =IF($C19=#REF!,#REF!,"0") ->  | L19: =IF($C19=#REF!,#REF!,"0") ->  | M19: =IF($C19=#REF!,#REF!,"0") ->  | N19: 0 | Q19: %
C20: =C19+1 -> 2022-08-14 | D20: =IF(SUM(D14:D19)+SUM(D7:D12)>(D44*(2/$Q$2)),"ä","æ") ->  | E20: =IF(SUM(E14:E19)+SUM(E7:E12)>(E44*(1/$Q$2)),"ä","æ") ->  | N20: æ | Q20: æ | R20: æ
A21: 0 | B21: 0 | C21: 2022-08-15
B22: 1 | C22: 2022-08-16 | D22: =IF($C22=#REF!,#REF!,"0") ->  | E22: =IF($C22=#REF!,#REF!,"0") ->  | F22: =IF($C22=#REF!,#REF!,"0") ->  | G22: =IF($C22=#REF!,#REF!,"0") ->  | H22: =IF($C22=#REF!,#REF!,"0") ->  | I22: =IF($C22=#REF!,#REF!,"0") ->  | J22: =IF($C22=#REF!,#REF!,"0") ->  | K22: =IF($C22=#REF!,#REF!,"0") ->  | L22: =IF($C22=#REF!,#REF!,"0") ->  | M22: =IF($C22=#REF!,#REF!,"0") ->  | N22: 0 | Q22: %
B23: 1 | C23: 2022-08-17 | D23: =IF($C23=#REF!,#REF!,"0") ->  | E23: =IF($C23=#REF!,#REF!,"0") ->  | F23: =IF($C23=#REF!,#REF!,"0") ->  | G23: =IF($C23=#REF!,#REF!,"0") ->  | H23: =IF($C23=#REF!,#REF!,"0") ->  | I23: =IF($C23=#REF!,#REF!,"0") ->  | J23: =IF($C23=#REF!,#REF!,"0") ->  | K23: =IF($C23=#REF!,#REF!,"0") ->  | L23: =IF($C23=#REF!,#REF!,"0") ->  | M23: =IF($C23=#REF!,#REF!,"0") ->  | N23: 0 | Q23: %
B24: 1 | C24: 2022-08-18 | D24: =IF($C24=#REF!,#REF!,"0") ->  | E24: =IF($C24=#REF!,#REF!,"0") ->  | F24: =IF($C24=#REF!,#REF!,"0") ->  | G24: =IF($C24=#REF!,#REF!,"0") ->  | H24: =IF($C24=#REF!,#REF!,"0") ->  | I24: =IF($C24=#REF!,#REF!,"0") ->  | J24: =IF($C24=#REF!,#REF!,"0") ->  | K24: =IF($C24=#REF!,#REF!,"0") ->  | L24: =IF($C24=#REF!,#REF!,"0") ->  | M24: =IF($C24=#REF!,#REF!,"0") ->  | N24: 0 | Q24: %
B25: 1 | C25: 2022-08-19 | D25: =IF($C25=#REF!,#REF!,"0") ->  | E25: =IF($C25=#REF!,#REF!,"0") ->  | F25: =IF($C25=#REF!,#REF!,"0") ->  | G25: =IF($C25=#REF!,#REF!,"0") ->  | H25: =IF($C25=#REF!,#REF!,"0") ->  | I25: =IF($C25=#REF!,#REF!,"0") ->  | J25: =IF($C25=#REF!,#REF!,"0") ->  | K25: =IF($C25=#REF!,#REF!,"0") ->  | L25: =IF($C25=#REF!,#REF!,"0") ->  | M25: =IF($C25=#REF!,#REF!,"0") ->  | N25: 0 | Q25: %
B26: 1 | C26: 2022-08-20 | D26: =IF($C26=#REF!,#REF!,"0") ->  | E26: =IF($C26=#REF!,#REF!,"0") ->  | F26: =IF($C26=#REF!,#REF!,"0") ->  | G26: =IF($C26=#REF!,#REF!,"0") ->  | H26: =IF($C26=#REF!,#REF!,"0") ->  | I26: =IF($C26=#REF!,#REF!,"0") ->  | J26: =IF($C26=#REF!,#REF!,"0") ->  | K26: =IF($C26=#REF!,#REF!,"0") ->  | L26: =IF($C26=#REF!,#REF!,"0") ->  | M26: =IF($C26=#REF!,#REF!,"0") ->  | N26: 0 | Q26: %
C27: =C26+1 -> 2022-08-21 | D27: =IF(SUM(D14:D19)+SUM(D7:D12)+SUM(D21:D26)>(D44*(3/$Q$2)),"ä","æ") ->  | E27: =IF(SUM(E14:E19)+SUM(E7:E12)+SUM(E21:E26)>(E44*(3/$Q$2)),"ä","æ") ->  | N27: æ | Q27: æ | R27: æ
B28: 1 | C28: 2022-08-22 | D28: =IF($C28=#REF!,#REF!,"0") ->  | E28: =IF($C28=#REF!,#REF!,"0") ->  | F28: =IF($C28=#REF!,#REF!,"0") ->  | G28: =IF($C28=#REF!,#REF!,"0") ->  | H28: =IF($C28=#REF!,#REF!,"0") ->  | I28: =IF($C28=#REF!,#REF!,"0") ->  | J28: =IF($C28=#REF!,#REF!,"0") ->  | K28: =IF($C28=#REF!,#REF!,"0") ->  | L28: =IF($C28=#REF!,#REF!,"0") ->  | M28: =IF($C28=#REF!,#REF!,"0") ->  | N28: 0 | Q28: %
B29: 1 | C29: 2022-08-23 | D29: =IF($C29=#REF!,#REF!,"0") ->  | E29: =IF($C29=#REF!,#REF!,"0") ->  | F29: =IF($C29=#REF!,#REF!,"0") ->  | G29: =IF($C29=#REF!,#REF!,"0") ->  | H29: =IF($C29=#REF!,#REF!,"0") ->  | I29: =IF($C29=#REF!,#REF!,"0") ->  | J29: =IF($C29=#REF!,#REF!,"0") ->  | K29: =IF($C29=#REF!,#REF!,"0") ->  | L29: =IF($C29=#REF!,#REF!,"0") ->  | M29: =IF($C29=#REF!,#REF!,"0") ->  | N29: 0 | Q29: %
B30: 1 | C30: 2022-08-24 | D30: =IF($C30=#REF!,#REF!,"0") ->  | E30: =IF($C30=#REF!,#REF!,"0") ->  | F30: =IF($C30=#REF!,#REF!,"0") ->  | G30: =IF($C30=#REF!,#REF!,"0") ->  | H30: =IF($C30=#REF!,#REF!,"0") ->  | I30: =IF($C30=#REF!,#REF!,"0") ->  | J30: =IF($C30=#REF!,#REF!,"0") ->  | K30: =IF($C30=#REF!,#REF!,"0") ->  | L30: =IF($C30=#REF!,#REF!,"0") ->  | M30: =IF($C30=#REF!,#REF!,"0") ->  | N30: 0 | Q30: %
B31: 1 | C31: 2022-08-25 | D31: =IF($C31=#REF!,#REF!,"0") ->  | E31: =IF($C31=#REF!,#REF!,"0") ->  | F31: =IF($C31=#REF!,#REF!,"0") ->  | G31: =IF($C31=#REF!,#REF!,"0") ->  | H31: =IF($C31=#REF!,#REF!,"0") ->  | I31: =IF($C31=#REF!,#REF!,"0") ->  | J31: =IF($C31=#REF!,#REF!,"0") ->  | K31: =IF($C31=#REF!,#REF!,"0") ->  | L31: =IF($C31=#REF!,#REF!,"0") ->  | M31: =IF($C31=#REF!,#REF!,"0") ->  | N31: 0 | Q31: %
B32: 1 | C32: 2022-08-26 | D32: =IF($C32=#REF!,#REF!,"0") ->  | E32: =IF($C32=#REF!,#REF!,"0") ->  | F32: =IF($C32=#REF!,#REF!,"0") ->  | G32: =IF($C32=#REF!,#REF!,"0") ->  | H32: =IF($C32=#REF!,#REF!,"0") ->  | I32: =IF($C32=#REF!,#REF!,"0") ->  | J32: =IF($C32=#REF!,#REF!,"0") ->  | K32: =IF($C32=#REF!,#REF!,"0") ->  | L32: =IF($C32=#REF!,#REF!,"0") ->  | M32: =IF($C32=#REF!,#REF!,"0") ->  | N32: 0 | Q32: %
B33: 1 | C33: 2022-08-27 | D33: =IF($C33=#REF!,#REF!,"0") ->  | E33: =IF($C33=#REF!,#REF!,"0") ->  | F33: =IF($C33=#REF!,#REF!,"0") ->  | G33: =IF($C33=#REF!,#REF!,"0") ->  | H33: =IF($C33=#REF!,#REF!,"0") ->  | I33: =IF($C33=#REF!,#REF!,"0") ->  | J33: =IF($C33=#REF!,#REF!,"0") ->  | K33: =IF($C33=#REF!,#REF!,"0") ->  | L33: =IF($C33=#REF!,#REF!,"0") ->  | M33: =IF($C33=#REF!,#REF!,"0") ->  | N33: 0 | Q33: %
C34: =C33+1 -> 2022-08-28 | D34: =IF(SUM(D21:D26)+SUM(D14:D19)+SUM(D28:D33)+SUM(D11:D12)>(D44*(4/$Q$2)),"ä","æ") ->  | E34: =IF(SUM(E21:E26)+SUM(E14:E19)+SUM(E28:E33)+SUM(E11:E12)>(E44*(4/$Q$2)),"ä","æ") ->  | N34: æ | Q34: æ | R34: æ
B35: 1 | C35: 2022-08-29 | D35: =IF($C35=#REF!,#REF!,"0") ->  | E35: =IF($C35=#REF!,#REF!,"0") ->  | F35: =IF($C35=#REF!,#REF!,"0") ->  | G35: =IF($C35=#REF!,#REF!,"0") ->  | H35: =IF($C35=#REF!,#REF!,"0") ->  | I35: =IF($C35=#REF!,#REF!,"0") ->  | J35: =IF($C35=#REF!,#REF!,"0") ->  | K35: =IF($C35=#REF!,#REF!,"0") ->  | L35: =IF($C35=#REF!,#REF!,"0") ->  | M35: =IF($C35=#REF!,#REF!,"0") ->  | N35: 0 | Q35: %
B36: 1 | C36: 2022-08-30 | D36: =IF($C36=#REF!,#REF!,"0") ->  | E36: =IF($C36=#REF!,#REF!,"0") ->  | F36: =IF($C36=#REF!,#REF!,"0") ->  | G36: =IF($C36=#REF!,#REF!,"0") ->  | H36: =IF($C36=#REF!,#REF!,"0") ->  | I36: =IF($C36=#REF!,#REF!,"0") ->  | J36: =IF($C36=#REF!,#REF!,"0") ->  | K36: =IF($C36=#REF!,#REF!,"0") ->  | L36: =IF($C36=#REF!,#REF!,"0") ->  | M36: =IF($C36=#REF!,#REF!,"0") ->  | N36: 0 | Q36: %
B37: 1 | C37: 2022-08-31 | D37: =IF($C37=#REF!,#REF!,"0") ->  | E37: =IF($C37=#REF!,#REF!,"0") ->  | F37: =IF($C37=#REF!,#REF!,"0") ->  | G37: =IF($C37=#REF!,#REF!,"0") ->  | H37: =IF($C37=#REF!,#REF!,"0") ->  | I37: =IF($C37=#REF!,#REF!,"0") ->  | J37: =IF($C37=#REF!,#REF!,"0") ->  | K37: =IF($C37=#REF!,#REF!,"0") ->  | L37: =IF($C37=#REF!,#REF!,"0") ->  | M37: =IF($C37=#REF!,#REF!,"0") ->  | N37: 0 | Q37: %
D38: =IF(SUM(D25:D30)+SUM(D18:D23)+SUM(D32:D37)+SUM(D11:D16)+SUM(D4:D9)>(D42),"ä","æ") ->  | N38: æ | Q38: æ | R38: æ
C39: =C38+1 -> 1900-01-01 | D39: =IF(SUM(D28:D33)+SUM(D21:D26)+SUM(D35:D38)+SUM(D14:D19)+SUM(D7:D12)>(D44*(4/$Q$2)),"ä","æ") ->  | E39: =IF(SUM(E28:E33)+SUM(E21:E26)+SUM(E35:E38)+SUM(E14:E19)+SUM(E7:E12)>(E44*(4/$Q$2)),"ä","æ") ->  | N39: æ | Q39: æ | R39: æ
A41: =SUM(A34:A37,A27:A32,A20:A25,A13:A18,A7:A11) ->  | B41: =SUM(B7:B37) -> 26 | C41: TOTAL MTD | D41: =SUM(D7:D37) ->  | N41: 0 | O41: =SUM(O8:O37) ->  | P41: =SUM(P7:P37) ->  | Q41: %
D43: MO | F43: B | H43: F | J43: MI | L43: I | N43: TX | O43: CA | P43: IMU | Q43: % IMU | R43: PM
C44: OBJECTIF MTD
C45: INDEX (vs AOP) | D45: =IF(D52>(D44/$B$41),"ä","æ") ->  | E45: =IF(E52>(E44/$B$41),"ä","æ") ->  | Q45: =IF(Q41>Q44,"ä","æ") -> ä | R45: =IF(R41>R44,"ä","æ") -> æ
C46: % RÉALISÉ | D46: =SUM(D41/D44) ->  | F46: =SUM(F41/F44) ->  | H46: =SUM(H41/H44) ->  | N46: =SUM(N41/N44) ->  | O46: =(D41+F41+H41+J41+L41)/O44 ->  | P46: =(E41+G41+I41+K41+M41)/P44 ->  | Q46: =IF(ISERROR(Q41-Q44),"",Q41-Q44) ->  | R46: =IF(ISERROR(R41-R44),"",R41-R44) -> 
C47: INDEX (vs % Réal Attendu) | D47: =IF(D46>$Q$53,"ä","æ") ->  | E47: =IF(E46>$Q$53,"ä","æ") -> 
D50: MO | F50: B | H50: F | J50: MI | L50: I | N50: TX | O50: CA | P50: MARGE | Q50: Nb de Jours restants mois | R50: =+$R$51-$A$41 -> 
C51: CA/MGE/TR Restants à faire/ jour | D51: =IF($R$50=0,D44-D41,(D44-D41)/$R$50) ->  | O51: =D51+F51+H51+J51+L51 ->  | P51: =E51+G51+I51+K51+M51 ->  | Q51: Nb de jours dans le mois | R51: =B41 -> 26
D52: =D41/$A$41 ->  | E52: =E41/$A$41 ->  | Q52: % Réalisation Attendu
D53: PÔLE | Q53: =((100/$R$51)*($R$51-$R$50))/100 -> 
E55: CA | G55: IMU
D56: OBJECTIF MTD | E56: =+F44+J44 -> 0 | G56: =+G44+K44 -> 0 | I56: ² | K56: CA | L56: IMU
D57: Réalisé MTD | E57: =+F41+J41 ->  | G57: =+G41+K41 ->  | J57: CA/MGE Restants à faire/jour | K57: =+F51+J51 ->  | L57: =+G51+K51 -> 
D58: INDEX | E58: =IF(E57>E60,"ä","æ") ->  | F58: =IF(F54>F61,"ä","æ") -> æ | G58: =IF(G57>G60,"ä","æ") -> 
D59: % RÉALISÉ | E59: =+$E$57/$E$56 ->  | G59: =+$G$57/$G$56 -> 
E60: =(E56/$R$51)*($R$51-$R$50) ->  | G60: =(G56/$R$51)*($R$51-$R$50) -> 
E63: S1 | G63: S2 | I63: S3 | K63: S4 | M63: S5 | O63: CONTRÔLE | Q63: TOTAL DIVISIONS | Y63: AOP DIVISIONS | AD63: Delta VS Prime T2 | AF63: Delta VS Prime T300
E64: CA | F64: MARGE | G64: CA | H64: MARGE | I64: CA | J64: MARGE | K64: CA | L64: MARGE | M64: CA | N64: MARGE | O64: CA | P64: MARGE | Q64: CA | R64: MARGE | Y64: CA | Z64: MARGE | AA64: CA/Sem | AB64: Marge/Sem | AD64: CA(85%) | AE64: MARGE (90%) | AF64: CA (95%) | AG64: MARGE (95%)
A65: =D65 -> MOBILIER | C65: 1 | D65: MOBILIER | E65: =SUM(D6:D11) ->  | F65: =SUM(E6:E11) ->  | G65: =SUM(D13:D18) ->  | H65: =SUM(E13:E18) ->  | I65: =SUM(D20:D25) ->  | J65: =SUM(E20:E25) ->  | K65: =SUM(D27:D32) ->  | L65: =SUM(E27:E32) ->  | M65: =SUM(D34:D39) ->  | N65: =SUM(E34:E39) ->  | O65: =IF(SUM(E65,G65,I65,K65,M65)=D41,"OK","NOK") ->  | P65: =IF(SUM(F65,H65,J65,L65,N65)=E41,"OK","NOK") ->  | Q65: =SUM(E65,G65,I65,K65,M65) ->  | X65: MOBILIER | Y65: =+D44 -> 0 | Z65: =+E44 -> 0 | AA65: =Y65/$Q$2 -> 0 | AB65: =Z65/$Q$2 -> 0 | AC65: MOB | AD65: =Y65*85% -> 0 | AE65: =Z65*90% -> 0
A66: =D66 -> BUREAUTIQUE | C66: 2 | D66: BUREAUTIQUE | E66: =SUM(F6:F11) ->  | F66: =SUM(G6:G11) ->  | G66: =SUM(F13:F18) ->  | H66: =SUM(G13:G18) ->  | I66: =SUM(F20:F25) ->  | J66: =SUM(G20:G25) ->  | K66: =SUM(F27:F32) ->  | L66: =SUM(G27:G32) ->  | M66: =SUM(F34:F39) ->  | N66: =SUM(G34:G39) ->  | O66: =IF(SUM(E66,G66,I66,K66,M66)=F41,"OK","NOK") ->  | P66: =IF(SUM(F66,H66,J66,L66,N66)=G41,"OK","NOK") ->  | X66: BUREAUTIQUE | Y66: =+F44 -> 0 | Z66: =+G44 -> 0 | AA66: =Y66/$Q$2 -> 0 | AB66: 0 | AC66: BUR | AD66: 0 | AE66: 0
A67: FOURNITURES | C67: 3 | D67: FOURNITURES | E67: =SUM(H6:H11) ->  | F67: =SUM(I6:I11) ->  | G67: =SUM(H13:H18) ->  | H67: =SUM(I13:I18) ->  | I67: =SUM(H20:H25) ->  | J67: =SUM(I20:I25) ->  | K67: =SUM(H27:H32) ->  | L67: =SUM(I27:I32) ->  | M67: =SUM(H34:H39) ->  | N67: =SUM(I34:I39) ->  | O67: =IF(SUM(E67,G67,I67,K67,M67)=H41,"OK","NOK") ->  | P67: =IF(SUM(F67,H67,J67,L67,N67)=I41,"OK","NOK") ->  | X67: FOURNITURES | Y67: =+H44 -> 0 | Z67: =+I44 -> 0 | AA67: 0 | AB67: 0 | AC67: FOURN | AD67: 0 | AE67: 0
A68: MICRO | C68: 4 | D68: MICRO | E68: =SUM(J6:J11) ->  | F68: =SUM(K6:K11) ->  | G68: =SUM(J13:J18) ->  | H68: =SUM(K13:K18) ->  | I68: =SUM(J20:J25) ->  | J68: =SUM(K20:K25) ->  | K68: =SUM(J27:J32) ->  | L68: =SUM(K27:K32) ->  | M68: =SUM(J34:J39) ->  | N68: =SUM(K34:K39) ->  | O68: =IF(SUM(E68,G68,I68,K68,M68)=J41,"OK","NOK") ->  | P68: =IF(SUM(F68,H68,J68,L68,N68)=K41,"OK","NOK") ->  | X68: MICRO | Y68: =+J44 -> 0 | Z68: =+K44 -> 0 | AA68: 0 | AB68: 0 | AC68: MICRO | AD68: 0 | AE68: 0
A69: COPIE IMPRIMERIE | C69: 9 | D69: COPIE IMPRIMERIE | E69: =SUM(L6:L11) ->  | F69: =SUM(M6:M11) ->  | G69: =SUM(L13:L18) ->  | H69: =SUM(M13:M18) ->  | I69: =SUM(L20:L25) ->  | J69: =SUM(M20:M25) ->  | K69: =SUM(L27:L32) ->  | L69: =SUM(M27:M32) ->  | M69: =SUM(L34:L39) ->  | N69: =SUM(M34:M39) ->  | O69: =IF(SUM(E69,G69,I69,K69,M69)=L41,"OK","NOK") ->  | P69: =IF(SUM(F69,H69,J69,L69,N69)=M41,"OK","NOK") ->  | X69: COPIE IMPRIMERIE | Y69: =+L44 -> 0 | Z69: =+M44 -> 0 | AA69: 0 | AB69: 0 | AC69: IMAG | AD69: 0 | AE69: 0 | AI69: PDM Imag
A70: Pôle Techno | C70: 2&4 | D70: Pôle Techno | E70: =SUM(E66,E68) ->  | F70: =SUM(F66,F68) ->  | X70: Pôle Techno | Y70: =+Y66+Y68 -> 0 | Z70: =+Z66+Z68 -> 0 | AA70: 0 | AB70: 0 | AD70: 0 | AE70: 0 | AI70: =+Q69/Q71 -> 
A71: MAGASIN | D71: MAGASIN | E71: =SUM(E65:E69) ->  | F71: =SUM(F65:F69) ->  | Q71: =SUM(Q65:Q69) ->  | R71: =SUM(R65:R69) ->  | X71: MAGASIN | Y71: =SUM(Y65:Y69) -> 0 | Z71: =SUM(Z65:Z69) -> 0 | AA71: 0 | AB71: 0 | AF71: =Y71*95% -> 0 | AG71: =Z71*95% -> 0 | AH71: OD | AI71: =IF(AND($AI$70>=4%,$AI$70<5%),25,IF($AI$70>=5%,50,0)) ->  | AJ71: 0.05
D72: CONTRÔLE | E72: =IF(SUM(E65:E69)=SUM(O6:O11),"OK","NOK") ->  | F72: =IF(SUM(F65:F69)=SUM(P6:P11),"OK","NOK") ->  | G72: =IF(SUM(G65:G69)=SUM(O13:O18),"OK","NOK") ->  | H72: =IF(SUM(H65:H69)=SUM(P13:P18),"OK","NOK") ->  | I72: =IF(SUM(I65:I69)=SUM(O20:O25),"OK","NOK") ->  | J72: =IF(SUM(J65:J69)=SUM(P20:P25),"OK","NOK") ->  | K72: =IF(SUM(K65:K69)=SUM(O27:O32),"OK","NOK") ->  | L72: =IF(SUM(L65:L69)=SUM(P27:P32),"OK","NOK") ->  | M72: =IF(SUM(M65:M69)=SUM(O34:O39),"OK","NOK") ->  | N72: =IF(SUM(N65:N69)=SUM(P34:P39),"OK","NOK") ->  | AH72: ODC | AI72: =IF(AND($AI$70>=9%,$AI$70<10%),25,IF($AI$70>=10%,50,0)) ->  | AJ72: 0.1

Sheet SEPTEMBRE
L2: Septembre | O2: 2022 | Q2: 4
D4: MO | F4: B | H4: F | J4: MI | L4: C | N4: TRANSAC JOUR | O4: CA JOUR | P4: IMU JOUR | Q4: % IMU | R4: PM JOUR
D5: CA | E5: IMU | F5: CA | G5: IMU | H5: CA | I5: IMU | J5: CA | K5: IMU | L5: CA | M5: IMU
C6: 2022-02-28 | D6: 0 | E6: 0 | F6: 0 | G6: 0 | H6: 0 | I6: 0 | J6: 0 | K6: 0 | L6: 0 | M6: 0 | N6: 0 | O6: =D6+F6+H6+J6+L6 -> 0 | P6: =SUM(E6+G6+I6+K6+M6) -> 0 | Q6: =IF(ISERROR(P6/O6),"%",P6/O6) -> % | R6: =IF(N6=0,"",O6/N6) -> 
A7: =IF(O7=0,0,1) ->  | B7: =IF(C6,1,0) -> 1 | C7: 2022-09-01 | D7: =IF($C7=#REF!,#REF!,"0") ->  | E7: =IF($C7=#REF!,#REF!,"0") ->  | F7: =IF($C7=#REF!,#REF!,"0") ->  | G7: =IF($C7=#REF!,#REF!,"0") ->  | H7: =IF($C7=#REF!,#REF!,"0") ->  | I7: =IF($C7=#REF!,#REF!,"0") ->  | J7: =IF($C7=#REF!,#REF!,"0") ->  | K7: =IF($C7=#REF!,#REF!,"0") ->  | L7: =IF($C7=#REF!,#REF!,"0") ->  | M7: =IF($C7=#REF!,#REF!,"0") ->  | N7: 0 | Q7: % | R7: =IF(N7=0,"",O7/N7) -> 
A8: =IF(O8=0,0,1) ->  | B8: =IF(C7,1,0) -> 1 | C8: =C7+1 -> 2022-09-02 | D8: =IF($C8=#REF!,#REF!,"0") ->  | E8: =IF($C8=#REF!,#REF!,"0") ->  | F8: =IF($C8=#REF!,#REF!,"0") ->  | G8: =IF($C8=#REF!,#REF!,"0") ->  | H8: =IF($C8=#REF!,#REF!,"0") ->  | I8: =IF($C8=#REF!,#REF!,"0") ->  | J8: =IF($C8=#REF!,#REF!,"0") ->  | K8: =IF($C8=#REF!,#REF!,"0") ->  | L8: =IF($C8=#REF!,#REF!,"0") ->  | M8: =IF($C8=#REF!,#REF!,"0") ->  | N8: 0 | Q8: %
B9: 1 | C9: 2022-09-03 | D9: =IF($C9=#REF!,#REF!,"0") ->  | E9: =IF($C9=#REF!,#REF!,"0") ->  | F9: =IF($C9=#REF!,#REF!,"0") ->  | G9: =IF($C9=#REF!,#REF!,"0") ->  | H9: =IF($C9=#REF!,#REF!,"0") ->  | I9: =IF($C9=#REF!,#REF!,"0") ->  | J9: =IF($C9=#REF!,#REF!,"0") ->  | K9: =IF($C9=#REF!,#REF!,"0") ->  | L9: =IF($C9=#REF!,#REF!,"0") ->  | M9: =IF($C9=#REF!,#REF!,"0") ->  | N9: 0 | Q9: %
C10: =C9+1 -> 2022-09-04 | D10: =IF(SUM(D7:D9)>(D44*(1/$Q$2)),"ä","æ") ->  | E10: =IF(SUM(E7:E9)>(E44*(1/$Q$2)),"ä","æ") ->  | N10: æ | Q10: æ | R10: æ
B11: 1 | C11: 2022-09-05 | D11: =IF($C11=#REF!,#REF!,"0") ->  | E11: =IF($C11=#REF!,#REF!,"0") ->  | F11: =IF($C11=#REF!,#REF!,"0") ->  | G11: =IF($C11=#REF!,#REF!,"0") ->  | H11: =IF($C11=#REF!,#REF!,"0") ->  | I11: =IF($C11=#REF!,#REF!,"0") ->  | J11: =IF($C11=#REF!,#REF!,"0") ->  | K11: =IF($C11=#REF!,#REF!,"0") ->  | L11: =IF($C11=#REF!,#REF!,"0") ->  | M11: =IF($C11=#REF!,#REF!,"0") ->  | N11: 0 | Q11: %
B12: 1 | C12: 2022-09-06 | D12: =IF($C12=#REF!,#REF!,"0") ->  | E12: =IF($C12=#REF!,#REF!,"0") ->  | F12: =IF($C12=#REF!,#REF!,"0") ->  | G12: =IF($C12=#REF!,#REF!,"0") ->  | H12: =IF($C12=#REF!,#REF!,"0") ->  | I12: =IF($C12=#REF!,#REF!,"0") ->  | J12: =IF($C12=#REF!,#REF!,"0") ->  | K12: =IF($C12=#REF!,#REF!,"0") ->  | L12: =IF($C12=#REF!,#REF!,"0") ->  | M12: =IF($C12=#REF!,#REF!,"0") ->  | N12: 0 | Q12: %
B13: 1 | C13: =C12+1 -> 2022-09-07 | D13: =IF($C13=#REF!,#REF!,"0") ->  | E13: =IF($C13=#REF!,#REF!,"0") ->  | F13: =IF($C13=#REF!,#REF!,"0") ->  | G13: =IF($C13=#REF!,#REF!,"0") ->  | H13: =IF($C13=#REF!,#REF!,"0") ->  | I13: =IF($C13=#REF!,#REF!,"0") ->  | J13: =IF($C13=#REF!,#REF!,"0") ->  | K13: =IF($C13=#REF!,#REF!,"0") ->  | L13: =IF($C13=#REF!,#REF!,"0") ->  | M13: =IF($C13=#REF!,#REF!,"0") ->  | N13: 0 | O13: =D13+F13+H13+J13+L13 ->  | P13: =SUM(E13+G13+I13+K13+M13) ->  | Q13: %
B14: 1 | C14: 2022-09-08 | D14: =IF($C14=#REF!,#REF!,"0") ->  | E14: =IF($C14=#REF!,#REF!,"0") ->  | F14: =IF($C14=#REF!,#REF!,"0") ->  | G14: =IF($C14=#REF!,#REF!,"0") ->  | H14: =IF($C14=#REF!,#REF!,"0") ->  | I14: =IF($C14=#REF!,#REF!,"0") ->  | J14: =IF($C14=#REF!,#REF!,"0") ->  | K14: =IF($C14=#REF!,#REF!,"0") ->  | L14: =IF($C14=#REF!,#REF!,"0") ->  | M14: =IF($C14=#REF!,#REF!,"0") ->  | N14: 0 | O14: =D14+F14+H14+J14+L14 ->  | P14: =SUM(E14+G14+I14+K14+M14) ->  | Q14: %
B15: 1 | C15: 2022-09-09 | D15: =IF($C15=#REF!,#REF!,"0") ->  | E15: =IF($C15=#REF!,#REF!,"0") ->  | F15: =IF($C15=#REF!,#REF!,"0") ->  | G15: =IF($C15=#REF!,#REF!,"0") ->  | H15: =IF($C15=#REF!,#REF!,"0") ->  | I15: =IF($C15=#REF!,#REF!,"0") ->  | J15: =IF($C15=#REF!,#REF!,"0") ->  | K15: =IF($C15=#REF!,#REF!,"0") ->  | L15: =IF($C15=#REF!,#REF!,"0") ->  | M15: =IF($C15=#REF!,#REF!,"0") ->  | N15: 0 | O15: =D15+F15+H15+J15+L15 ->  | Q15: %
B16: 1 | C16: 2022-09-10 | D16: =IF($C16=#REF!,#REF!,"0") ->  | E16: =IF($C16=#REF!,#REF!,"0") ->  | F16: =IF($C16=#REF!,#REF!,"0") ->  | G16: =IF($C16=#REF!,#REF!,"0") ->  | H16: =IF($C16=#REF!,#REF!,"0") ->  | I16: =IF($C16=#REF!,#REF!,"0") ->  | J16: =IF($C16=#REF!,#REF!,"0") ->  | K16: =IF($C16=#REF!,#REF!,"0") ->  | L16: =IF($C16=#REF!,#REF!,"0") ->  | M16: =IF($C16=#REF!,#REF!,"0") ->  | N16: 0 | O16: =D16+F16+H16+J16+L16 ->  | Q16: %
C17: 2022-09-11 | D17: =IF(SUM(D11:D16)+SUM(D7:D9)>(D44*(1/$Q$2)),"ä","æ") ->  | E17: =IF(SUM(E11:E16)+SUM(E7:E9)>(E44*(1/$Q$2)),"ä","æ") ->  | N17: æ | Q17: æ | R17: æ
B18: 1 | C18: 2022-09-12 | D18: =IF($C18=#REF!,#REF!,"0") ->  | E18: =IF($C18=#REF!,#REF!,"0") ->  | F18: =IF($C18=#REF!,#REF!,"0") ->  | G18: =IF($C18=#REF!,#REF!,"0") ->  | H18: =IF($C18=#REF!,#REF!,"0") ->  | I18: =IF($C18=#REF!,#REF!,"0") ->  | J18: =IF($C18=#REF!,#REF!,"0") ->  | K18: =IF($C18=#REF!,#REF!,"0") ->  | L18: =IF($C18=#REF!,#REF!,"0") ->  | M18: =IF($C18=#REF!,#REF!,"0") ->  | N18: 0 | O18: =D18+F18+H18+J18+L18 ->  | Q18: %
B19: 1 | C19: 2022-09-13 | D19: =IF($C19=#REF!,#REF!,"0") ->  | E19: =IF($C19=#REF!,#REF!,"0") ->  | F19: =IF($C19=#REF!,#REF!,"0") ->  | G19: =IF($C19=#REF!,#REF!,"0") ->  | H19: =IF($C19=#REF!,#REF!,"0") ->  | I19: =IF($C19=#REF!,#REF!,"0") ->  | J19: =IF($C19=#REF!,#REF!,"0") ->  | K19: =IF($C19=#REF!,#REF!,"0") ->  | L19: =IF($C19=#REF!,#REF!,"0") ->  | M19: =IF($C19=#REF!,#REF!,"0") ->  | N19: 0 | Q19: %
B20: 1 | C20: 2022-09-14 | D20: =IF($C20=#REF!,#REF!,"0") ->  | E20: =IF($C20=#REF!,#REF!,"0") ->  | F20: =IF($C20=#REF!,#REF!,"0") ->  | G20: =IF($C20=#REF!,#REF!,"0") ->  | H20: =IF($C20=#REF!,#REF!,"0") ->  | I20: =IF($C20=#REF!,#REF!,"0") ->  | J20: =IF($C20=#REF!,#REF!,"0") ->  | K20: =IF($C20=#REF!,#REF!,"0") ->  | L20: =IF($C20=#REF!,#REF!,"0") ->  | M20: =IF($C20=#REF!,#REF!,"0") ->  | N20: 0 | Q20: %
B21: 1 | C21: 2022-09-15 | D21: =IF($C21=#REF!,#REF!,"0") ->  | E21: =IF($C21=#REF!,#REF!,"0") ->  | F21: =IF($C21=#REF!,#REF!,"0") ->  | G21: =IF($C21=#REF!,#REF!,"0") ->  | H21: =IF($C21=#REF!,#REF!,"0") ->  | I21: =IF($C21=#REF!,#REF!,"0") ->  | J21: =IF($C21=#REF!,#REF!,"0") ->  | K21: =IF($C21=#REF!,#REF!,"0") ->  | L21: =IF($C21=#REF!,#REF!,"0") ->  | M21: =IF($C21=#REF!,#REF!,"0") ->  | N21: 0 | Q21: %
B22: 1 | C22: 2022-09-16 | D22: =IF($C22=#REF!,#REF!,"0") ->  | E22: =IF($C22=#REF!,#REF!,"0") ->  | F22: =IF($C22=#REF!,#REF!,"0") ->  | G22: =IF($C22=#REF!,#REF!,"0") ->  | H22: =IF($C22=#REF!,#REF!,"0") ->  | I22: =IF($C22=#REF!,#REF!,"0") ->  | J22: =IF($C22=#REF!,#REF!,"0") ->  | K22: =IF($C22=#REF!,#REF!,"0") ->  | L22: =IF($C22=#REF!,#REF!,"0") ->  | M22: =IF($C22=#REF!,#REF!,"0") ->  | N22: 0 | Q22: %
B23: 1 | C23: 2022-09-17 | D23: =IF($C23=#REF!,#REF!,"0") ->  | E23: =IF($C23=#REF!,#REF!,"0") ->  | F23: =IF($C23=#REF!,#REF!,"0") ->  | G23: =IF($C23=#REF!,#REF!,"0") ->  | H23: =IF($C23=#REF!,#REF!,"0") ->  | I23: =IF($C23=#REF!,#REF!,"0") ->  | J23: =IF($C23=#REF!,#REF!,"0") ->  | K23: =IF($C23=#REF!,#REF!,"0") ->  | L23: =IF($C23=#REF!,#REF!,"0") ->  | M23: =IF($C23=#REF!,#REF!,"0") ->  | N23: 0 | Q23: %
C24: 2022-09-18 | D24: =IF(SUM(D11:D16)+SUM(D7:D9)+SUM(D18:D23)>(D44*(2/$Q$2)),"ä","æ") ->  | E24: =IF(SUM(E11:E16)+SUM(E7:E9)+SUM(E18:E23)>(E44*(2/$Q$2)),"ä","æ") ->  | N24: æ | Q24: æ | R24: æ
B25: 1 | C25: 2022-09-19 | D25: =IF($C25=#REF!,#REF!,"0") ->  | E25: =IF($C25=#REF!,#REF!,"0") ->  | F25: =IF($C25=#REF!,#REF!,"0") ->  | G25: =IF($C25=#REF!,#REF!,"0") ->  | H25: =IF($C25=#REF!,#REF!,"0") ->  | I25: =IF($C25=#REF!,#REF!,"0") ->  | J25: =IF($C25=#REF!,#REF!,"0") ->  | K25: =IF($C25=#REF!,#REF!,"0") ->  | L25: =IF($C25=#REF!,#REF!,"0") ->  | M25: =IF($C25=#REF!,#REF!,"0") ->  | N25: 0 | Q25: %
B26: 1 | C26: 2022-09-20 | D26: =IF($C26=#REF!,#REF!,"0") ->  | E26: =IF($C26=#REF!,#REF!,"0") ->  | F26: =IF($C26=#REF!,#REF!,"0") ->  | G26: =IF($C26=#REF!,#REF!,"0") ->  | H26: =IF($C26=#REF!,#REF!,"0") ->  | I26: =IF($C26=#REF!,#REF!,"0") ->  | J26: =IF($C26=#REF!,#REF!,"0") ->  | K26: =IF($C26=#REF!,#REF!,"0") ->  | L26: =IF($C26=#REF!,#REF!,"0") ->  | M26: =IF($C26=#REF!,#REF!,"0") ->  | N26: 0 | Q26: %
B27: 1 | C27: 2022-09-21 | D27: =IF($C27=#REF!,#REF!,"0") ->  | E27: =IF($C27=#REF!,#REF!,"0") ->  | F27: =IF($C27=#REF!,#REF!,"0") ->  | G27: =IF($C27=#REF!,#REF!,"0") ->  | H27: =IF($C27=#REF!,#REF!,"0") ->  | I27: =IF($C27=#REF!,#REF!,"0") ->  | J27: =IF($C27=#REF!,#REF!,"0") ->  | K27: =IF($C27=#REF!,#REF!,"0") ->  | L27: =IF($C27=#REF!,#REF!,"0") ->  | M27: =IF($C27=#REF!,#REF!,"0") ->  | N27: 0 | Q27: %
B28: 1 | C28: 2022-09-22 | D28: =IF($C28=#REF!,#REF!,"0") ->  | E28: =IF($C28=#REF!,#REF!,"0") ->  | F28: =IF($C28=#REF!,#REF!,"0") ->  | G28: =IF($C28=#REF!,#REF!,"0") ->  | H28: =IF($C28=#REF!,#REF!,"0") ->  | I28: =IF($C28=#REF!,#REF!,"0") ->  | J28: =IF($C28=#REF!,#REF!,"0") ->  | K28: =IF($C28=#REF!,#REF!,"0") ->  | L28: =IF($C28=#REF!,#REF!,"0") ->  | M28: =IF($C28=#REF!,#REF!,"0") ->  | N28: 0 | Q28: %
B29: 1 | C29: 2022-09-23 | D29: =IF($C29=#REF!,#REF!,"0") ->  | E29: =IF($C29=#REF!,#REF!,"0") ->  | F29: =IF($C29=#REF!,#REF!,"0") ->  | G29: =IF($C29=#REF!,#REF!,"0") ->  | H29: =IF($C29=#REF!,#REF!,"0") ->  | I29: =IF($C29=#REF!,#REF!,"0") ->  | J29: =IF($C29=#REF!,#REF!,"0") ->  | K29: =IF($C29=#REF!,#REF!,"0") ->  | L29: =IF($C29=#REF!,#REF!,"0") ->  | M29: =IF($C29=#REF!,#REF!,"0") ->  | N29: 0 | Q29: %
B30: 1 | C30: 2022-09-24 | D30: =IF($C30=#REF!,#REF!,"0") ->  | E30: =IF($C30=#REF!,#REF!,"0") ->  | F30: =IF($C30=#REF!,#REF!,"0") ->  | G30: =IF($C30=#REF!,#REF!,"0") ->  | H30: =IF($C30=#REF!,#REF!,"0") ->  | I30: =IF($C30=#REF!,#REF!,"0") ->  | J30: =IF($C30=#REF!,#REF!,"0") ->  | K30: =IF($C30=#REF!,#REF!,"0") ->  | L30: =IF($C30=#REF!,#REF!,"0") ->  | M30: =IF($C30=#REF!,#REF!,"0") ->  | N30: 0 | Q30: %
C31: 2022-09-25 | D31: =IF(SUM(D18:D23)+SUM(D11:D16)+SUM(D25:D30)+SUM(D7:D9)>(D44*(3/$Q$2)),"ä","æ") ->  | E31: =IF(SUM(E18:E23)+SUM(E11:E16)+SUM(E25:E30)+SUM(E7:E9)>(E44*(3/$Q$2)),"ä","æ") ->  | N31: æ | Q31: æ | R31: æ
B32: 1 | C32: 2022-09-26 | D32: =IF($C32=#REF!,#REF!,"0") ->  | E32: =IF($C32=#REF!,#REF!,"0") ->  | F32: =IF($C32=#REF!,#REF!,"0") ->  | G32: =IF($C32=#REF!,#REF!,"0") ->  | H32: =IF($C32=#REF!,#REF!,"0") ->  | I32: =IF($C32=#REF!,#REF!,"0") ->  | J32: =IF($C32=#REF!,#REF!,"0") ->  | K32: =IF($C32=#REF!,#REF!,"0") ->  | L32: =IF($C32=#REF!,#REF!,"0") ->  | M32: =IF($C32=#REF!,#REF!,"0") ->  | N32: 0 | Q32: %
B33: 1 | C33: 2022-09-27 | D33: =IF($C33=#REF!,#REF!,"0") ->  | E33: =IF($C33=#REF!,#REF!,"0") ->  | F33: =IF($C33=#REF!,#REF!,"0") ->  | G33: =IF($C33=#REF!,#REF!,"0") ->  | H33: =IF($C33=#REF!,#REF!,"0") ->  | I33: =IF($C33=#REF!,#REF!,"0") ->  | J33: =IF($C33=#REF!,#REF!,"0") ->  | K33: =IF($C33=#REF!,#REF!,"0") ->  | L33: =IF($C33=#REF!,#REF!,"0") ->  | M33: =IF($C33=#REF!,#REF!,"0") ->  | N33: 0 | Q33: %
B34: 1 | C34: 2022-09-28 | D34: =IF($C34=#REF!,#REF!,"0") ->  | E34: =IF($C34=#REF!,#REF!,"0") ->  | F34: =IF($C34=#REF!,#REF!,"0") ->  | G34: =IF($C34=#REF!,#REF!,"0") ->  | H34: =IF($C34=#REF!,#REF!,"0") ->  | I34: =IF($C34=#REF!,#REF!,"0") ->  | J34: =IF($C34=#REF!,#REF!,"0") ->  | K34: =IF($C34=#REF!,#REF!,"0") ->  | L34: =IF($C34=#REF!,#REF!,"0") ->  | M34: =IF($C34=#REF!,#REF!,"0") ->  | N34: 0 | Q34: %
B35: 1 | C35: 2022-09-29 | D35: =IF($C35=#REF!,#REF!,"0") ->  | E35: =IF($C35=#REF!,#REF!,"0") ->  | F35: =IF($C35=#REF!,#REF!,"0") ->  | G35: =IF($C35=#REF!,#REF!,"0") ->  | H35: =IF($C35=#REF!,#REF!,"0") ->  | I35: =IF($C35=#REF!,#REF!,"0") ->  | J35: =IF($C35=#REF!,#REF!,"0") ->  | K35: =IF($C35=#REF!,#REF!,"0") ->  | L35: =IF($C35=#REF!,#REF!,"0") ->  | M35: =IF($C35=#REF!,#REF!,"0") ->  | N35: 0 | Q35: %
B36: 1 | C36: 2022-09-30 | D36: =IF($C36=#REF!,#REF!,"0") ->  | E36: =IF($C36=#REF!,#REF!,"0") ->  | F36: =IF($C36=#REF!,#REF!,"0") ->  | G36: =IF($C36=#REF!,#REF!,"0") ->  | H36: =IF($C36=#REF!,#REF!,"0") ->  | I36: =IF($C36=#REF!,#REF!,"0") ->  | J36: =IF($C36=#REF!,#REF!,"0") ->  | K36: =IF($C36=#REF!,#REF!,"0") ->  | L36: =IF($C36=#REF!,#REF!,"0") ->  | M36: =IF($C36=#REF!,#REF!,"0") ->  | N36: 0 | Q36: %
C37: 2022-10-01 | D37: =IF(SUM(D25:D30)+SUM(D18:D23)+SUM(D31:D36)+SUM(D11:D16)+SUM(D7:D9)>(D44*(4/$Q$2)),"ä","æ") ->  | E37: =IF(SUM(E25:E30)+SUM(E18:E23)+SUM(E31:E36)+SUM(E11:E16)+SUM(E7:E9)>(E44*(4/$Q$2)),"ä","æ") ->  | N37: æ | Q37: æ | R37: æ
D38: =IF(SUM(D25:D30)+SUM(D18:D23)+SUM(D32:D37)+SUM(D11:D16)+SUM(D4:D9)>(D42),"ä","æ") ->  | N38: æ | Q38: æ | R38: æ
A41: =SUM(A34:A37,A27:A32,A20:A25,A13:A18,A7:A11) ->  | B41: =SUM(B7:B37) -> 26 | C41: TOTAL MTD | D41: =SUM(D7:D37) ->  | N41: 0 | O41: =SUM(O8:O37) ->  | P41: =SUM(P7:P37) ->  | Q41: %
D43: MO | F43: B | H43: F | J43: MI | L43: I | N43: TX | O43: CA | P43: IMU | Q43: % IMU | R43: PM
C44: OBJECTIF MTD
C45: INDEX (vs AOP) | D45: =IF(D52>(D44/$B$41),"ä","æ") ->  | E45: =IF(E52>(E44/$B$41),"ä","æ") ->  | Q45: =IF(Q41>Q44,"ä","æ") -> ä | R45: =IF(R41>R44,"ä","æ") -> æ
C46: % RÉALISÉ | D46: =SUM(D41/D44) ->  | F46: =SUM(F41/F44) ->  | H46: =SUM(H41/H44) ->  | N46: =SUM(N41/N44) ->  | O46: =(D41+F41+H41+J41+L41)/O44 ->  | P46: =(E41+G41+I41+K41+M41)/P44 ->  | Q46: =IF(ISERROR(Q41-Q44),"",Q41-Q44) ->  | R46: =IF(ISERROR(R41-R44),"",R41-R44) -> 
C47: INDEX (vs % Réal Attendu) | D47: =IF(D46>$Q$53,"ä","æ") ->  | E47: =IF(E46>$Q$53,"ä","æ") -> 
D50: MO | F50: B | H50: F | J50: MI | L50: I | N50: TX | O50: CA | P50: MARGE | Q50: Nb de Jours restants mois | R50: =+$R$51-$A$41 -> 
C51: CA/MGE/TR Restants à faire/ jour | D51: =IF($R$50=0,D44-D41,(D44-D41)/$R$50) ->  | O51: =D51+F51+H51+J51+L51 ->  | P51: =E51+G51+I51+K51+M51 ->  | Q51: Nb de jours dans le mois | R51: =B41 -> 26
D52: =D41/$A$41 ->  | E52: =E41/$A$41 ->  | Q52: % Réalisation Attendu
D53: PÔLE | Q53: =((100/$R$51)*($R$51-$R$50))/100 -> 
E55: CA | G55: IMU
D56: OBJECTIF MTD | E56: =+F44+J44 -> 0 | G56: =+G44+K44 -> 0 | I56: ² | K56: CA | L56: IMU
D57: Réalisé MTD | E57: =+F41+J41 ->  | G57: =+G41+K41 ->  | J57: CA/MGE Restants à faire/jour | K57: =+F51+J51 ->  | L57: =+G51+K51 -> 
D58: INDEX | E58: =IF(E57>E60,"ä","æ") ->  | F58: =IF(F54>F61,"ä","æ") -> æ | G58: =IF(G57>G60,"ä","æ") -> 
D59: % RÉALISÉ | E59: =+$E$57/$E$56 ->  | G59: =+$G$57/$G$56 -> 
E60: =(E56/$R$51)*($R$51-$R$50) ->  | G60: =(G56/$R$51)*($R$51-$R$50) -> 
E63: S1 | G63: S2 | I63: S3 | K63: S4 | M63: S5 | O63: CONTRÔLE | Q63: TOTAL DIVISIONS | Y63: AOP DIVISIONS | AD63: Delta VS Prime T2 | AF63: Delta VS Prime T300
E64: CA | F64: MARGE | G64: CA | H64: MARGE | I64: CA | J64: MARGE | K64: CA | L64: MARGE | M64: CA | N64: MARGE | O64: CA | P64: MARGE | Q64: CA | R64: MARGE | Y64: CA | Z64: MARGE | AA64: CA/Sem | AB64: Marge/Sem | AD64: CA(85%) | AE64: MARGE (90%) | AF64: CA (95%) | AG64: MARGE (95%)
A65: =D65 -> MOBILIER | C65: 1 | D65: MOBILIER | E65: =SUM(D6:D11) ->  | F65: =SUM(E6:E11) ->  | G65: =SUM(D13:D18) ->  | H65: =SUM(E13:E18) ->  | I65: =SUM(D20:D25) ->  | J65: =SUM(E20:E25) ->  | K65: =SUM(D27:D32) ->  | L65: =SUM(E27:E32) ->  | M65: =SUM(D34:D39) ->  | N65: =SUM(E34:E39) ->  | O65: =IF(SUM(E65,G65,I65,K65,M65)=D41,"OK","NOK") ->  | P65: =IF(SUM(F65,H65,J65,L65,N65)=E41,"OK","NOK") ->  | Q65: =SUM(E65,G65,I65,K65,M65) ->  | X65: MOBILIER | Y65: =+D44 -> 0 | Z65: =+E44 -> 0 | AA65: =Y65/$Q$2 -> 0 | AB65: =Z65/$Q$2 -> 0 | AC65: MOB | AD65: =Y65*85% -> 0 | AE65: =Z65*90% -> 0
A66: =D66 -> BUREAUTIQUE | C66: 2 | D66: BUREAUTIQUE | E66: =SUM(F6:F11) ->  | F66: =SUM(G6:G11) ->  | G66: =SUM(F13:F18) ->  | H66: =SUM(G13:G18) ->  | I66: =SUM(F20:F25) ->  | J66: =SUM(G20:G25) ->  | K66: =SUM(F27:F32) ->  | L66: =SUM(G27:G32) ->  | M66: =SUM(F34:F39) ->  | N66: =SUM(G34:G39) ->  | O66: =IF(SUM(E66,G66,I66,K66,M66)=F41,"OK","NOK") ->  | P66: =IF(SUM(F66,H66,J66,L66,N66)=G41,"OK","NOK") ->  | X66: BUREAUTIQUE | Y66: =+F44 -> 0 | Z66: =+G44 -> 0 | AA66: =Y66/$Q$2 -> 0 | AB66: 0 | AC66: BUR | AD66: 0 | AE66: 0
A67: FOURNITURES | C67: 3 | D67: FOURNITURES | E67: =SUM(H6:H11) ->  | F67: =SUM(I6:I11) ->  | G67: =SUM(H13:H18) ->  | H67: =SUM(I13:I18) ->  | I67: =SUM(H20:H25) ->  | J67: =SUM(I20:I25) ->  | K67: =SUM(H27:H32) ->  | L67: =SUM(I27:I32) ->  | M67: =SUM(H34:H39) ->  | N67: =SUM(I34:I39) ->  | O67: =IF(SUM(E67,G67,I67,K67,M67)=H41,"OK","NOK") ->  | P67: =IF(SUM(F67,H67,J67,L67,N67)=I41,"OK","NOK") ->  | X67: FOURNITURES | Y67: =+H44 -> 0 | Z67: =+I44 -> 0 | AA67: 0 | AB67: 0 | AC67: FOURN | AD67: 0 | AE67: 0
A68: MICRO | C68: 4 | D68: MICRO | E68: =SUM(J6:J11) ->  | F68: =SUM(K6:K11) ->  | G68: =SUM(J13:J18) ->  | H68: =SUM(K13:K18) ->  | I68: =SUM(J20:J25) ->  | J68: =SUM(K20:K25) ->  | K68: =SUM(J27:J32) ->  | L68: =SUM(K27:K32) ->  | M68: =SUM(J34:J39) ->  | N68: =SUM(K34:K39) ->  | O68: =IF(SUM(E68,G68,I68,K68,M68)=J41,"OK","NOK") ->  | P68: =IF(SUM(F68,H68,J68,L68,N68)=K41,"OK","NOK") ->  | X68: MICRO | Y68: =+J44 -> 0 | Z68: =+K44 -> 0 | AA68: 0 | AB68: 0 | AC68: MICRO | AD68: 0 | AE68: 0
A69: COPIE IMPRIMERIE | C69: 9 | D69: COPIE IMPRIMERIE | E69: =SUM(L6:L11) ->  | F69: =SUM(M6:M11) ->  | G69: =SUM(L13:L18) ->  | H69: =SUM(M13:M18) ->  | I69: =SUM(L20:L25) ->  | J69: =SUM(M20:M25) ->  | K69: =SUM(L27:L32) ->  | L69: =SUM(M27:M32) ->  | M69: =SUM(L34:L39) ->  | N69: =SUM(M34:M39) ->  | O69: =IF(SUM(E69,G69,I69,K69,M69)=L41,"OK","NOK") ->  | P69: =IF(SUM(F69,H69,J69,L69,N69)=M41,"OK","NOK") ->  | X69: COPIE IMPRIMERIE | Y69: =+L44 -> 0 | Z69: =+M44 -> 0 | AA69: 0 | AB69: 0 | AC69: IMAG | AD69: 0 | AE69: 0 | AI69: PDM Imag
A70: Pôle Techno | C70: 2&4 | D70: Pôle Techno | E70: =SUM(E66,E68) ->  | F70: =SUM(F66,F68) ->  | X70: Pôle Techno | Y70: =+Y66+Y68 -> 0 | Z70: =+Z66+Z68 -> 0 | AA70: 0 | AB70: 0 | AD70: 0 | AE70: 0 | AI70: =+Q69/Q71 -> 
A71: MAGASIN | D71: MAGASIN | E71: =SUM(E65:E69) ->  | F71: =SUM(F65:F69) ->  | Q71: =SUM(Q65:Q69) ->  | R71: =SUM(R65:R69) ->  | X71: MAGASIN | Y71: =SUM(Y65:Y69) -> 0 | Z71: =SUM(Z65:Z69) -> 0 | AA71: 0 | AB71: 0 | AF71: =Y71*95% -> 0 | AG71: =Z71*95% -> 0 | AH71: OD | AI71: =IF(AND($AI$70>=4%,$AI$70<5%),25,IF($AI$70>=5%,50,0)) ->  | AJ71: 0.05
D72: CONTRÔLE | E72: =IF(SUM(E65:E69)=SUM(O6:O11),"OK","NOK") ->  | F72: =IF(SUM(F65:F69)=SUM(P6:P11),"OK","NOK") ->  | G72: =IF(SUM(G65:G69)=SUM(O13:O18),"OK","NOK") ->  | H72: =IF(SUM(H65:H69)=SUM(P13:P18),"OK","NOK") ->  | I72: =IF(SUM(I65:I69)=SUM(O20:O25),"OK","NOK") ->  | J72: =IF(SUM(J65:J69)=SUM(P20:P25),"OK","NOK") ->  | K72: =IF(SUM(K65:K69)=SUM(O27:O32),"OK","NOK") ->  | L72: =IF(SUM(L65:L69)=SUM(P27:P32),"OK","NOK") ->  | M72: =IF(SUM(M65:M69)=SUM(O34:O39),"OK","NOK") ->  | N72: =IF(SUM(N65:N69)=SUM(P34:P39),"OK","NOK") ->  | AH72: ODC | AI72: =IF(AND($AI$70>=9%,$AI$70<10%),25,IF($AI$70>=10%,50,0)) ->  | AJ72: 0.1

Sheet OCTOBRE
L2: Octobre | O2: 2022 | Q2: 4
D4: MO | F4: B | H4: F | J4: MI | L4: C | N4: TRANSAC JOUR | O4: CA JOUR | P4: IMU JOUR | Q4: % IMU | R4: PM JOUR
D5: CA | E5: IMU | F5: CA | G5: IMU | H5: CA | I5: IMU | J5: CA | K5: IMU | L5: CA | M5: IMU
C6: 2022-02-28 | D6: 0 | E6: 0 | F6: 0 | G6: 0 | H6: 0 | I6: 0 | J6: 0 | K6: 0 | L6: 0 | M6: 0 | N6: 0 | O6: =D6+F6+H6+J6+L6 -> 0 | P6: =SUM(E6+G6+I6+K6+M6) -> 0 | Q6: =IF(ISERROR(P6/O6),"%",P6/O6) -> % | R6: =IF(N6=0,"",O6/N6) -> 
A7: =IF(O7=0,0,1) ->  | B7: =IF(C6,1,0) -> 1 | C7: 2022-10-01 | D7: =IF($C7=#REF!,#REF!,"0") ->  | E7: =IF($C7=#REF!,#REF!,"0") ->  | F7: =IF($C7=#REF!,#REF!,"0") ->  | G7: =IF($C7=#REF!,#REF!,"0") ->  | H7: =IF($C7=#REF!,#REF!,"0") ->  | I7: =IF($C7=#REF!,#REF!,"0") ->  | J7: =IF($C7=#REF!,#REF!,"0") ->  | K7: =IF($C7=#REF!,#REF!,"0") ->  | L7: =IF($C7=#REF!,#REF!,"0") ->  | M7: =IF($C7=#REF!,#REF!,"0") ->  | N7: 0 | Q7: % | R7: =IF(N7=0,"",O7/N7) -> 
C8: =C7+1 -> 2022-10-02 | D8: =IF(SUM(D7)>(D44*(1/$Q$2)),"ä","æ") ->  | E8: =IF(SUM(E7)>(E44*(1/$Q$2)),"ä","æ") ->  | N8: æ | Q8: æ | R8: æ
A9: =IF(O9=0,0,1) ->  | B9: =IF(C8,1,0) -> 1 | C9: =C8+1 -> 2022-10-03 | D9: =IF($C9=#REF!,#REF!,"0") ->  | E9: =IF($C9=#REF!,#REF!,"0") ->  | F9: =IF($C9=#REF!,#REF!,"0") ->  | G9: =IF($C9=#REF!,#REF!,"0") ->  | H9: =IF($C9=#REF!,#REF!,"0") ->  | I9: =IF($C9=#REF!,#REF!,"0") ->  | J9: =IF($C9=#REF!,#REF!,"0") ->  | K9: =IF($C9=#REF!,#REF!,"0") ->  | L9: =IF($C9=#REF!,#REF!,"0") ->  | M9: =IF($C9=#REF!,#REF!,"0") ->  | N9: 0 | Q9: %
B10: 1 | C10: 2022-10-04 | D10: =IF($C10=#REF!,#REF!,"0") ->  | E10: =IF($C10=#REF!,#REF!,"0") ->  | F10: =IF($C10=#REF!,#REF!,"0") ->  | G10: =IF($C10=#REF!,#REF!,"0") ->  | H10: =IF($C10=#REF!,#REF!,"0") ->  | I10: =IF($C10=#REF!,#REF!,"0") ->  | J10: =IF($C10=#REF!,#REF!,"0") ->  | K10: =IF($C10=#REF!,#REF!,"0") ->  | L10: =IF($C10=#REF!,#REF!,"0") ->  | M10: =IF($C10=#REF!,#REF!,"0") ->  | N10: 0 | Q10: %
B11: 1 | C11: 2022-10-05 | D11: =IF($C11=#REF!,#REF!,"0") ->  | E11: =IF($C11=#REF!,#REF!,"0") ->  | F11: =IF($C11=#REF!,#REF!,"0") ->  | G11: =IF($C11=#REF!,#REF!,"0") ->  | H11: =IF($C11=#REF!,#REF!,"0") ->  | I11: =IF($C11=#REF!,#REF!,"0") ->  | J11: =IF($C11=#REF!,#REF!,"0") ->  | K11: =IF($C11=#REF!,#REF!,"0") ->  | L11: =IF($C11=#REF!,#REF!,"0") ->  | M11: =IF($C11=#REF!,#REF!,"0") ->  | N11: 0 | Q11: %
B12: 1 | C12: 2022-10-06 | D12: =IF($C12=#REF!,#REF!,"0") ->  | E12: =IF($C12=#REF!,#REF!,"0") ->  | F12: =IF($C12=#REF!,#REF!,"0") ->  | G12: =IF($C12=#REF!,#REF!,"0") ->  | H12: =IF($C12=#REF!,#REF!,"0") ->  | I12: =IF($C12=#REF!,#REF!,"0") ->  | J12: =IF($C12=#REF!,#REF!,"0") ->  | K12: =IF($C12=#REF!,#REF!,"0") ->  | L12: =IF($C12=#REF!,#REF!,"0") ->  | M12: =IF($C12=#REF!,#REF!,"0") ->  | N12: 0 | Q12: %
B13: 1 | C13: =C12+1 -> 2022-10-07 | D13: =IF($C13=#REF!,#REF!,"0") ->  | E13: =IF($C13=#REF!,#REF!,"0") ->  | F13: =IF($C13=#REF!,#REF!,"0") ->  | G13: =IF($C13=#REF!,#REF!,"0") ->  | H13: =IF($C13=#REF!,#REF!,"0") ->  | I13: =IF($C13=#REF!,#REF!,"0") ->  | J13: =IF($C13=#REF!,#REF!,"0") ->  | K13: =IF($C13=#REF!,#REF!,"0") ->  | L13: =IF($C13=#REF!,#REF!,"0") ->  | M13: =IF($C13=#REF!,#REF!,"0") ->  | N13: 0 | O13: =D13+F13+H13+J13+L13 ->  | P13: =SUM(E13+G13+I13+K13+M13) ->  | Q13: %
B14: 1 | C14: 2022-10-08 | D14: =IF($C14=#REF!,#REF!,"0") ->  | E14: =IF($C14=#REF!,#REF!,"0") ->  | F14: =IF($C14=#REF!,#REF!,"0") ->  | G14: =IF($C14=#REF!,#REF!,"0") ->  | H14: =IF($C14=#REF!,#REF!,"0") ->  | I14: =IF($C14=#REF!,#REF!,"0") ->  | J14: =IF($C14=#REF!,#REF!,"0") ->  | K14: =IF($C14=#REF!,#REF!,"0") ->  | L14: =IF($C14=#REF!,#REF!,"0") ->  | M14: =IF($C14=#REF!,#REF!,"0") ->  | N14: 0 | O14: =D14+F14+H14+J14+L14 ->  | P14: =SUM(E14+G14+I14+K14+M14) ->  | Q14: %
C15: 2022-10-09 | D15: =IF(SUM(D9:D14)+SUM(D7)>(D44*(1/$Q$2)),"ä","æ") ->  | E15: =IF(SUM(E9:E14)+SUM(E7)>(E44*(1/$Q$2)),"ä","æ") ->  | N15: æ | Q15: æ | R15: æ
B16: 1 | C16: 2022-10-10 | D16: =IF($C16=#REF!,#REF!,"0") ->  | E16: =IF($C16=#REF!,#REF!,"0") ->  | F16: =IF($C16=#REF!,#REF!,"0") ->  | G16: =IF($C16=#REF!,#REF!,"0") ->  | H16: =IF($C16=#REF!,#REF!,"0") ->  | I16: =IF($C16=#REF!,#REF!,"0") ->  | J16: =IF($C16=#REF!,#REF!,"0") ->  | K16: =IF($C16=#REF!,#REF!,"0") ->  | L16: =IF($C16=#REF!,#REF!,"0") ->  | M16: =IF($C16=#REF!,#REF!,"0") ->  | N16: 0 | O16: =D16+F16+H16+J16+L16 ->  | Q16: %
B17: 1 | C17: 2022-10-11 | D17: =IF($C17=#REF!,#REF!,"0") ->  | E17: =IF($C17=#REF!,#REF!,"0") ->  | F17: =IF($C17=#REF!,#REF!,"0") ->  | G17: =IF($C17=#REF!,#REF!,"0") ->  | H17: =IF($C17=#REF!,#REF!,"0") ->  | I17: =IF($C17=#REF!,#REF!,"0") ->  | J17: =IF($C17=#REF!,#REF!,"0") ->  | K17: =IF($C17=#REF!,#REF!,"0") ->  | L17: =IF($C17=#REF!,#REF!,"0") ->  | M17: =IF($C17=#REF!,#REF!,"0") ->  | N17: 0 | Q17: %
B18: 1 | C18: 2022-10-12 | D18: =IF($C18=#REF!,#REF!,"0") ->  | E18: =IF($C18=#REF!,#REF!,"0") ->  | F18: =IF($C18=#REF!,#REF!,"0") ->  | G18: =IF($C18=#REF!,#REF!,"0") ->  | H18: =IF($C18=#REF!,#REF!,"0") ->  | I18: =IF($C18=#REF!,#REF!,"0") ->  | J18: =IF($C18=#REF!,#REF!,"0") ->  | K18: =IF($C18=#REF!,#REF!,"0") ->  | L18: =IF($C18=#REF!,#REF!,"0") ->  | M18: =IF($C18=#REF!,#REF!,"0") ->  | N18: 0 | Q18: %
B19: 1 | C19: 2022-10-13 | D19: =IF($C19=#REF!,#REF!,"0") ->  | E19: =IF($C19=#REF!,#REF!,"0") ->  | F19: =IF($C19=#REF!,#REF!,"0") ->  | G19: =IF($C19=#REF!,#REF!,"0") ->  | H19: =IF($C19=#REF!,#REF!,"0") ->  | I19: =IF($C19=#REF!,#REF!,"0") ->  | J19: =IF($C19=#REF!,#REF!,"0") ->  | K19: =IF($C19=#REF!,#REF!,"0") ->  | L19: =IF($C19=#REF!,#REF!,"0") ->  | M19: =IF($C19=#REF!,#REF!,"0") ->  | N19: 0 | Q19: %
B20: 1 | C20: 2022-10-14 | D20: =IF($C20=#REF!,#REF!,"0") ->  | E20: =IF($C20=#REF!,#REF!,"0") ->  | F20: =IF($C20=#REF!,#REF!,"0") ->  | G20: =IF($C20=#REF!,#REF!,"0") ->  | H20: =IF($C20=#REF!,#REF!,"0") ->  | I20: =IF($C20=#REF!,#REF!,"0") ->  | J20: =IF($C20=#REF!,#REF!,"0") ->  | K20: =IF($C20=#REF!,#REF!,"0") ->  | L20: =IF($C20=#REF!,#REF!,"0") ->  | M20: =IF($C20=#REF!,#REF!,"0") ->  | N20: 0 | Q20: %
B21: 1 | C21: 2022-10-15 | D21: =IF($C21=#REF!,#REF!,"0") ->  | E21: =IF($C21=#REF!,#REF!,"0") ->  | F21: =IF($C21=#REF!,#REF!,"0") ->  | G21: =IF($C21=#REF!,#REF!,"0") ->  | H21: =IF($C21=#REF!,#REF!,"0") ->  | I21: =IF($C21=#REF!,#REF!,"0") ->  | J21: =IF($C21=#REF!,#REF!,"0") ->  | K21: =IF($C21=#REF!,#REF!,"0") ->  | L21: =IF($C21=#REF!,#REF!,"0") ->  | M21: =IF($C21=#REF!,#REF!,"0") ->  | N21: 0 | Q21: %
C22: 2022-10-16 | D22: =IF(SUM(D9:D14)+SUM(D7)+SUM(D16:D21)>(D44*(2/$Q$2)),"ä","æ") ->  | E22: =IF(SUM(E9:E14)+SUM(E7)+SUM(E16:E21)>(E44*(2/$Q$2)),"ä","æ") ->  | N22: æ | Q22: æ | R22: æ
B23: 1 | C23: 2022-10-17 | D23: =IF($C23=#REF!,#REF!,"0") ->  | E23: =IF($C23=#REF!,#REF!,"0") ->  | F23: =IF($C23=#REF!,#REF!,"0") ->  | G23: =IF($C23=#REF!,#REF!,"0") ->  | H23: =IF($C23=#REF!,#REF!,"0") ->  | I23: =IF($C23=#REF!,#REF!,"0") ->  | J23: =IF($C23=#REF!,#REF!,"0") ->  | K23: =IF($C23=#REF!,#REF!,"0") ->  | L23: =IF($C23=#REF!,#REF!,"0") ->  | M23: =IF($C23=#REF!,#REF!,"0") ->  | N23: 0 | Q23: %
B24: 1 | C24: 2022-10-18 | D24: =IF($C24=#REF!,#REF!,"0") ->  | E24: =IF($C24=#REF!,#REF!,"0") ->  | F24: =IF($C24=#REF!,#REF!,"0") ->  | G24: =IF($C24=#REF!,#REF!,"0") ->  | H24: =IF($C24=#REF!,#REF!,"0") ->  | I24: =IF($C24=#REF!,#REF!,"0") ->  | J24: =IF($C24=#REF!,#REF!,"0") ->  | K24: =IF($C24=#REF!,#REF!,"0") ->  | L24: =IF($C24=#REF!,#REF!,"0") ->  | M24: =IF($C24=#REF!,#REF!,"0") ->  | N24: 0 | Q24: %
B25: 1 | C25: =C24+1 -> 2022-10-19 | D25: =IF($C25=#REF!,#REF!,"0") ->  | E25: =IF($C25=#REF!,#REF!,"0") ->  | F25: =IF($C25=#REF!,#REF!,"0") ->  | G25: =IF($C25=#REF!,#REF!,"0") ->  | H25: =IF($C25=#REF!,#REF!,"0") ->  | I25: =IF($C25=#REF!,#REF!,"0") ->  | J25: =IF($C25=#REF!,#REF!,"0") ->  | K25: =IF($C25=#REF!,#REF!,"0") ->  | L25: =IF($C25=#REF!,#REF!,"0") ->  | M25: =IF($C25=#REF!,#REF!,"0") ->  | N25: 0 | Q25: %
B26: 1 | C26: 2022-10-20 | D26: =IF($C26=#REF!,#REF!,"0") ->  | E26: =IF($C26=#REF!,#REF!,"0") ->  | F26: =IF($C26=#REF!,#REF!,"0") ->  | G26: =IF($C26=#REF!,#REF!,"0") ->  | H26: =IF($C26=#REF!,#REF!,"0") ->  | I26: =IF($C26=#REF!,#REF!,"0") ->  | J26: =IF($C26=#REF!,#REF!,"0") ->  | K26: =IF($C26=#REF!,#REF!,"0") ->  | L26: =IF($C26=#REF!,#REF!,"0") ->  | M26: =IF($C26=#REF!,#REF!,"0") ->  | N26: 0 | Q26: %
B27: 1 | C27: 2022-10-21 | D27: =IF($C27=#REF!,#REF!,"0") ->  | E27: =IF($C27=#REF!,#REF!,"0") ->  | F27: =IF($C27=#REF!,#REF!,"0") ->  | G27: =IF($C27=#REF!,#REF!,"0") ->  | H27: =IF($C27=#REF!,#REF!,"0") ->  | I27: =IF($C27=#REF!,#REF!,"0") ->  | J27: =IF($C27=#REF!,#REF!,"0") ->  | K27: =IF($C27=#REF!,#REF!,"0") ->  | L27: =IF($C27=#REF!,#REF!,"0") ->  | M27: =IF($C27=#REF!,#REF!,"0") ->  | N27: 0 | Q27: %
B28: 1 | C28: 2022-10-22 | D28: =IF($C28=#REF!,#REF!,"0") ->  | E28: =IF($C28=#REF!,#REF!,"0") ->  | F28: =IF($C28=#REF!,#REF!,"0") ->  | G28: =IF($C28=#REF!,#REF!,"0") ->  | H28: =IF($C28=#REF!,#REF!,"0") ->  | I28: =IF($C28=#REF!,#REF!,"0") ->  | J28: =IF($C28=#REF!,#REF!,"0") ->  | K28: =IF($C28=#REF!,#REF!,"0") ->  | L28: =IF($C28=#REF!,#REF!,"0") ->  | M28: =IF($C28=#REF!,#REF!,"0") ->  | N28: 0 | Q28: %
C29: 2022-10-23 | D29: =IF(SUM(D16:D21)+SUM(D9:D14)+SUM(D23:D28)+SUM(D7)>(D44*(3/$Q$2)),"ä","æ") ->  | E29: =IF(SUM(E16:E21)+SUM(E9:E14)+SUM(E23:E28)+SUM(E7)>(E44*(3/$Q$2)),"ä","æ") ->  | N29: æ | Q29: æ | R29: æ
B30: 1 | C30: 2022-10-24 | D30: =IF($C30=#REF!,#REF!,"0") ->  | E30: =IF($C30=#REF!,#REF!,"0") ->  | F30: =IF($C30=#REF!,#REF!,"0") ->  | G30: =IF($C30=#REF!,#REF!,"0") ->  | H30: =IF($C30=#REF!,#REF!,"0") ->  | I30: =IF($C30=#REF!,#REF!,"0") ->  | J30: =IF($C30=#REF!,#REF!,"0") ->  | K30: =IF($C30=#REF!,#REF!,"0") ->  | L30: =IF($C30=#REF!,#REF!,"0") ->  | M30: =IF($C30=#REF!,#REF!,"0") ->  | N30: 0 | Q30: %
B31: 1 | C31: 2022-10-25 | D31: =IF($C31=#REF!,#REF!,"0") ->  | E31: =IF($C31=#REF!,#REF!,"0") ->  | F31: =IF($C31=#REF!,#REF!,"0") ->  | G31: =IF($C31=#REF!,#REF!,"0") ->  | H31: =IF($C31=#REF!,#REF!,"0") ->  | I31: =IF($C31=#REF!,#REF!,"0") ->  | J31: =IF($C31=#REF!,#REF!,"0") ->  | K31: =IF($C31=#REF!,#REF!,"0") ->  | L31: =IF($C31=#REF!,#REF!,"0") ->  | M31: =IF($C31=#REF!,#REF!,"0") ->  | N31: 0 | Q31: %
B32: 1 | C32: 2022-10-26 | D32: =IF($C32=#REF!,#REF!,"0") ->  | E32: =IF($C32=#REF!,#REF!,"0") ->  | F32: =IF($C32=#REF!,#REF!,"0") ->  | G32: =IF($C32=#REF!,#REF!,"0") ->  | H32: =IF($C32=#REF!,#REF!,"0") ->  | I32: =IF($C32=#REF!,#REF!,"0") ->  | J32: =IF($C32=#REF!,#REF!,"0") ->  | K32: =IF($C32=#REF!,#REF!,"0") ->  | L32: =IF($C32=#REF!,#REF!,"0") ->  | M32: =IF($C32=#REF!,#REF!,"0") ->  | N32: 0 | Q32: %
B33: 1 | C33: 2022-10-27 | D33: =IF($C33=#REF!,#REF!,"0") ->  | E33: =IF($C33=#REF!,#REF!,"0") ->  | F33: =IF($C33=#REF!,#REF!,"0") ->  | G33: =IF($C33=#REF!,#REF!,"0") ->  | H33: =IF($C33=#REF!,#REF!,"0") ->  | I33: =IF($C33=#REF!,#REF!,"0") ->  | J33: =IF($C33=#REF!,#REF!,"0") ->  | K33: =IF($C33=#REF!,#REF!,"0") ->  | L33: =IF($C33=#REF!,#REF!,"0") ->  | M33: =IF($C33=#REF!,#REF!,"0") ->  | N33: 0 | Q33: %
B34: 1 | C34: 2022-10-28 | D34: =IF($C34=#REF!,#REF!,"0") ->  | E34: =IF($C34=#REF!,#REF!,"0") ->  | F34: =IF($C34=#REF!,#REF!,"0") ->  | G34: =IF($C34=#REF!,#REF!,"0") ->  | H34: =IF($C34=#REF!,#REF!,"0") ->  | I34: =IF($C34=#REF!,#REF!,"0") ->  | J34: =IF($C34=#REF!,#REF!,"0") ->  | K34: =IF($C34=#REF!,#REF!,"0") ->  | L34: =IF($C34=#REF!,#REF!,"0") ->  | M34: =IF($C34=#REF!,#REF!,"0") ->  | N34: 0 | Q34: %
B35: 1 | C35: 2022-10-29 | D35: =IF($C35=#REF!,#REF!,"0") ->  | E35: =IF($C35=#REF!,#REF!,"0") ->  | F35: =IF($C35=#REF!,#REF!,"0") ->  | G35: =IF($C35=#REF!,#REF!,"0") ->  | H35: =IF($C35=#REF!,#REF!,"0") ->  | I35: =IF($C35=#REF!,#REF!,"0") ->  | J35: =IF($C35=#REF!,#REF!,"0") ->  | K35: =IF($C35=#REF!,#REF!,"0") ->  | L35: =IF($C35=#REF!,#REF!,"0") ->  | M35: =IF($C35=#REF!,#REF!,"0") ->  | N35: 0 | Q35: %
C36: 2022-10-30 | D36: =IF(SUM(D23:D28)+SUM(D16:D21)+SUM(D30:D35)+SUM(D9:D14)+SUM(D7)>(D44*(4/$Q$2)),"ä","æ") ->  | E36: =IF(SUM(E23:E28)+SUM(E16:E21)+SUM(E30:E35)+SUM(E9:E14)+SUM(E7)>(E44*(4/$Q$2)),"ä","æ") ->  | N36: æ | Q36: æ | R36: æ
B37: 1 | C37: 2022-10-31 | D37: =IF($C37=#REF!,#REF!,"0") ->  | E37: =IF($C37=#REF!,#REF!,"0") ->  | F37: =IF($C37=#REF!,#REF!,"0") ->  | G37: =IF($C37=#REF!,#REF!,"0") ->  | H37: =IF($C37=#REF!,#REF!,"0") ->  | I37: =IF($C37=#REF!,#REF!,"0") ->  | J37: =IF($C37=#REF!,#REF!,"0") ->  | K37: =IF($C37=#REF!,#REF!,"0") ->  | L37: =IF($C37=#REF!,#REF!,"0") ->  | M37: =IF($C37=#REF!,#REF!,"0") ->  | N37: 0 | Q37: %
C38: 2022-11-01 | D38: =IF(SUM(D25:D30)+SUM(D18:D23)+SUM(D32:D37)+SUM(D11:D16)+SUM(D4:D9)>(D42),"ä","æ") ->  | E38: =IF(SUM(E25:E30)+SUM(E18:E23)+SUM(E32:E37)+SUM(E11:E16)+SUM(E4:E9)>(E42),"ä","æ") ->  | F38: =IF(SUM(F25:F30)+SUM(F18:F23)+SUM(F32:F37)+SUM(F11:F16)+SUM(F4:F9)>(F42),"ä","æ") ->  | G38: =IF(SUM(G25:G30)+SUM(G18:G23)+SUM(G32:G37)+SUM(G11:G16)+SUM(G4:G9)>(G42),"ä","æ") ->  | H38: =IF($C38=#REF!,#REF!,"0") ->  | I38: =IF(SUM(I25:I30)+SUM(I18:I23)+SUM(I32:I37)+SUM(I11:I16)+SUM(I4:I9)>(I42),"ä","æ") ->  | N38: æ | Q38: æ | R38: æ
C39: 2022-11-02 | D39: =IF(SUM(D23:D28)+SUM(D16:D21)+SUM(D30:D35)+SUM(D9:D14)+SUM(D7)+D37>(D44*(4/$Q$2)),"ä","æ") ->  | E39: =IF(SUM(E23:E28)+SUM(E16:E21)+SUM(E30:E35)+SUM(E9:E14)+SUM(E7)+E37>(E44*(4/$Q$2)),"ä","æ") ->  | N39: æ | P39: =IF(SUM(P23:P28)+SUM(P16:P21)+SUM(P30:P35)+SUM(P9:P14)+SUM(P7)+P37>(P44*(4/$Q$2)),"ä","æ") ->  | Q39: =IF(SUM(Q23:Q28)+SUM(Q16:Q21)+SUM(Q30:Q35)+SUM(Q9:Q14)+SUM(Q7)+SUM(Q37)>(Q44*(4/$Q$2)),"ä","æ") -> æ | R39: =IF(SUM(R23:R28)+SUM(R16:R21)+SUM(R30:R35)+SUM(R9:R14)+SUM(R7)+SUM(R37)>(R44*(4/$Q$2)),"ä","æ") -> æ
A41: =SUM(A34:A37,A27:A32,A20:A25,A13:A18,A7:A11) ->  | B41: =SUM(B7:B37) -> 26 | C41: TOTAL MTD | D41: =SUM(D7:D35) ->  | E41: =SUM(E7:E35) ->  | N41: 0 | Q41: 0 | R41: 0
D43: MO | F43: B | H43: F | J43: MI | L43: I | N43: TX | O43: CA | P43: IMU | Q43: % IMU | R43: PM
C44: OBJECTIF MTD
C45: INDEX (vs AOP) | D45: =IF(D52>(D44/$B$41),"ä","æ") ->  | E45: =IF(E52>(E44/$B$41),"ä","æ") ->  | Q45: =IF(Q41>Q44,"ä","æ") -> æ | R45: =IF(R41>R44,"ä","æ") -> æ
C46: % RÉALISÉ | D46: =SUM(D41/D44) ->  | F46: =SUM(F41/F44) ->  | H46: =SUM(H41/H44) ->  | N46: =SUM(N41/N44) ->  | O46: =(D41+F41+H41+J41+L41)/O44 ->  | P46: =(E41+G41+I41+K41+M41)/P44 ->  | Q46: =IF(ISERROR(Q41-Q44),"",Q41-Q44) -> 0 | R46: =IF(ISERROR(R41-R44),"",R41-R44) -> 0
C47: INDEX (vs % Réal Attendu) | D47: =IF(D46>$Q$53,"ä","æ") ->  | E47: =IF(E46>$Q$53,"ä","æ") -> 
D50: MO | F50: B | H50: F | J50: MI | L50: I | N50: TX | O50: CA | P50: MARGE | Q50: Nb de Jours restants mois | R50: =+$R$51-$A$41 -> 
C51: CA/MGE/TR Restants à faire/ jour | D51: =IF($R$50=0,D44-D41,(D44-D41)/$R$50) ->  | O51: =D51+F51+H51+J51+L51 ->  | P51: =E51+G51+I51+K51+M51 ->  | Q51: Nb de jours dans le mois | R51: =B41 -> 26
D52: =D41/$A$41 ->  | E52: =E41/$A$41 ->  | Q52: % Réalisation Attendu
D53: PÔLE | Q53: =((100/$R$51)*($R$51-$R$50))/100 -> 
E55: CA | G55: IMU
D56: OBJECTIF MTD | E56: =+F44+J44 -> 0 | G56: =+G44+K44 -> 0 | I56: ² | K56: CA | L56: IMU
D57: Réalisé MTD | E57: =+F41+J41 ->  | G57: =+G41+K41 ->  | J57: CA/MGE Restants à faire/jour | K57: =+F51+J51 ->  | L57: =+G51+K51 -> 
D58: INDEX | E58: =IF(E57>E60,"ä","æ") ->  | F58: =IF(F54>F61,"ä","æ") -> æ | G58: =IF(G57>G60,"ä","æ") -> 
D59: % RÉALISÉ | E59: =+$E$57/$E$56 ->  | G59: =+$G$57/$G$56 -> 
E60: =(E56/$R$51)*($R$51-$R$50) ->  | G60: =(G56/$R$51)*($R$51-$R$50) -> 
E63: S1 | G63: S2 | I63: S3 | K63: S4 | M63: S5 | O63: CONTRÔLE | Q63: TOTAL DIVISIONS | Y63: AOP DIVISIONS | AD63: Delta VS Prime T2 | AF63: Delta VS Prime T300
E64: CA | F64: MARGE | G64: CA | H64: MARGE | I64: CA | J64: MARGE | K64: CA | L64: MARGE | M64: CA | N64: MARGE | O64: CA | P64: MARGE | Q64: CA | R64: MARGE | Y64: CA | Z64: MARGE | AA64: CA/Sem | AB64: Marge/Sem | AD64: CA(85%) | AE64: MARGE (90%) | AF64: CA (95%) | AG64: MARGE (95%)
A65: =D65 -> MOBILIER | C65: 1 | D65: MOBILIER | E65: =SUM(D6:D11) ->  | F65: =SUM(E6:E11) ->  | G65: =SUM(D13:D18) ->  | H65: =SUM(E13:E18) ->  | I65: =SUM(D20:D25) ->  | J65: =SUM(E20:E25) ->  | K65: =SUM(D27:D32) ->  | L65: =SUM(E27:E32) ->  | M65: =SUM(D34:D39) ->  | N65: =SUM(E34:E39) ->  | O65: =IF(SUM(E65,G65,I65,K65,M65)=D41,"OK","NOK") ->  | P65: =IF(SUM(F65,H65,J65,L65,N65)=E41,"OK","NOK") ->  | Q65: =SUM(E65,G65,I65,K65,M65) ->  | X65: MOBILIER | Y65: =+D44 -> 0 | Z65: =+E44 -> 0 | AA65: =Y65/$Q$2 -> 0 | AB65: =Z65/$Q$2 -> 0 | AC65: MOB | AD65: =Y65*85% -> 0 | AE65: =Z65*90% -> 0
A66: =D66 -> BUREAUTIQUE | C66: 2 | D66: BUREAUTIQUE | E66: =SUM(F6:F11) ->  | F66: =SUM(G6:G11) ->  | G66: =SUM(F13:F18) ->  | H66: =SUM(G13:G18) ->  | I66: =SUM(F20:F25) ->  | J66: =SUM(G20:G25) ->  | K66: =SUM(F27:F32) ->  | L66: =SUM(G27:G32) ->  | M66: =SUM(F34:F39) ->  | N66: =SUM(G34:G39) ->  | O66: =IF(SUM(E66,G66,I66,K66,M66)=F41,"OK","NOK") ->  | P66: =IF(SUM(F66,H66,J66,L66,N66)=G41,"OK","NOK") ->  | X66: BUREAUTIQUE | Y66: =+F44 -> 0 | Z66: =+G44 -> 0 | AA66: =Y66/$Q$2 -> 0 | AB66: 0 | AC66: BUR | AD66: 0 | AE66: 0
A67: FOURNITURES | C67: 3 | D67: FOURNITURES | E67: =SUM(H6:H11) ->  | F67: =SUM(I6:I11) ->  | G67: =SUM(H13:H18) ->  | H67: =SUM(I13:I18) ->  | I67: =SUM(H20:H25) ->  | J67: =SUM(I20:I25) ->  | K67: =SUM(H27:H32) ->  | L67: =SUM(I27:I32) ->  | M67: =SUM(H34:H39) ->  | N67: =SUM(I34:I39) ->  | O67: =IF(SUM(E67,G67,I67,K67,M67)=H41,"OK","NOK") ->  | P67: =IF(SUM(F67,H67,J67,L67,N67)=I41,"OK","NOK") ->  | X67: FOURNITURES | Y67: =+H44 -> 0 | Z67: =+I44 -> 0 | AA67: 0 | AB67: 0 | AC67: FOURN | AD67: 0 | AE67: 0
A68: MICRO | C68: 4 | D68: MICRO | E68: =SUM(J6:J11) ->  | F68: =SUM(K6:K11) ->  | G68: =SUM(J13:J18) ->  | H68: =SUM(K13:K18) ->  | I68: =SUM(J20:J25) ->  | J68: =SUM(K20:K25) ->  | K68: =SUM(J27:J32) ->  | L68: =SUM(K27:K32) ->  | M68: =SUM(J34:J39) ->  | N68: =SUM(K34:K39) ->  | O68: =IF(SUM(E68,G68,I68,K68,M68)=J41,"OK","NOK") ->  | P68: =IF(SUM(F68,H68,J68,L68,N68)=K41,"OK","NOK") ->  | X68: MICRO | Y68: =+J44 -> 0 | Z68: =+K44 -> 0 | AA68: 0 | AB68: 0 | AC68: MICRO | AD68: 0 | AE68: 0
A69: COPIE IMPRIMERIE | C69: 9 | D69: COPIE IMPRIMERIE | E69: =SUM(L6:L11) ->  | F69: =SUM(M6:M11) ->  | G69: =SUM(L13:L18) ->  | H69: =SUM(M13:M18) ->  | I69: =SUM(L20:L25) ->  | J69: =SUM(M20:M25) ->  | K69: =SUM(L27:L32) ->  | L69: =SUM(M27:M32) ->  | M69: =SUM(L34:L39) ->  | N69: =SUM(M34:M39) ->  | O69: =IF(SUM(E69,G69,I69,K69,M69)=L41,"OK","NOK") ->  | P69: =IF(SUM(F69,H69,J69,L69,N69)=M41,"OK","NOK") ->  | X69: COPIE IMPRIMERIE | Y69: =+L44 -> 0 | Z69: =+M44 -> 0 | AA69: 0 | AB69: 0 | AC69: IMAG | AD69: 0 | AE69: 0 | AI69: PDM Imag
A70: Pôle Techno | C70: 2&4 | D70: Pôle Techno | E70: =SUM(E66,E68) ->  | F70: =SUM(F66,F68) ->  | X70: Pôle Techno | Y70: =+Y66+Y68 -> 0 | Z70: =+Z66+Z68 -> 0 | AA70: 0 | AB70: 0 | AD70: 0 | AE70: 0 | AI70: =+Q69/Q71 -> 
A71: MAGASIN | D71: MAGASIN | E71: =SUM(E65:E69) ->  | F71: =SUM(F65:F69) ->  | Q71: =SUM(Q65:Q69) ->  | R71: =SUM(R65:R69) ->  | X71: MAGASIN | Y71: =SUM(Y65:Y69) -> 0 | Z71: =SUM(Z65:Z69) -> 0 | AA71: 0 | AB71: 0 | AF71: =Y71*95% -> 0 | AG71: =Z71*95% -> 0 | AH71: OD | AI71: =IF(AND($AI$70>=4%,$AI$70<5%),25,IF($AI$70>=5%,50,0)) ->  | AJ71: 0.05
D72: CONTRÔLE | E72: =IF(SUM(E65:E69)=SUM(O6:O11),"OK","NOK") ->  | F72: =IF(SUM(F65:F69)=SUM(P6:P11),"OK","NOK") ->  | G72: =IF(SUM(G65:G69)=SUM(O13:O18),"OK","NOK") ->  | H72: =IF(SUM(H65:H69)=SUM(P13:P18),"OK","NOK") ->  | I72: =IF(SUM(I65:I69)=SUM(O20:O25),"OK","NOK") ->  | J72: =IF(SUM(J65:J69)=SUM(P20:P25),"OK","NOK") ->  | K72: =IF(SUM(K65:K69)=SUM(O27:O32),"OK","NOK") ->  | L72: =IF(SUM(L65:L69)=SUM(P27:P32),"OK","NOK") ->  | M72: =IF(SUM(M65:M69)=SUM(O34:O39),"OK","NOK") ->  | N72: =IF(SUM(N65:N69)=SUM(P34:P39),"OK","NOK") ->  | AH72: ODC | AI72: =IF(AND($AI$70>=9%,$AI$70<10%),25,IF($AI$70>=10%,50,0)) ->  | AJ72: 0.1

Sheet NOVEMBRE
L2: Novembre | O2: 2022 | Q2: 4
D4: MO | F4: B | H4: F | J4: MI | L4: C | N4: TRANSAC JOUR | O4: CA JOUR | P4: IMU JOUR | Q4: % IMU | R4: PM JOUR
D5: CA | E5: IMU | F5: CA | G5: IMU | H5: CA | I5: IMU | J5: CA | K5: IMU | L5: CA | M5: IMU
C6: 2022-02-28 | D6: 0 | E6: 0 | F6: 0 | G6: 0 | H6: 0 | I6: 0 | J6: 0 | K6: 0 | L6: 0 | M6: 0 | N6: 0 | O6: =D6+F6+H6+J6+L6 -> 0 | P6: =SUM(E6+G6+I6+K6+M6) -> 0 | Q6: =IF(ISERROR(P6/O6),"%",P6/O6) -> % | R6: =IF(N6=0,"",O6/N6) -> 
A7: =IF(O7=0,0,1) ->  | B7: =IF(C6,1,0) -> 1 | C7: 2022-11-01 | D7: =IF($C7=#REF!,#REF!,"0") ->  | E7: =IF($C7=#REF!,#REF!,"0") ->  | F7: =IF($C7=#REF!,#REF!,"0") ->  | G7: =IF($C7=#REF!,#REF!,"0") ->  | H7: =IF($C7=#REF!,#REF!,"0") ->  | I7: =IF($C7=#REF!,#REF!,"0") ->  | J7: =IF($C7=#REF!,#REF!,"0") ->  | K7: =IF($C7=#REF!,#REF!,"0") ->  | L7: =IF($C7=#REF!,#REF!,"0") ->  | M7: =IF($C7=#REF!,#REF!,"0") ->  | N7: 0 | Q7: % | R7: =IF(N7=0,"",O7/N7) -> 
A8: =IF(O8=0,0,1) ->  | B8: =IF(C7,1,0) -> 1 | C8: =C7+1 -> 2022-11-02 | D8: =IF($C8=#REF!,#REF!,"0") ->  | E8: =IF($C8=#REF!,#REF!,"0") ->  | F8: =IF($C8=#REF!,#REF!,"0") ->  | G8: =IF($C8=#REF!,#REF!,"0") ->  | H8: =IF($C8=#REF!,#REF!,"0") ->  | I8: =IF($C8=#REF!,#REF!,"0") ->  | J8: =IF($C8=#REF!,#REF!,"0") ->  | K8: =IF($C8=#REF!,#REF!,"0") ->  | L8: =IF($C8=#REF!,#REF!,"0") ->  | M8: =IF($C8=#REF!,#REF!,"0") ->  | N8: 0 | Q8: %
B9: 1 | C9: 2022-11-03 | D9: =IF($C9=#REF!,#REF!,"0") ->  | E9: =IF($C9=#REF!,#REF!,"0") ->  | F9: =IF($C9=#REF!,#REF!,"0") ->  | G9: =IF($C9=#REF!,#REF!,"0") ->  | H9: =IF($C9=#REF!,#REF!,"0") ->  | I9: =IF($C9=#REF!,#REF!,"0") ->  | J9: =IF($C9=#REF!,#REF!,"0") ->  | K9: =IF($C9=#REF!,#REF!,"0") ->  | L9: =IF($C9=#REF!,#REF!,"0") ->  | M9: =IF($C9=#REF!,#REF!,"0") ->  | N9: 0 | Q9: %
B10: 1 | C10: 2022-11-04 | D10: =IF($C10=#REF!,#REF!,"0") ->  | E10: =IF($C10=#REF!,#REF!,"0") ->  | F10: =IF($C10=#REF!,#REF!,"0") ->  | G10: =IF($C10=#REF!,#REF!,"0") ->  | H10: =IF($C10=#REF!,#REF!,"0") ->  | I10: =IF($C10=#REF!,#REF!,"0") ->  | J10: =IF($C10=#REF!,#REF!,"0") ->  | K10: =IF($C10=#REF!,#REF!,"0") ->  | L10: =IF($C10=#REF!,#REF!,"0") ->  | M10: =IF($C10=#REF!,#REF!,"0") ->  | N10: 0 | Q10: %
B11: 1 | C11: 2022-11-05 | D11: =IF($C11=#REF!,#REF!,"0") ->  | E11: =IF($C11=#REF!,#REF!,"0") ->  | F11: =IF($C11=#REF!,#REF!,"0") ->  | G11: =IF($C11=#REF!,#REF!,"0") ->  | H11: =IF($C11=#REF!,#REF!,"0") ->  | I11: =IF($C11=#REF!,#REF!,"0") ->  | J11: =IF($C11=#REF!,#REF!,"0") ->  | K11: =IF($C11=#REF!,#REF!,"0") ->  | L11: =IF($C11=#REF!,#REF!,"0") ->  | M11: =IF($C11=#REF!,#REF!,"0") ->  | N11: 0 | Q11: %
C12: =C11+1 -> 2022-11-06 | D12: =IF(SUM(D7:D11)>(D44*(1/$Q$2)),"ä","æ") ->  | E12: =IF(SUM(E7:E11)>(E44*(1/$Q$2)),"ä","æ") ->  | N12: æ | Q12: æ | R12: æ
B13: 1 | C13: =C12+1 -> 2022-11-07 | D13: =IF($C13=#REF!,#REF!,"0") ->  | E13: =IF($C13=#REF!,#REF!,"0") ->  | F13: =IF($C13=#REF!,#REF!,"0") ->  | G13: =IF($C13=#REF!,#REF!,"0") ->  | H13: =IF($C13=#REF!,#REF!,"0") ->  | I13: =IF($C13=#REF!,#REF!,"0") ->  | J13: =IF($C13=#REF!,#REF!,"0") ->  | K13: =IF($C13=#REF!,#REF!,"0") ->  | L13: =IF($C13=#REF!,#REF!,"0") ->  | M13: =IF($C13=#REF!,#REF!,"0") ->  | N13: 0 | O13: =D13+F13+H13+J13+L13 ->  | P13: =SUM(E13+G13+I13+K13+M13) ->  | Q13: %
B14: 1 | C14: 2022-11-08 | D14: =IF($C14=#REF!,#REF!,"0") ->  | E14: =IF($C14=#REF!,#REF!,"0") ->  | F14: =IF($C14=#REF!,#REF!,"0") ->  | G14: =IF($C14=#REF!,#REF!,"0") ->  | H14: =IF($C14=#REF!,#REF!,"0") ->  | I14: =IF($C14=#REF!,#REF!,"0") ->  | J14: =IF($C14=#REF!,#REF!,"0") ->  | K14: =IF($C14=#REF!,#REF!,"0") ->  | L14: =IF($C14=#REF!,#REF!,"0") ->  | M14: =IF($C14=#REF!,#REF!,"0") ->  | N14: 0 | O14: =D14+F14+H14+J14+L14 ->  | P14: =SUM(E14+G14+I14+K14+M14) ->  | Q14: %
B15: 1 | C15: 2022-11-09 | D15: =IF($C15=#REF!,#REF!,"0") ->  | E15: =IF($C15=#REF!,#REF!,"0") ->  | F15: =IF($C15=#REF!,#REF!,"0") ->  | G15: =IF($C15=#REF!,#REF!,"0") ->  | H15: =IF($C15=#REF!,#REF!,"0") ->  | I15: =IF($C15=#REF!,#REF!,"0") ->  | J15: =IF($C15=#REF!,#REF!,"0") ->  | K15: =IF($C15=#REF!,#REF!,"0") ->  | L15: =IF($C15=#REF!,#REF!,"0") ->  | M15: =IF($C15=#REF!,#REF!,"0") ->  | N15: 0 | O15: =D15+F15+H15+J15+L15 ->  | Q15: %
B16: 1 | C16: 2022-11-10 | D16: =IF($C16=#REF!,#REF!,"0") ->  | E16: =IF($C16=#REF!,#REF!,"0") ->  | F16: =IF($C16=#REF!,#REF!,"0") ->  | G16: =IF($C16=#REF!,#REF!,"0") ->  | H16: =IF($C16=#REF!,#REF!,"0") ->  | I16: =IF($C16=#REF!,#REF!,"0") ->  | J16: =IF($C16=#REF!,#REF!,"0") ->  | K16: =IF($C16=#REF!,#REF!,"0") ->  | L16: =IF($C16=#REF!,#REF!,"0") ->  | M16: =IF($C16=#REF!,#REF!,"0") ->  | N16: 0 | O16: =D16+F16+H16+J16+L16 ->  | Q16: %
B17: 1 | C17: 2022-11-11 | D17: =IF($C17=#REF!,#REF!,"0") ->  | E17: =IF($C17=#REF!,#REF!,"0") ->  | F17: =IF($C17=#REF!,#REF!,"0") ->  | G17: =IF($C17=#REF!,#REF!,"0") ->  | H17: =IF($C17=#REF!,#REF!,"0") ->  | I17: =IF($C17=#REF!,#REF!,"0") ->  | J17: =IF($C17=#REF!,#REF!,"0") ->  | K17: =IF($C17=#REF!,#REF!,"0") ->  | L17: =IF($C17=#REF!,#REF!,"0") ->  | M17: =IF($C17=#REF!,#REF!,"0") ->  | N17: 0 | O17: =D17+F17+H17+J17+L17 ->  | Q17: %
B18: 1 | C18: 2022-11-12 | D18: =IF($C18=#REF!,#REF!,"0") ->  | E18: =IF($C18=#REF!,#REF!,"0") ->  | F18: =IF($C18=#REF!,#REF!,"0") ->  | G18: =IF($C18=#REF!,#REF!,"0") ->  | H18: =IF($C18=#REF!,#REF!,"0") ->  | I18: =IF($C18=#REF!,#REF!,"0") ->  | J18: =IF($C18=#REF!,#REF!,"0") ->  | K18: =IF($C18=#REF!,#REF!,"0") ->  | L18: =IF($C18=#REF!,#REF!,"0") ->  | M18: =IF($C18=#REF!,#REF!,"0") ->  | N18: 0 | O18: =D18+F18+H18+J18+L18 ->  | Q18: %
C19: 2022-11-13 | D19: =IF(SUM(D13:D18)+SUM(D7:D11)>(D44*(2/$Q$2)),"ä","æ") ->  | E19: =IF(SUM(E13:E18)+SUM(E7:E11)>(E44*(2/$Q$2)),"ä","æ") ->  | N19: æ | Q19: æ | R19: æ
B20: 1 | C20: 2022-11-14 | D20: =IF($C20=#REF!,#REF!,"0") ->  | E20: =IF($C20=#REF!,#REF!,"0") ->  | F20: =IF($C20=#REF!,#REF!,"0") ->  | G20: =IF($C20=#REF!,#REF!,"0") ->  | H20: =IF($C20=#REF!,#REF!,"0") ->  | I20: =IF($C20=#REF!,#REF!,"0") ->  | J20: =IF($C20=#REF!,#REF!,"0") ->  | K20: =IF($C20=#REF!,#REF!,"0") ->  | L20: =IF($C20=#REF!,#REF!,"0") ->  | M20: =IF($C20=#REF!,#REF!,"0") ->  | N20: 0 | Q20: %
B21: 1 | C21: 2022-11-15 | D21: =IF($C21=#REF!,#REF!,"0") ->  | E21: =IF($C21=#REF!,#REF!,"0") ->  | F21: =IF($C21=#REF!,#REF!,"0") ->  | G21: =IF($C21=#REF!,#REF!,"0") ->  | H21: =IF($C21=#REF!,#REF!,"0") ->  | I21: =IF($C21=#REF!,#REF!,"0") ->  | J21: =IF($C21=#REF!,#REF!,"0") ->  | K21: =IF($C21=#REF!,#REF!,"0") ->  | L21: =IF($C21=#REF!,#REF!,"0") ->  | M21: =IF($C21=#REF!,#REF!,"0") ->  | N21: 0 | Q21: %
B22: 1 | C22: 2022-11-16 | D22: =IF($C22=#REF!,#REF!,"0") ->  | E22: =IF($C22=#REF!,#REF!,"0") ->  | F22: =IF($C22=#REF!,#REF!,"0") ->  | G22: =IF($C22=#REF!,#REF!,"0") ->  | H22: =IF($C22=#REF!,#REF!,"0") ->  | I22: =IF($C22=#REF!,#REF!,"0") ->  | J22: =IF($C22=#REF!,#REF!,"0") ->  | K22: =IF($C22=#REF!,#REF!,"0") ->  | L22: =IF($C22=#REF!,#REF!,"0") ->  | M22: =IF($C22=#REF!,#REF!,"0") ->  | N22: 0 | Q22: %
B23: 1 | C23: 2022-11-17 | D23: =IF($C23=#REF!,#REF!,"0") ->  | E23: =IF($C23=#REF!,#REF!,"0") ->  | F23: =IF($C23=#REF!,#REF!,"0") ->  | G23: =IF($C23=#REF!,#REF!,"0") ->  | H23: =IF($C23=#REF!,#REF!,"0") ->  | I23: =IF($C23=#REF!,#REF!,"0") ->  | J23: =IF($C23=#REF!,#REF!,"0") ->  | K23: =IF($C23=#REF!,#REF!,"0") ->  | L23: =IF($C23=#REF!,#REF!,"0") ->  | M23: =IF($C23=#REF!,#REF!,"0") ->  | N23: 0 | Q23: %
B24: 1 | C24: 2022-11-18 | D24: =IF($C24=#REF!,#REF!,"0") ->  | E24: =IF($C24=#REF!,#REF!,"0") ->  | F24: =IF($C24=#REF!,#REF!,"0") ->  | G24: =IF($C24=#REF!,#REF!,"0") ->  | H24: =IF($C24=#REF!,#REF!,"0") ->  | I24: =IF($C24=#REF!,#REF!,"0") ->  | J24: =IF($C24=#REF!,#REF!,"0") ->  | K24: =IF($C24=#REF!,#REF!,"0") ->  | L24: =IF($C24=#REF!,#REF!,"0") ->  | M24: =IF($C24=#REF!,#REF!,"0") ->  | N24: 0 | Q24: %
B25: 1 | C25: 2022-11-19 | D25: =IF($C25=#REF!,#REF!,"0") ->  | E25: =IF($C25=#REF!,#REF!,"0") ->  | F25: =IF($C25=#REF!,#REF!,"0") ->  | G25: =IF($C25=#REF!,#REF!,"0") ->  | H25: =IF($C25=#REF!,#REF!,"0") ->  | I25: =IF($C25=#REF!,#REF!,"0") ->  | J25: =IF($C25=#REF!,#REF!,"0") ->  | K25: =IF($C25=#REF!,#REF!,"0") ->  | L25: =IF($C25=#REF!,#REF!,"0") ->  | M25: =IF($C25=#REF!,#REF!,"0") ->  | N25: 0 | Q25: %
C26: 2022-11-20 | D26: =IF(SUM(D13:D18)+SUM(D7:D11)+SUM(D20:D25)>(D44*(3/$Q$2)),"ä","æ") ->  | E26: =IF(SUM(E13:E18)+SUM(E7:E11)+SUM(E20:E25)>(E44*(3/$Q$2)),"ä","æ") ->  | N26: æ | Q26: æ | R26: æ
B27: 1 | C27: 2022-11-21 | D27: =IF($C27=#REF!,#REF!,"0") ->  | E27: =IF($C27=#REF!,#REF!,"0") ->  | F27: =IF($C27=#REF!,#REF!,"0") ->  | G27: =IF($C27=#REF!,#REF!,"0") ->  | H27: =IF($C27=#REF!,#REF!,"0") ->  | I27: =IF($C27=#REF!,#REF!,"0") ->  | J27: =IF($C27=#REF!,#REF!,"0") ->  | K27: =IF($C27=#REF!,#REF!,"0") ->  | L27: =IF($C27=#REF!,#REF!,"0") ->  | M27: =IF($C27=#REF!,#REF!,"0") ->  | N27: 0 | Q27: %
B28: 1 | C28: 2022-11-22 | D28: =IF($C28=#REF!,#REF!,"0") ->  | E28: =IF($C28=#REF!,#REF!,"0") ->  | F28: =IF($C28=#REF!,#REF!,"0") ->  | G28: =IF($C28=#REF!,#REF!,"0") ->  | H28: =IF($C28=#REF!,#REF!,"0") ->  | I28: =IF($C28=#REF!,#REF!,"0") ->  | J28: =IF($C28=#REF!,#REF!,"0") ->  | K28: =IF($C28=#REF!,#REF!,"0") ->  | L28: =IF($C28=#REF!,#REF!,"0") ->  | M28: =IF($C28=#REF!,#REF!,"0") ->  | N28: 0 | Q28: %
B29: 1 | C29: 2022-11-23 | D29: =IF($C29=#REF!,#REF!,"0") ->  | E29: =IF($C29=#REF!,#REF!,"0") ->  | F29: =IF($C29=#REF!,#REF!,"0") ->  | G29: =IF($C29=#REF!,#REF!,"0") ->  | H29: =IF($C29=#REF!,#REF!,"0") ->  | I29: =IF($C29=#REF!,#REF!,"0") ->  | J29: =IF($C29=#REF!,#REF!,"0") ->  | K29: =IF($C29=#REF!,#REF!,"0") ->  | L29: =IF($C29=#REF!,#REF!,"0") ->  | M29: =IF($C29=#REF!,#REF!,"0") ->  | N29: 0 | Q29: %
B30: 1 | C30: 2022-11-24 | D30: =IF($C30=#REF!,#REF!,"0") ->  | E30: =IF($C30=#REF!,#REF!,"0") ->  | F30: =IF($C30=#REF!,#REF!,"0") ->  | G30: =IF($C30=#REF!,#REF!,"0") ->  | H30: =IF($C30=#REF!,#REF!,"0") ->  | I30: =IF($C30=#REF!,#REF!,"0") ->  | J30: =IF($C30=#REF!,#REF!,"0") ->  | K30: =IF($C30=#REF!,#REF!,"0") ->  | L30: =IF($C30=#REF!,#REF!,"0") ->  | M30: =IF($C30=#REF!,#REF!,"0") ->  | N30: 0 | Q30: %
B31: 1 | C31: 2022-11-25 | D31: =IF($C31=#REF!,#REF!,"0") ->  | E31: =IF($C31=#REF!,#REF!,"0") ->  | F31: =IF($C31=#REF!,#REF!,"0") ->  | G31: =IF($C31=#REF!,#REF!,"0") ->  | H31: =IF($C31=#REF!,#REF!,"0") ->  | I31: =IF($C31=#REF!,#REF!,"0") ->  | J31: =IF($C31=#REF!,#REF!,"0") ->  | K31: =IF($C31=#REF!,#REF!,"0") ->  | L31: =IF($C31=#REF!,#REF!,"0") ->  | M31: =IF($C31=#REF!,#REF!,"0") ->  | N31: 0 | Q31: %
B32: 1 | C32: 2022-11-26 | D32: =IF($C32=#REF!,#REF!,"0") ->  | E32: =IF($C32=#REF!,#REF!,"0") ->  | F32: =IF($C32=#REF!,#REF!,"0") ->  | G32: =IF($C32=#REF!,#REF!,"0") ->  | H32: =IF($C32=#REF!,#REF!,"0") ->  | I32: =IF($C32=#REF!,#REF!,"0") ->  | J32: =IF($C32=#REF!,#REF!,"0") ->  | K32: =IF($C32=#REF!,#REF!,"0") ->  | L32: =IF($C32=#REF!,#REF!,"0") ->  | M32: =IF($C32=#REF!,#REF!,"0") ->  | N32: 0 | Q32: %
C33: 2022-11-27 | D33: =IF(SUM(D20:D25)+SUM(D13:D18)+SUM(D27:D32)+SUM(D7:D11)>(D44*(4/$Q$2)),"ä","æ") ->  | E33: =IF(SUM(E20:E25)+SUM(E13:E18)+SUM(E27:E32)+SUM(E7:E11)>(E44*(4/$Q$2)),"ä","æ") ->  | N33: æ | Q33: æ | R33: æ
B34: 1 | C34: 2022-11-28 | D34: =IF($C34=#REF!,#REF!,"0") ->  | E34: =IF($C34=#REF!,#REF!,"0") ->  | F34: =IF($C34=#REF!,#REF!,"0") ->  | G34: =IF($C34=#REF!,#REF!,"0") ->  | H34: =IF($C34=#REF!,#REF!,"0") ->  | I34: =IF($C34=#REF!,#REF!,"0") ->  | J34: =IF($C34=#REF!,#REF!,"0") ->  | K34: =IF($C34=#REF!,#REF!,"0") ->  | L34: =IF($C34=#REF!,#REF!,"0") ->  | M34: =IF($C34=#REF!,#REF!,"0") ->  | N34: 0 | Q34: %
B35: 1 | C35: 2022-11-29 | D35: =IF($C35=#REF!,#REF!,"0") ->  | E35: =IF($C35=#REF!,#REF!,"0") ->  | F35: =IF($C35=#REF!,#REF!,"0") ->  | G35: =IF($C35=#REF!,#REF!,"0") ->  | H35: =IF($C35=#REF!,#REF!,"0") ->  | I35: =IF($C35=#REF!,#REF!,"0") ->  | J35: =IF($C35=#REF!,#REF!,"0") ->  | K35: =IF($C35=#REF!,#REF!,"0") ->  | L35: =IF($C35=#REF!,#REF!,"0") ->  | M35: =IF($C35=#REF!,#REF!,"0") ->  | N35: 0 | Q35: %
B36: 1 | C36: 2022-11-30 | D36: =IF($C36=#REF!,#REF!,"0") ->  | E36: =IF($C36=#REF!,#REF!,"0") ->  | F36: =IF($C36=#REF!,#REF!,"0") ->  | G36: =IF($C36=#REF!,#REF!,"0") ->  | H36: =IF($C36=#REF!,#REF!,"0") ->  | I36: =IF($C36=#REF!,#REF!,"0") ->  | J36: =IF($C36=#REF!,#REF!,"0") ->  | K36: =IF($C36=#REF!,#REF!,"0") ->  | L36: =IF($C36=#REF!,#REF!,"0") ->  | M36: =IF($C36=#REF!,#REF!,"0") ->  | N36: 0 | Q36: %
C37: 2022-12-01 | D37: =IF(SUM(D27:D32)+SUM(D20:D25)+SUM(D34:D36)+SUM(D13:D18)+SUM(D7:D9)+SUM(D10:D11)>(D44*(4/$Q$2)),"ä","æ") ->  | E37: =IF(SUM(E27:E32)+SUM(E20:E25)+SUM(E34:E36)+SUM(E13:E18)+SUM(E7:E9)+SUM(E10:E11)>(E44*(4/$Q$2)),"ä","æ") ->  | N37: æ | Q37: æ | R37: æ
D38: =IF(SUM(D25:D30)+SUM(D18:D23)+SUM(D32:D37)+SUM(D11:D16)+SUM(D4:D9)>(D42),"ä","æ") ->  | N38: æ | Q38: æ | R38: æ
A41: =SUM(A34:A37,A27:A32,A20:A25,A13:A18,A7:A11) ->  | B41: =SUM(B7:B37) -> 26 | C41: TOTAL MTD | D41: =SUM(D7:D37) ->  | N41: 0 | O41: =SUM(O8:O37) ->  | P41: =SUM(P7:P37) ->  | Q41: %
D43: MO | F43: B | H43: F | J43: MI | L43: I | N43: TX | O43: CA | P43: IMU | Q43: % IMU | R43: PM
C44: OBJECTIF MTD
C45: INDEX (vs AOP) | D45: =IF(D52>(D44/$B$41),"ä","æ") ->  | E45: =IF(E52>(E44/$B$41),"ä","æ") ->  | Q45: =IF(Q41>Q44,"ä","æ") -> ä | R45: =IF(R41>R44,"ä","æ") -> æ
C46: % RÉALISÉ | D46: =SUM(D41/D44) ->  | F46: =SUM(F41/F44) ->  | H46: =SUM(H41/H44) ->  | N46: =SUM(N41/N44) ->  | O46: =(D41+F41+H41+J41+L41)/O44 ->  | P46: =(E41+G41+I41+K41+M41)/P44 ->  | Q46: =IF(ISERROR(Q41-Q44),"",Q41-Q44) ->  | R46: =IF(ISERROR(R41-R44),"",R41-R44) -> 
C47: INDEX (vs % Réal Attendu) | D47: =IF(D46>$Q$53,"ä","æ") ->  | E47: =IF(E46>$Q$53,"ä","æ") -> 
D50: MO | F50: B | H50: F | J50: MI | L50: I | N50: TX | O50: CA | P50: MARGE | Q50: Nb de Jours restants mois | R50: =+$R$51-$A$41 -> 
C51: CA/MGE/TR Restants à faire/ jour | D51: =IF($R$50=0,D44-D41,(D44-D41)/$R$50) ->  | O51: =D51+F51+H51+J51+L51 ->  | P51: =E51+G51+I51+K51+M51 ->  | Q51: Nb de jours dans le mois | R51: =B41 -> 26
D52: =D41/$A$41 ->  | E52: =E41/$A$41 ->  | Q52: % Réalisation Attendu
D53: PÔLE | Q53: =((100/$R$51)*($R$51-$R$50))/100 -> 
E55: CA | G55: IMU
D56: OBJECTIF MTD | E56: =+F44+J44 -> 0 | G56: =+G44+K44 -> 0 | I56: ² | K56: CA | L56: IMU
D57: Réalisé MTD | E57: =+F41+J41 ->  | G57: =+G41+K41 ->  | J57: CA/MGE Restants à faire/jour | K57: =+F51+J51 ->  | L57: =+G51+K51 -> 
D58: INDEX | E58: =IF(E57>E60,"ä","æ") ->  | F58: =IF(F54>F61,"ä","æ") -> æ | G58: =IF(G57>G60,"ä","æ") -> 
D59: % RÉALISÉ | E59: =+$E$57/$E$56 ->  | G59: =+$G$57/$G$56 -> 
E60: =(E56/$R$51)*($R$51-$R$50) ->  | G60: =(G56/$R$51)*($R$51-$R$50) -> 
E63: S1 | G63: S2 | I63: S3 | K63: S4 | M63: S5 | O63: CONTRÔLE | Q63: TOTAL DIVISIONS | Y63: AOP DIVISIONS | AD63: Delta VS Prime T2 | AF63: Delta VS Prime T300
E64: CA | F64: MARGE | G64: CA | H64: MARGE | I64: CA | J64: MARGE | K64: CA | L64: MARGE | M64: CA | N64: MARGE | O64: CA | P64: MARGE | Q64: CA | R64: MARGE | Y64: CA | Z64: MARGE | AA64: CA/Sem | AB64: Marge/Sem | AD64: CA(85%) | AE64: MARGE (90%) | AF64: CA (95%) | AG64: MARGE (95%)
A65: =D65 -> MOBILIER | C65: 1 | D65: MOBILIER | E65: =SUM(D6:D11) ->  | F65: =SUM(E6:E11) ->  | G65: =SUM(D13:D18) ->  | H65: =SUM(E13:E18) ->  | I65: =SUM(D20:D25) ->  | J65: =SUM(E20:E25) ->  | K65: =SUM(D27:D32) ->  | L65: =SUM(E27:E32) ->  | M65: =SUM(D34:D39) ->  | N65: =SUM(E34:E39) ->  | O65: =IF(SUM(E65,G65,I65,K65,M65)=D41,"OK","NOK") ->  | P65: =IF(SUM(F65,H65,J65,L65,N65)=E41,"OK","NOK") ->  | Q65: =SUM(E65,G65,I65,K65,M65) ->  | X65: MOBILIER | Y65: =+D44 -> 0 | Z65: =+E44 -> 0 | AA65: =Y65/$Q$2 -> 0 | AB65: =Z65/$Q$2 -> 0 | AC65: MOB | AD65: =Y65*85% -> 0 | AE65: =Z65*90% -> 0
A66: =D66 -> BUREAUTIQUE | C66: 2 | D66: BUREAUTIQUE | E66: =SUM(F6:F11) ->  | F66: =SUM(G6:G11) ->  | G66: =SUM(F13:F18) ->  | H66: =SUM(G13:G18) ->  | I66: =SUM(F20:F25) ->  | J66: =SUM(G20:G25) ->  | K66: =SUM(F27:F32) ->  | L66: =SUM(G27:G32) ->  | M66: =SUM(F34:F39) ->  | N66: =SUM(G34:G39) ->  | O66: =IF(SUM(E66,G66,I66,K66,M66)=F41,"OK","NOK") ->  | P66: =IF(SUM(F66,H66,J66,L66,N66)=G41,"OK","NOK") ->  | X66: BUREAUTIQUE | Y66: =+F44 -> 0 | Z66: =+G44 -> 0 | AA66: =Y66/$Q$2 -> 0 | AB66: 0 | AC66: BUR | AD66: 0 | AE66: 0
A67: FOURNITURES | C67: 3 | D67: FOURNITURES | E67: =SUM(H6:H11) ->  | F67: =SUM(I6:I11) ->  | G67: =SUM(H13:H18) ->  | H67: =SUM(I13:I18) ->  | I67: =SUM(H20:H25) ->  | J67: =SUM(I20:I25) ->  | K67: =SUM(H27:H32) ->  | L67: =SUM(I27:I32) ->  | M67: =SUM(H34:H39) ->  | N67: =SUM(I34:I39) ->  | O67: =IF(SUM(E67,G67,I67,K67,M67)=H41,"OK","NOK") ->  | P67: =IF(SUM(F67,H67,J67,L67,N67)=I41,"OK","NOK") ->  | X67: FOURNITURES | Y67: =+H44 -> 0 | Z67: =+I44 -> 0 | AA67: 0 | AB67: 0 | AC67: FOURN | AD67: 0 | AE67: 0
A68: MICRO | C68: 4 | D68: MICRO | E68: =SUM(J6:J11) ->  | F68: =SUM(K6:K11) ->  | G68: =SUM(J13:J18) ->  | H68: =SUM(K13:K18) ->  | I68: =SUM(J20:J25) ->  | J68: =SUM(K20:K25) ->  | K68: =SUM(J27:J32) ->  | L68: =SUM(K27:K32) ->  | M68: =SUM(J34:J39) ->  | N68: =SUM(K34:K39) ->  | O68: =IF(SUM(E68,G68,I68,K68,M68)=J41,"OK","NOK") ->  | P68: =IF(SUM(F68,H68,J68,L68,N68)=K41,"OK","NOK") ->  | X68: MICRO | Y68: =+J44 -> 0 | Z68: =+K44 -> 0 | AA68: 0 | AB68: 0 | AC68: MICRO | AD68: 0 | AE68: 0
A69: COPIE IMPRIMERIE | C69: 9 | D69: COPIE IMPRIMERIE | E69: =SUM(L6:L11) ->  | F69: =SUM(M6:M11) ->  | G69: =SUM(L13:L18) ->  | H69: =SUM(M13:M18) ->  | I69: =SUM(L20:L25) ->  | J69: =SUM(M20:M25) ->  | K69: =SUM(L27:L32) ->  | L69: =SUM(M27:M32) ->  | M69: =SUM(L34:L39) ->  | N69: =SUM(M34:M39) ->  | O69: =IF(SUM(E69,G69,I69,K69,M69)=L41,"OK","NOK") ->  | P69: =IF(SUM(F69,H69,J69,L69,N69)=M41,"OK","NOK") ->  | X69: COPIE IMPRIMERIE | Y69: =+L44 -> 0 | Z69: =+M44 -> 0 | AA69: 0 | AB69: 0 | AC69: IMAG | AD69: 0 | AE69: 0 | AI69: PDM Imag
A70: Pôle Techno | C70: 2&4 | D70: Pôle Techno | E70: =SUM(E66,E68) ->  | F70: =SUM(F66,F68) ->  | X70: Pôle Techno | Y70: =+Y66+Y68 -> 0 | Z70: =+Z66+Z68 -> 0 | AA70: 0 | AB70: 0 | AD70: 0 | AE70: 0 | AI70: =+Q69/Q71 -> 
A71: MAGASIN | D71: MAGASIN | E71: =SUM(E65:E69) ->  | F71: =SUM(F65:F69) ->  | Q71: =SUM(Q65:Q69) ->  | R71: =SUM(R65:R69) ->  | X71: MAGASIN | Y71: =SUM(Y65:Y69) -> 0 | Z71: =SUM(Z65:Z69) -> 0 | AA71: 0 | AB71: 0 | AF71: =Y71*95% -> 0 | AG71: =Z71*95% -> 0 | AH71: OD | AI71: =IF(AND($AI$70>=4%,$AI$70<5%),25,IF($AI$70>=5%,50,0)) ->  | AJ71: 0.05
D72: CONTRÔLE | E72: =IF(SUM(E65:E69)=SUM(O6:O11),"OK","NOK") ->  | F72: =IF(SUM(F65:F69)=SUM(P6:P11),"OK","NOK") ->  | G72: =IF(SUM(G65:G69)=SUM(O13:O18),"OK","NOK") ->  | H72: =IF(SUM(H65:H69)=SUM(P13:P18),"OK","NOK") ->  | I72: =IF(SUM(I65:I69)=SUM(O20:O25),"OK","NOK") ->  | J72: =IF(SUM(J65:J69)=SUM(P20:P25),"OK","NOK") ->  | K72: =IF(SUM(K65:K69)=SUM(O27:O32),"OK","NOK") ->  | L72: =IF(SUM(L65:L69)=SUM(P27:P32),"OK","NOK") ->  | M72: =IF(SUM(M65:M69)=SUM(O34:O39),"OK","NOK") ->  | N72: =IF(SUM(N65:N69)=SUM(P34:P39),"OK","NOK") ->  | AH72: ODC | AI72: =IF(AND($AI$70>=9%,$AI$70<10%),25,IF($AI$70>=10%,50,0)) ->  | AJ72: 0.1

Sheet DECEMBRE
L2: Décembre | O2: 2022 | Q2: 4
D4: MO | F4: B | H4: F | J4: MI | L4: C | N4: TRANSAC JOUR | O4: CA JOUR | P4: IMU JOUR | Q4: % IMU | R4: PM JOUR
D5: CA | E5: IMU | F5: CA | G5: IMU | H5: CA | I5: IMU | J5: CA | K5: IMU | L5: CA | M5: IMU
C6: 2022-02-28 | D6: 0 | E6: 0 | F6: 0 | G6: 0 | H6: 0 | I6: 0 | J6: 0 | K6: 0 | L6: 0 | M6: 0 | N6: 0 | O6: =D6+F6+H6+J6+L6 -> 0 | P6: =SUM(E6+G6+I6+K6+M6) -> 0 | Q6: =IF(ISERROR(P6/O6),"%",P6/O6) -> % | R6: =IF(N6=0,"",O6/N6) -> 
A7: =IF(O7=0,0,1) ->  | B7: =IF(C6,1,0) -> 1 | C7: 2022-12-01 | D7: =IF($C7=#REF!,#REF!,"0") ->  | E7: =IF($C7=#REF!,#REF!,"0") ->  | F7: =IF($C7=#REF!,#REF!,"0") ->  | G7: =IF($C7=#REF!,#REF!,"0") ->  | H7: =IF($C7=#REF!,#REF!,"0") ->  | I7: =IF($C7=#REF!,#REF!,"0") ->  | J7: =IF($C7=#REF!,#REF!,"0") ->  | K7: =IF($C7=#REF!,#REF!,"0") ->  | L7: =IF($C7=#REF!,#REF!,"0") ->  | M7: =IF($C7=#REF!,#REF!,"0") ->  | N7: 0 | Q7: % | R7: =IF(N7=0,"",O7/N7) -> 
A8: =IF(O8=0,0,1) ->  | B8: =IF(C7,1,0) -> 1 | C8: =C7+1 -> 2022-12-02 | D8: =IF($C8=#REF!,#REF!,"0") ->  | E8: =IF($C8=#REF!,#REF!,"0") ->  | F8: =IF($C8=#REF!,#REF!,"0") ->  | G8: =IF($C8=#REF!,#REF!,"0") ->  | H8: =IF($C8=#REF!,#REF!,"0") ->  | I8: =IF($C8=#REF!,#REF!,"0") ->  | J8: =IF($C8=#REF!,#REF!,"0") ->  | K8: =IF($C8=#REF!,#REF!,"0") ->  | L8: =IF($C8=#REF!,#REF!,"0") ->  | M8: =IF($C8=#REF!,#REF!,"0") ->  | N8: 0 | Q8: %
B9: 1 | C9: 2022-12-03 | D9: =IF($C9=#REF!,#REF!,"0") ->  | E9: =IF($C9=#REF!,#REF!,"0") ->  | F9: =IF($C9=#REF!,#REF!,"0") ->  | G9: =IF($C9=#REF!,#REF!,"0") ->  | H9: =IF($C9=#REF!,#REF!,"0") ->  | I9: =IF($C9=#REF!,#REF!,"0") ->  | J9: =IF($C9=#REF!,#REF!,"0") ->  | K9: =IF($C9=#REF!,#REF!,"0") ->  | L9: =IF($C9=#REF!,#REF!,"0") ->  | M9: =IF($C9=#REF!,#REF!,"0") ->  | N9: 0 | Q9: %
C10: =C9+1 -> 2022-12-04 | D10: =IF(SUM(D7:D9)>(D44*(1/$Q$2)),"ä","æ") ->  | E10: =IF(SUM(E7:E9)>(E44*(1/$Q$2)),"ä","æ") ->  | N10: æ | Q10: æ | R10: æ
B11: 1 | C11: 2022-12-05 | D11: =IF($C11=#REF!,#REF!,"0") ->  | E11: =IF($C11=#REF!,#REF!,"0") ->  | F11: =IF($C11=#REF!,#REF!,"0") ->  | G11: =IF($C11=#REF!,#REF!,"0") ->  | H11: =IF($C11=#REF!,#REF!,"0") ->  | I11: =IF($C11=#REF!,#REF!,"0") ->  | J11: =IF($C11=#REF!,#REF!,"0") ->  | K11: =IF($C11=#REF!,#REF!,"0") ->  | L11: =IF($C11=#REF!,#REF!,"0") ->  | M11: =IF($C11=#REF!,#REF!,"0") ->  | N11: 0 | Q11: %
B12: 1 | C12: 2022-12-06 | D12: =IF($C12=#REF!,#REF!,"0") ->  | E12: =IF($C12=#REF!,#REF!,"0") ->  | F12: =IF($C12=#REF!,#REF!,"0") ->  | G12: =IF($C12=#REF!,#REF!,"0") ->  | H12: =IF($C12=#REF!,#REF!,"0") ->  | I12: =IF($C12=#REF!,#REF!,"0") ->  | J12: =IF($C12=#REF!,#REF!,"0") ->  | K12: =IF($C12=#REF!,#REF!,"0") ->  | L12: =IF($C12=#REF!,#REF!,"0") ->  | M12: =IF($C12=#REF!,#REF!,"0") ->  | N12: 0 | Q12: %
B13: 1 | C13: =C12+1 -> 2022-12-07 | D13: =IF($C13=#REF!,#REF!,"0") ->  | E13: =IF($C13=#REF!,#REF!,"0") ->  | F13: =IF($C13=#REF!,#REF!,"0") ->  | G13: =IF($C13=#REF!,#REF!,"0") ->  | H13: =IF($C13=#REF!,#REF!,"0") ->  | I13: =IF($C13=#REF!,#REF!,"0") ->  | J13: =IF($C13=#REF!,#REF!,"0") ->  | K13: =IF($C13=#REF!,#REF!,"0") ->  | L13: =IF($C13=#REF!,#REF!,"0") ->  | M13: =IF($C13=#REF!,#REF!,"0") ->  | N13: 0 | O13: =D13+F13+H13+J13+L13 ->  | P13: =SUM(E13+G13+I13+K13+M13) ->  | Q13: %
B14: 1 | C14: 2022-12-08 | D14: =IF($C14=#REF!,#REF!,"0") ->  | E14: =IF($C14=#REF!,#REF!,"0") ->  | F14: =IF($C14=#REF!,#REF!,"0") ->  | G14: =IF($C14=#REF!,#REF!,"0") ->  | H14: =IF($C14=#REF!,#REF!,"0") ->  | I14: =IF($C14=#REF!,#REF!,"0") ->  | J14: =IF($C14=#REF!,#REF!,"0") ->  | K14: =IF($C14=#REF!,#REF!,"0") ->  | L14: =IF($C14=#REF!,#REF!,"0") ->  | M14: =IF($C14=#REF!,#REF!,"0") ->  | N14: 0 | O14: =D14+F14+H14+J14+L14 ->  | P14: =SUM(E14+G14+I14+K14+M14) ->  | Q14: %
B15: 1 | C15: 2022-12-09 | D15: =IF($C15=#REF!,#REF!,"0") ->  | E15: =IF($C15=#REF!,#REF!,"0") ->  | F15: =IF($C15=#REF!,#REF!,"0") ->  | G15: =IF($C15=#REF!,#REF!,"0") ->  | H15: =IF($C15=#REF!,#REF!,"0") ->  | I15: =IF($C15=#REF!,#REF!,"0") ->  | J15: =IF($C15=#REF!,#REF!,"0") ->  | K15: =IF($C15=#REF!,#REF!,"0") ->  | L15: =IF($C15=#REF!,#REF!,"0") ->  | M15: =IF($C15=#REF!,#REF!,"0") ->  | N15: 0 | O15: =D15+F15+H15+J15+L15 ->  | Q15: %
B16: 1 | C16: 2022-12-10 | D16: =IF($C16=#REF!,#REF!,"0") ->  | E16: =IF($C16=#REF!,#REF!,"0") ->  | F16: =IF($C16=#REF!,#REF!,"0") ->  | G16: =IF($C16=#REF!,#REF!,"0") ->  | H16: =IF($C16=#REF!,#REF!,"0") ->  | I16: =IF($C16=#REF!,#REF!,"0") ->  | J16: =IF($C16=#REF!,#REF!,"0") ->  | K16: =IF($C16=#REF!,#REF!,"0") ->  | L16: =IF($C16=#REF!,#REF!,"0") ->  | M16: =IF($C16=#REF!,#REF!,"0") ->  | N16: 0 | O16: =D16+F16+H16+J16+L16 ->  | Q16: %
C17: 2022-12-11 | D17: =IF(SUM(D11:D16)+SUM(D7:D9)>(D44*(1/$Q$2)),"ä","æ") ->  | E17: =IF(SUM(E11:E16)+SUM(E7:E9)>(E44*(1/$Q$2)),"ä","æ") ->  | N17: æ | Q17: æ | R17: æ
B18: 1 | C18: 2022-12-12 | D18: =IF($C18=#REF!,#REF!,"0") ->  | E18: =IF($C18=#REF!,#REF!,"0") ->  | F18: =IF($C18=#REF!,#REF!,"0") ->  | G18: =IF($C18=#REF!,#REF!,"0") ->  | H18: =IF($C18=#REF!,#REF!,"0") ->  | I18: =IF($C18=#REF!,#REF!,"0") ->  | J18: =IF($C18=#REF!,#REF!,"0") ->  | K18: =IF($C18=#REF!,#REF!,"0") ->  | L18: =IF($C18=#REF!,#REF!,"0") ->  | M18: =IF($C18=#REF!,#REF!,"0") ->  | N18: 0 | O18: =D18+F18+H18+J18+L18 ->  | Q18: %
B19: 1 | C19: 2022-12-13 | D19: =IF($C19=#REF!,#REF!,"0") ->  | E19: =IF($C19=#REF!,#REF!,"0") ->  | F19: =IF($C19=#REF!,#REF!,"0") ->  | G19: =IF($C19=#REF!,#REF!,"0") ->  | H19: =IF($C19=#REF!,#REF!,"0") ->  | I19: =IF($C19=#REF!,#REF!,"0") ->  | J19: =IF($C19=#REF!,#REF!,"0") ->  | K19: =IF($C19=#REF!,#REF!,"0") ->  | L19: =IF($C19=#REF!,#REF!,"0") ->  | M19: =IF($C19=#REF!,#REF!,"0") ->  | N19: 0 | Q19: %
B20: 1 | C20: 2022-12-14 | D20: =IF($C20=#REF!,#REF!,"0") ->  | E20: =IF($C20=#REF!,#REF!,"0") ->  | F20: =IF($C20=#REF!,#REF!,"0") ->  | G20: =IF($C20=#REF!,#REF!,"0") ->  | H20: =IF($C20=#REF!,#REF!,"0") ->  | I20: =IF($C20=#REF!,#REF!,"0") ->  | J20: =IF($C20=#REF!,#REF!,"0") ->  | K20: =IF($C20=#REF!,#REF!,"0") ->  | L20: =IF($C20=#REF!,#REF!,"0") ->  | M20: =IF($C20=#REF!,#REF!,"0") ->  | N20: 0 | Q20: %
B21: 1 | C21: 2022-12-15 | D21: =IF($C21=#REF!,#REF!,"0") ->  | E21: =IF($C21=#REF!,#REF!,"0") ->  | F21: =IF($C21=#REF!,#REF!,"0") ->  | G21: =IF($C21=#REF!,#REF!,"0") ->  | H21: =IF($C21=#REF!,#REF!,"0") ->  | I21: =IF($C21=#REF!,#REF!,"0") ->  | J21: =IF($C21=#REF!,#REF!,"0") ->  | K21: =IF($C21=#REF!,#REF!,"0") ->  | L21: =IF($C21=#REF!,#REF!,"0") ->  | M21: =IF($C21=#REF!,#REF!,"0") ->  | N21: 0 | Q21: %
B22: 1 | C22: 2022-12-16 | D22: =IF($C22=#REF!,#REF!,"0") ->  | E22: =IF($C22=#REF!,#REF!,"0") ->  | F22: =IF($C22=#REF!,#REF!,"0") ->  | G22: =IF($C22=#REF!,#REF!,"0") ->  | H22: =IF($C22=#REF!,#REF!,"0") ->  | I22: =IF($C22=#REF!,#REF!,"0") ->  | J22: =IF($C22=#REF!,#REF!,"0") ->  | K22: =IF($C22=#REF!,#REF!,"0") ->  | L22: =IF($C22=#REF!,#REF!,"0") ->  | M22: =IF($C22=#REF!,#REF!,"0") ->  | N22: 0 | Q22: %
B23: 1 | C23: 2022-12-17 | D23: =IF($C23=#REF!,#REF!,"0") ->  | E23: =IF($C23=#REF!,#REF!,"0") ->  | F23: =IF($C23=#REF!,#REF!,"0") ->  | G23: =IF($C23=#REF!,#REF!,"0") ->  | H23: =IF($C23=#REF!,#REF!,"0") ->  | I23: =IF($C23=#REF!,#REF!,"0") ->  | J23: =IF($C23=#REF!,#REF!,"0") ->  | K23: =IF($C23=#REF!,#REF!,"0") ->  | L23: =IF($C23=#REF!,#REF!,"0") ->  | M23: =IF($C23=#REF!,#REF!,"0") ->  | N23: 0 | Q23: %
C24: 2022-12-18 | D24: =IF(SUM(D11:D16)+SUM(D7:D9)+SUM(D18:D23)>(D44*(2/$Q$2)),"ä","æ") ->  | E24: =IF(SUM(E11:E16)+SUM(E7:E9)+SUM(E18:E23)>(E44*(2/$Q$2)),"ä","æ") ->  | N24: æ | Q24: æ | R24: æ
B25: 1 | C25: 2022-12-19 | D25: =IF($C25=#REF!,#REF!,"0") ->  | E25: =IF($C25=#REF!,#REF!,"0") ->  | F25: =IF($C25=#REF!,#REF!,"0") ->  | G25: =IF($C25=#REF!,#REF!,"0") ->  | H25: =IF($C25=#REF!,#REF!,"0") ->  | I25: =IF($C25=#REF!,#REF!,"0") ->  | J25: =IF($C25=#REF!,#REF!,"0") ->  | K25: =IF($C25=#REF!,#REF!,"0") ->  | L25: =IF($C25=#REF!,#REF!,"0") ->  | M25: =IF($C25=#REF!,#REF!,"0") ->  | N25: 0 | Q25: %
B26: 1 | C26: 2022-12-20 | D26: =IF($C26=#REF!,#REF!,"0") ->  | E26: =IF($C26=#REF!,#REF!,"0") ->  | F26: =IF($C26=#REF!,#REF!,"0") ->  | G26: =IF($C26=#REF!,#REF!,"0") ->  | H26: =IF($C26=#REF!,#REF!,"0") ->  | I26: =IF($C26=#REF!,#REF!,"0") ->  | J26: =IF($C26=#REF!,#REF!,"0") ->  | K26: =IF($C26=#REF!,#REF!,"0") ->  | L26: =IF($C26=#REF!,#REF!,"0") ->  | M26: =IF($C26=#REF!,#REF!,"0") ->  | N26: 0 | Q26: %
B27: 1 | C27: 2022-12-21 | D27: =IF($C27=#REF!,#REF!,"0") ->  | E27: =IF($C27=#REF!,#REF!,"0") ->  | F27: =IF($C27=#REF!,#REF!,"0") ->  | G27: =IF($C27=#REF!,#REF!,"0") ->  | H27: =IF($C27=#REF!,#REF!,"0") ->  | I27: =IF($C27=#REF!,#REF!,"0") ->  | J27: =IF($C27=#REF!,#REF!,"0") ->  | K27: =IF($C27=#REF!,#REF!,"0") ->  | L27: =IF($C27=#REF!,#REF!,"0") ->  | M27: =IF($C27=#REF!,#REF!,"0") ->  | N27: 0 | Q27: %
B28: 1 | C28: 2022-12-22 | D28: =IF($C28=#REF!,#REF!,"0") ->  | E28: =IF($C28=#REF!,#REF!,"0") ->  | F28: =IF($C28=#REF!,#REF!,"0") ->  | G28: =IF($C28=#REF!,#REF!,"0") ->  | H28: =IF($C28=#REF!,#REF!,"0") ->  | I28: =IF($C28=#REF!,#REF!,"0") ->  | J28: =IF($C28=#REF!,#REF!,"0") ->  | K28: =IF($C28=#REF!,#REF!,"0") ->  | L28: =IF($C28=#REF!,#REF!,"0") ->  | M28: =IF($C28=#REF!,#REF!,"0") ->  | N28: 0 | Q28: %
B29: 1 | C29: 2022-12-23 | D29: =IF($C29=#REF!,#REF!,"0") ->  | E29: =IF($C29=#REF!,#REF!,"0") ->  | F29: =IF($C29=#REF!,#REF!,"0") ->  | G29: =IF($C29=#REF!,#REF!,"0") ->  | H29: =IF($C29=#REF!,#REF!,"0") ->  | I29: =IF($C29=#REF!,#REF!,"0") ->  | J29: =IF($C29=#REF!,#REF!,"0") ->  | K29: =IF($C29=#REF!,#REF!,"0") ->  | L29: =IF($C29=#REF!,#REF!,"0") ->  | M29: =IF($C29=#REF!,#REF!,"0") ->  | N29: 0 | Q29: %
B30: 1 | C30: 2022-12-24 | D30: =IF($C30=#REF!,#REF!,"0") ->  | E30: =IF($C30=#REF!,#REF!,"0") ->  | F30: =IF($C30=#REF!,#REF!,"0") ->  | G30: =IF($C30=#REF!,#REF!,"0") ->  | H30: =IF($C30=#REF!,#REF!,"0") ->  | I30: =IF($C30=#REF!,#REF!,"0") ->  | J30: =IF($C30=#REF!,#REF!,"0") ->  | K30: =IF($C30=#REF!,#REF!,"0") ->  | L30: =IF($C30=#REF!,#REF!,"0") ->  | M30: =IF($C30=#REF!,#REF!,"0") ->  | N30: 0 | Q30: %
C31: 2022-12-25 | D31: =IF(SUM(D18:D23)+SUM(D11:D16)+SUM(D25:D30)+SUM(D7:D9)>(D44*(3/$Q$2)),"ä","æ") ->  | E31: =IF(SUM(E18:E23)+SUM(E11:E16)+SUM(E25:E30)+SUM(E7:E9)>(E44*(3/$Q$2)),"ä","æ") ->  | N31: æ | Q31: æ | R31: æ
B32: 1 | C32: 2022-12-26 | D32: =IF($C32=#REF!,#REF!,"0") ->  | E32: =IF($C32=#REF!,#REF!,"0") ->  | F32: =IF($C32=#REF!,#REF!,"0") ->  | G32: =IF($C32=#REF!,#REF!,"0") ->  | H32: =IF($C32=#REF!,#REF!,"0") ->  | I32: =IF($C32=#REF!,#REF!,"0") ->  | J32: =IF($C32=#REF!,#REF!,"0") ->  | K32: =IF($C32=#REF!,#REF!,"0") ->  | L32: =IF($C32=#REF!,#REF!,"0") ->  | M32: =IF($C32=#REF!,#REF!,"0") ->  | N32: 0 | Q32: %
B33: 1 | C33: 2022-12-27 | D33: =IF($C33=#REF!,#REF!,"0") ->  | E33: =IF($C33=#REF!,#REF!,"0") ->  | F33: =IF($C33=#REF!,#REF!,"0") ->  | G33: =IF($C33=#REF!,#REF!,"0") ->  | H33: =IF($C33=#REF!,#REF!,"0") ->  | I33: =IF($C33=#REF!,#REF!,"0") ->  | J33: =IF($C33=#REF!,#REF!,"0") ->  | K33: =IF($C33=#REF!,#REF!,"0") ->  | L33: =IF($C33=#REF!,#REF!,"0") ->  | M33: =IF($C33=#REF!,#REF!,"0") ->  | N33: 0 | Q33: %
B34: 1 | C34: 2022-12-28 | D34: =IF($C34=#REF!,#REF!,"0") ->  | E34: =IF($C34=#REF!,#REF!,"0") ->  | F34: =IF($C34=#REF!,#REF!,"0") ->  | G34: =IF($C34=#REF!,#REF!,"0") ->  | H34: =IF($C34=#REF!,#REF!,"0") ->  | I34: =IF($C34=#REF!,#REF!,"0") ->  | J34: =IF($C34=#REF!,#REF!,"0") ->  | K34: =IF($C34=#REF!,#REF!,"0") ->  | L34: =IF($C34=#REF!,#REF!,"0") ->  | M34: =IF($C34=#REF!,#REF!,"0") ->  | N34: 0 | Q34: %
B35: 1 | C35: 2022-12-29 | D35: =IF($C35=#REF!,#REF!,"0") ->  | E35: =IF($C35=#REF!,#REF!,"0") ->  | F35: =IF($C35=#REF!,#REF!,"0") ->  | G35: =IF($C35=#REF!,#REF!,"0") ->  | H35: =IF($C35=#REF!,#REF!,"0") ->  | I35: =IF($C35=#REF!,#REF!,"0") ->  | J35: =IF($C35=#REF!,#REF!,"0") ->  | K35: =IF($C35=#REF!,#REF!,"0") ->  | L35: =IF($C35=#REF!,#REF!,"0") ->  | M35: =IF($C35=#REF!,#REF!,"0") ->  | N35: 0 | Q35: %
B36: 1 | C36: 2022-12-30 | D36: =IF($C36=#REF!,#REF!,"0") ->  | E36: =IF($C36=#REF!,#REF!,"0") ->  | F36: =IF($C36=#REF!,#REF!,"0") ->  | G36: =IF($C36=#REF!,#REF!,"0") ->  | H36: =IF($C36=#REF!,#REF!,"0") ->  | I36: =IF($C36=#REF!,#REF!,"0") ->  | J36: =IF($C36=#REF!,#REF!,"0") ->  | K36: =IF($C36=#REF!,#REF!,"0") ->  | L36: =IF($C36=#REF!,#REF!,"0") ->  | M36: =IF($C36=#REF!,#REF!,"0") ->  | N36: 0 | Q36: %
B37: 1 | C37: 2022-12-31 | D37: =IF($C37=#REF!,#REF!,"0") ->  | E37: =IF($C37=#REF!,#REF!,"0") ->  | F37: =IF($C37=#REF!,#REF!,"0") ->  | G37: =IF($C37=#REF!,#REF!,"0") ->  | H37: =IF($C37=#REF!,#REF!,"0") ->  | I37: =IF($C37=#REF!,#REF!,"0") ->  | J37: =IF($C37=#REF!,#REF!,"0") ->  | K37: =IF($C37=#REF!,#REF!,"0") ->  | L37: =IF($C37=#REF!,#REF!,"0") ->  | M37: =IF($C37=#REF!,#REF!,"0") ->  | N37: 0 | Q37: %
D38: =IF(SUM(D25:D30)+SUM(D18:D23)+SUM(D32:D37)+SUM(D11:D16)+SUM(D4:D9)>(D42),"ä","æ") ->  | N38: æ | Q38: æ | R38: æ
C39: 1900-01-01 | D39: =IF(SUM(D25:D30)+SUM(D18:D23)+SUM(D32:D38)+SUM(D11:D16)+SUM(D7:D9)>(D44*(4/$Q$2)),"ä","æ") ->  | E39: =IF(SUM(E25:E30)+SUM(E18:E23)+SUM(E32:E38)+SUM(E11:E16)+SUM(E7:E9)>(E44*(4/$Q$2)),"ä","æ") ->  | N39: æ | Q39: æ | R39: æ
A41: =SUM(A34:A37,A27:A32,A20:A25,A13:A18,A7:A11) ->  | B41: =SUM(B7:B37) -> 27 | C41: TOTAL MTD | D41: =SUM(D7:D37) ->  | N41: 0 | O41: =SUM(O8:O37) ->  | P41: =SUM(P7:P37) ->  | Q41: %
D43: MO | F43: B | H43: F | J43: MI | L43: I | N43: TX | O43: CA | P43: IMU | Q43: % IMU | R43: PM
C44: OBJECTIF MTD
C45: INDEX (vs AOP) | D45: =IF(D52>(D44/$B$41),"ä","æ") ->  | E45: =IF(E52>(E44/$B$41),"ä","æ") ->  | Q45: =IF(Q41>Q44,"ä","æ") -> ä | R45: =IF(R41>R44,"ä","æ") -> æ
C46: % RÉALISÉ | D46: =SUM(D41/D44) ->  | F46: =SUM(F41/F44) ->  | H46: =SUM(H41/H44) ->  | N46: =SUM(N41/N44) ->  | O46: =(D41+F41+H41+J41+L41)/O44 ->  | P46: =(E41+G41+I41+K41+M41)/P44 ->  | Q46: =IF(ISERROR(Q41-Q44),"",Q41-Q44) ->  | R46: =IF(ISERROR(R41-R44),"",R41-R44) -> 
C47: INDEX (vs % Réal Attendu) | D47: =IF(D46>$Q$53,"ä","æ") ->  | E47: =IF(E46>$Q$53,"ä","æ") -> 
D50: MO | F50: B | H50: F | J50: MI | L50: I | N50: TX | O50: CA | P50: MARGE | Q50: Nb de Jours restants mois | R50: =+$R$51-$A$41 -> 
C51: CA/MGE/TR Restants à faire/ jour | D51: =IF($R$50=0,D44-D41,(D44-D41)/$R$50) ->  | O51: =D51+F51+H51+J51+L51 ->  | P51: =E51+G51+I51+K51+M51 ->  | Q51: Nb de jours dans le mois | R51: =B41 -> 27
D52: =D41/$A$41 ->  | E52: =E41/$A$41 ->  | Q52: % Réalisation Attendu
D53: PÔLE | Q53: =((100/$R$51)*($R$51-$R$50))/100 -> 
E55: CA | G55: IMU
D56: OBJECTIF MTD | E56: =+F44+J44 -> 0 | G56: =+G44+K44 -> 0 | I56: ² | K56: CA | L56: IMU
D57: Réalisé MTD | E57: =+F41+J41 ->  | G57: =+G41+K41 ->  | J57: CA/MGE Restants à faire/jour | K57: =+F51+J51 ->  | L57: =+G51+K51 -> 
D58: INDEX | E58: =IF(E57>E60,"ä","æ") ->  | F58: =IF(F54>F61,"ä","æ") -> æ | G58: =IF(G57>G60,"ä","æ") -> 
D59: % RÉALISÉ | E59: =+$E$57/$E$56 ->  | G59: =+$G$57/$G$56 -> 
E60: =(E56/$R$51)*($R$51-$R$50) ->  | G60: =(G56/$R$51)*($R$51-$R$50) -> 
E63: S1 | G63: S2 | I63: S3 | K63: S4 | M63: S5 | O63: CONTRÔLE | Q63: TOTAL DIVISIONS | Y63: AOP DIVISIONS | AD63: Delta VS Prime T2 | AF63: Delta VS Prime T300
E64: CA | F64: MARGE | G64: CA | H64: MARGE | I64: CA | J64: MARGE | K64: CA | L64: MARGE | M64: CA | N64: MARGE | O64: CA | P64: MARGE | Q64: CA | R64: MARGE | Y64: CA | Z64: MARGE | AA64: CA/Sem | AB64: Marge/Sem | AD64: CA(85%) | AE64: MARGE (90%) | AF64: CA (95%) | AG64: MARGE (95%)
A65: =D65 -> MOBILIER | C65: 1 | D65: MOBILIER | E65: =SUM(D6:D11) ->  | F65: =SUM(E6:E11) ->  | G65: =SUM(D13:D18) ->  | H65: =SUM(E13:E18) ->  | I65: =SUM(D20:D25) ->  | J65: =SUM(E20:E25) ->  | K65: =SUM(D27:D32) ->  | L65: =SUM(E27:E32) ->  | M65: =SUM(D34:D39) ->  | N65: =SUM(E34:E39) ->  | O65: =IF(SUM(E65,G65,I65,K65,M65)=D41,"OK","NOK") ->  | P65: =IF(SUM(F65,H65,J65,L65,N65)=E41,"OK","NOK") ->  | Q65: =SUM(E65,G65,I65,K65,M65) ->  | X65: MOBILIER | Y65: =+D44 -> 0 | Z65: =+E44 -> 0 | AA65: =Y65/$Q$2 -> 0 | AB65: =Z65/$Q$2 -> 0 | AC65: MOB | AD65: =Y65*85% -> 0 | AE65: =Z65*90% -> 0
A66: =D66 -> BUREAUTIQUE | C66: 2 | D66: BUREAUTIQUE | E66: =SUM(F6:F11) ->  | F66: =SUM(G6:G11) ->  | G66: =SUM(F13:F18) ->  | H66: =SUM(G13:G18) ->  | I66: =SUM(F20:F25) ->  | J66: =SUM(G20:G25) ->  | K66: =SUM(F27:F32) ->  | L66: =SUM(G27:G32) ->  | M66: =SUM(F34:F39) ->  | N66: =SUM(G34:G39) ->  | O66: =IF(SUM(E66,G66,I66,K66,M66)=F41,"OK","NOK") ->  | P66: =IF(SUM(F66,H66,J66,L66,N66)=G41,"OK","NOK") ->  | X66: BUREAUTIQUE | Y66: =+F44 -> 0 | Z66: =+G44 -> 0 | AA66: =Y66/$Q$2 -> 0 | AB66: 0 | AC66: BUR | AD66: 0 | AE66: 0
A67: FOURNITURES | C67: 3 | D67: FOURNITURES | E67: =SUM(H6:H11) ->  | F67: =SUM(I6:I11) ->  | G67: =SUM(H13:H18) ->  | H67: =SUM(I13:I18) ->  | I67: =SUM(H20:H25) ->  | J67: =SUM(I20:I25) ->  | K67: =SUM(H27:H32) ->  | L67: =SUM(I27:I32) ->  | M67: =SUM(H34:H39) ->  | N67: =SUM(I34:I39) ->  | O67: =IF(SUM(E67,G67,I67,K67,M67)=H41,"OK","NOK") ->  | P67: =IF(SUM(F67,H67,J67,L67,N67)=I41,"OK","NOK") ->  | X67: FOURNITURES | Y67: =+H44 -> 0 | Z67: =+I44 -> 0 | AA67: 0 | AB67: 0 | AC67: FOURN | AD67: 0 | AE67: 0
A68: MICRO | C68: 4 | D68: MICRO | E68: =SUM(J6:J11) ->  | F68: =SUM(K6:K11) ->  | G68: =SUM(J13:J18) ->  | H68: =SUM(K13:K18) ->  | I68: =SUM(J20:J25) ->  | J68: =SUM(K20:K25) ->  | K68: =SUM(J27:J32) ->  | L68: =SUM(K27:K32) ->  | M68: =SUM(J34:J39) ->  | N68: =SUM(K34:K39) ->  | O68: =IF(SUM(E68,G68,I68,K68,M68)=J41,"OK","NOK") ->  | P68: =IF(SUM(F68,H68,J68,L68,N68)=K41,"OK","NOK") ->  | X68: MICRO | Y68: =+J44 -> 0 | Z68: =+K44 -> 0 | AA68: 0 | AB68: 0 | AC68: MICRO | AD68: 0 | AE68: 0
A69: COPIE IMPRIMERIE | C69: 9 | D69: COPIE IMPRIMERIE | E69: =SUM(L6:L11) ->  | F69: =SUM(M6:M11) ->  | G69: =SUM(L13:L18) ->  | H69: =SUM(M13:M18) ->  | I69: =SUM(L20:L25) ->  | J69: =SUM(M20:M25) ->  | K69: =SUM(L27:L32) ->  | L69: =SUM(M27:M32) ->  | M69: =SUM(L34:L39) ->  | N69: =SUM(M34:M39) ->  | O69: =IF(SUM(E69,G69,I69,K69,M69)=L41,"OK","NOK") ->  | P69: =IF(SUM(F69,H69,J69,L69,N69)=M41,"OK","NOK") ->  | X69: COPIE IMPRIMERIE | Y69: =+L44 -> 0 | Z69: =+M44 -> 0 | AA69: 0 | AB69: 0 | AC69: IMAG | AD69: 0 | AE69: 0 | AI69: PDM Imag
A70: Pôle Techno | C70: 2&4 | D70: Pôle Techno | E70: =SUM(E66,E68) ->  | F70: =SUM(F66,F68) ->  | X70: Pôle Techno | Y70: =+Y66+Y68 -> 0 | Z70: =+Z66+Z68 -> 0 | AA70: 0 | AB70: 0 | AD70: 0 | AE70: 0 | AI70: =+Q69/Q71 -> 
A71: MAGASIN | D71: MAGASIN | E71: =SUM(E65:E69) ->  | F71: =SUM(F65:F69) ->  | Q71: =SUM(Q65:Q69) ->  | R71: =SUM(R65:R69) ->  | X71: MAGASIN | Y71: =SUM(Y65:Y69) -> 0 | Z71: =SUM(Z65:Z69) -> 0 | AA71: 0 | AB71: 0 | AF71: =Y71*95% -> 0 | AG71: =Z71*95% -> 0 | AH71: OD | AI71: =IF(AND($AI$70>=4%,$AI$70<5%),25,IF($AI$70>=5%,50,0)) ->  | AJ71: 0.05
D72: CONTRÔLE | E72: =IF(SUM(E65:E69)=SUM(O6:O11),"OK","NOK") ->  | F72: =IF(SUM(F65:F69)=SUM(P6:P11),"OK","NOK") ->  | G72: =IF(SUM(G65:G69)=SUM(O13:O18),"OK","NOK") ->  | H72: =IF(SUM(H65:H69)=SUM(P13:P18),"OK","NOK") ->  | I72: =IF(SUM(I65:I69)=SUM(O20:O25),"OK","NOK") ->  | J72: =IF(SUM(J65:J69)=SUM(P20:P25),"OK","NOK") ->  | K72: =IF(SUM(K65:K69)=SUM(O27:O32),"OK","NOK") ->  | L72: =IF(SUM(L65:L69)=SUM(P27:P32),"OK","NOK") ->  | M72: =IF(SUM(M65:M69)=SUM(O34:O39),"OK","NOK") ->  | N72: =IF(SUM(N65:N69)=SUM(P34:P39),"OK","NOK") ->  | AH72: ODC | AI72: =IF(AND($AI$70>=9%,$AI$70<10%),25,IF($AI$70>=10%,50,0)) ->  | AJ72: 0.1
